Service Area,Service Division,Expense Type,Expense Code,Detailed Expense Type,Payment Date,Transaction Number,Amount Exc VAT,Supplier Name
Neighbourhoods and Climate Change,Environmental Services,Supplies and Services,372009,Subscriptions E372,01/04/2020,3724381-INVS007212,995.00,KEEP BRITAIN TIDY.
Neighbourhoods and Climate Change,Environmental Services,Supplies and Services,304221,Equipment and Materials,01/04/2020,3724144-29661985,"2,230.96",AGGREGATE INDUSTRIES UK LTD.
Neighbourhoods and Climate Change,Environmental Services,Supplies and Services,328041,Clothing uniforms and laundry E328,01/04/2020,3724562-NSIN00033682,546.00,THOMAS OWEN & SONS (NEWCASTLE) LTD.
Neighbourhoods and Climate Change,Environmental Services,Premises,135005,Water Services,01/04/2020,3724593-210057270816668365,655.88,WAVE (AWBN).
Neighbourhoods and Climate Change,Environmental Services,Third Party Payments,430100,Rendered by Private Contractors,01/04/2020,3724249-96387493,"5,353.85",DENNIS EAGLE LTD T/A TERBERG MATEC (UK) LTD.
Neighbourhoods and Climate Change,Environmental Services,Transport,210057,Repair and Maintenance of Vehicles,01/04/2020,3724249-96387274,838.78,DENNIS EAGLE LTD T/A TERBERG MATEC (UK) LTD.
Neighbourhoods and Climate Change,Environmental Services,Transport,210057,Repair and Maintenance of Vehicles,01/04/2020,3724249-96387457,518.10,DENNIS EAGLE LTD T/A TERBERG MATEC (UK) LTD.
Neighbourhoods and Climate Change,Environmental Services,Third Party Payments,430100,Rendered by Private Contractors,01/04/2020,3724250-372475,617.23,DENNIS EAGLE LTD.
Neighbourhoods and Climate Change,Environmental Services,Third Party Payments,430101,Rendered by Private Contractors,01/04/2020,3724253-IV1245423,"2,081.88",DIRECT TYRE MANAGEMENT LTD (DTM).
Neighbourhoods and Climate Change,Environmental Services,Stock A926,926004,Stock,01/04/2020,3724166-15165093,"1,351.85",BELL TRUCK SALES LTD T/A BELL TRUCK & VAN.
Neighbourhoods and Climate Change,Environmental Services,Transport,210057,Repair and Maintenance of Vehicles,01/04/2020,3724249-96385944,"1,036.20",DENNIS EAGLE LTD T/A TERBERG MATEC (UK) LTD.
Neighbourhoods and Climate Change,Environmental Services,Transport,210057,Repair and Maintenance of Vehicles,01/04/2020,3724249-96387273,"1,066.59",DENNIS EAGLE LTD T/A TERBERG MATEC (UK) LTD.
Neighbourhoods and Climate Change,Environmental Services,Stock A926,926004,Stock,01/04/2020,3724307-IN227257,"1,181.70",GB LUBRICANTS LTD.
"Regeneration, Economy and Growth",Culture Sport and Tourism,Premises,135005,Water Services,01/04/2020,3724593-210059870066547579,"2,740.78",WAVE (AWBN).
"Regeneration, Economy and Growth",Culture Sport and Tourism,Premises,135005,Water Services,01/04/2020,3724593-210059870066669287,"2,769.06",WAVE (AWBN).
"Regeneration, Economy and Growth",Culture Sport and Tourism,Premises,135005,Water Services,01/04/2020,3724593-210059870066860965,"2,580.67",WAVE (AWBN).
"Regeneration, Economy and Growth",Culture Sport and Tourism,Premises,135005,Water Services,01/04/2020,3724594-210059870066371006,"13,651.30",WAVE (AWBN).
"Regeneration, Economy and Growth",Culture Sport and Tourism,Premises,135005,Water Services,01/04/2020,3724594-210059870066393090,"2,692.54",WAVE (AWBN).
"Regeneration, Economy and Growth",Culture Sport and Tourism,Third Party Payments,430131,Rendered by Private Contractors,01/04/2020,3724247-DW113,523.00,DAWN SAUNDERS T/A DW BEYOND FITNESS.
Neighbourhoods and Climate Change,Community Protection,Third Party Payments,430100,Rendered by Private Contractors,01/04/2020,3724491-1453,"5,520.00",R TINDALE (BUILDER) LTD.
Neighbourhoods and Climate Change,Environmental Services,Third Party Payments,430100,Rendered by Private Contractors,01/04/2020,3724277-13000431195,663.62,ENTERPRISE FLEX-E-RENT T/A BURNT TREE GROUP LTD.
Neighbourhoods and Climate Change,Environmental Services,Stock A926,926004,Stock,01/04/2020,3724307-IN227743,"1,420.00",GB LUBRICANTS LTD.
Neighbourhoods and Climate Change,Environmental Services,Third Party Payments,430100,Rendered by Private Contractors,01/04/2020,3724520-2090932,850.00,SHB HIRE LTD.
Neighbourhoods and Climate Change,Environmental Services,Premises,135005,Water Services,01/04/2020,3724593-210364310086669455,"2,004.12",WAVE (AWBN).
Neighbourhoods and Climate Change,Environmental Services,Premises,135005,Water Services,01/04/2020,3724593-210364310086860131,"1,875.44",WAVE (AWBN).
Neighbourhoods and Climate Change,Community Protection,Third Party Payments,430100,Rendered by Private Contractors,01/04/2020,3724619-1476,"1,350.00",YOU`RE SECURE NORTHEAST.
"Regeneration, Economy and Growth",Corporate Property and Land,Premises,145023,Cleaning and Domestic Supplies,01/04/2020,3724319-06/054223,"2,368.80",GREENHAM TRADING LTD.
"Regeneration, Economy and Growth",Corporate Property and Land,Premises,145023,Cleaning and Domestic Supplies,01/04/2020,3724319-06/057391,602.70,GREENHAM TRADING LTD.
"Regeneration, Economy and Growth",Corporate Property and Land,Premises,145023,Cleaning and Domestic Supplies,01/04/2020,3724319-06/057580,602.70,GREENHAM TRADING LTD.
Neighbourhoods and Climate Change,Technical Services CM0300,Construction work A908,908105,Construction work,01/04/2020,3724581-101150,"4,690.00",UNIPART DORMAN.
Neighbourhoods and Climate Change,Environmental Services,Premises,135005,Water Services,01/04/2020,3724593-307411330016858762,"1,653.99",WAVE (AWBN).
Neighbourhoods and Climate Change,Environmental Services,Supplies and Services,338027,Services,01/04/2020,3724529-0000814533,992.00,SOCOTEC UK LTD.
"Regeneration, Economy and Growth",Culture Sport and Tourism,Supplies and Services,338099,Services,01/04/2020,3724389-LSUK20-0225,950.00,LABOSPORT LTD.
"Regeneration, Economy and Growth",Culture Sport and Tourism,Supplies and Services,384700,Miscellaneous Expenses,01/04/2020,3724451-3610044935,"1,030.00",NORTH TEES & HARTLEPOOL NHS FOUNDATION TRUST.
"Regeneration, Economy and Growth",Culture Sport and Tourism,Supplies and Services,384237,Miscellaneous Expenses,01/04/2020,3724260-338071,"21,500.00",DURHAM UNIVERSITY.
"Regeneration, Economy and Growth",Culture Sport and Tourism,Supplies and Services,332029,Printing Stationery and Gen Off Exps,01/04/2020,3724442-5068,"4,396.50",NEWLANDMEDIA LTD.
"Regeneration, Economy and Growth",Culture Sport and Tourism,Premises,135005,Water Services,01/04/2020,3724593-888888974826860362,"2,710.73",WAVE (AWBN).
"Regeneration, Economy and Growth",Culture Sport and Tourism,Third Party Payments,430131,Rendered by Private Contractors,01/04/2020,3724371-09,"1,080.00",JOANNE DAVIE (TEACHER).
Neighbourhoods and Climate Change,Technical Services CM0300,Stock A926,926900,Stock in hand-Inventory system,01/04/2020,3724319-06/056905,"1,140.00",GREENHAM TRADING LTD.
Neighbourhoods and Climate Change,Technical Services CM0300,Stock A926,926900,Stock in hand-Inventory system,01/04/2020,3724357-727721,"2,772.00",INSTARMAC GROUP PLC.
Neighbourhoods and Climate Change,Technical Services CM0300,Stock A926,926900,Stock in hand-Inventory system,01/04/2020,3724459-XL254492,"1,135.00",PARK ELECTRICAL DISTRIBUTORS LTD.
Neighbourhoods and Climate Change,Technical Services CM0300,Stock A926,926900,Stock in hand-Inventory system,01/04/2020,3724459-XL254519,"1,257.00",PARK ELECTRICAL DISTRIBUTORS LTD.
Neighbourhoods and Climate Change,Technical Services CM0300,Stock A926,926900,Stock in hand-Inventory system,01/04/2020,3724562-NSIN00033501,826.40,THOMAS OWEN & SONS (NEWCASTLE) LTD.
Neighbourhoods and Climate Change,Technical Services CM0300,Third Party Payments,430100,Rendered by Private Contractors,01/04/2020,3724488-12441,"10,318.94",QUANTUM POWER CONNECTIONS LTD.
Neighbourhoods and Climate Change,Technical Services CM0300,Supplies and Services,304221,Equipment and Materials,01/04/2020,3724144-29566061,719.30,AGGREGATE INDUSTRIES UK LTD.
Neighbourhoods and Climate Change,Technical Services CM0300,Supplies and Services,304221,Equipment and Materials,01/04/2020,3724144-29588569,639.28,AGGREGATE INDUSTRIES UK LTD.
Neighbourhoods and Climate Change,Technical Services CM0300,Supplies and Services,304221,Equipment and Materials,01/04/2020,3724144-29613039,"1,504.95",AGGREGATE INDUSTRIES UK LTD.
Neighbourhoods and Climate Change,Technical Services CM0300,Supplies and Services,304221,Equipment and Materials,01/04/2020,3724144-29639128,"1,103.72",AGGREGATE INDUSTRIES UK LTD.
Neighbourhoods and Climate Change,Technical Services CM0300,Supplies and Services,304221,Equipment and Materials,01/04/2020,3724144-29640176,"1,489.15",AGGREGATE INDUSTRIES UK LTD.
Neighbourhoods and Climate Change,Technical Services CM0300,Supplies and Services,304221,Equipment and Materials,01/04/2020,3724144-29645910,717.26,AGGREGATE INDUSTRIES UK LTD.
Neighbourhoods and Climate Change,Technical Services CM0300,Supplies and Services,304221,Equipment and Materials,01/04/2020,3724144-29661092,738.10,AGGREGATE INDUSTRIES UK LTD.
Neighbourhoods and Climate Change,Technical Services CM0300,Supplies and Services,304221,Equipment and Materials,01/04/2020,3724144-29667061,821.22,AGGREGATE INDUSTRIES UK LTD.
Neighbourhoods and Climate Change,Technical Services CM0300,Supplies and Services,304221,Equipment and Materials,01/04/2020,3724144-29668026,"1,504.95",AGGREGATE INDUSTRIES UK LTD.
Neighbourhoods and Climate Change,Technical Services CM0300,Supplies and Services,304221,Equipment and Materials,01/04/2020,3724144-29673556,"1,819.00",AGGREGATE INDUSTRIES UK LTD.
Neighbourhoods and Climate Change,Technical Services CM0300,Supplies and Services,304221,Equipment and Materials,01/04/2020,3724144-29673560,986.98,AGGREGATE INDUSTRIES UK LTD.
Neighbourhoods and Climate Change,Technical Services CM0300,Supplies and Services,304221,Equipment and Materials,01/04/2020,3724144-29680115,724.28,AGGREGATE INDUSTRIES UK LTD.
Neighbourhoods and Climate Change,Technical Services CM0300,Supplies and Services,304221,Equipment and Materials,01/04/2020,3724144-29686473,996.00,AGGREGATE INDUSTRIES UK LTD.
Neighbourhoods and Climate Change,Technical Services CM0300,Supplies and Services,304221,Equipment and Materials,01/04/2020,3724144-29688214,"3,631.94",AGGREGATE INDUSTRIES UK LTD.
Neighbourhoods and Climate Change,Technical Services CM0300,Supplies and Services,304221,Equipment and Materials,01/04/2020,3724144-29688217,"1,028.24",AGGREGATE INDUSTRIES UK LTD.
Neighbourhoods and Climate Change,Technical Services CM0300,Supplies and Services,304221,Equipment and Materials,01/04/2020,3724144-29694268,"3,660.00",AGGREGATE INDUSTRIES UK LTD.
Neighbourhoods and Climate Change,Technical Services CM0300,Supplies and Services,304221,Equipment and Materials,01/04/2020,3724144-29699479,723.26,AGGREGATE INDUSTRIES UK LTD.
Neighbourhoods and Climate Change,Technical Services CM0300,Supplies and Services,304221,Equipment and Materials,01/04/2020,3724144-29699480,803.60,AGGREGATE INDUSTRIES UK LTD.
Neighbourhoods and Climate Change,Technical Services CM0300,Supplies and Services,304221,Equipment and Materials,01/04/2020,3724144-29704323,"1,185.32",AGGREGATE INDUSTRIES UK LTD.
Neighbourhoods and Climate Change,Technical Services CM0300,Supplies and Services,304221,Equipment and Materials,01/04/2020,3724144-29709097,613.10,AGGREGATE INDUSTRIES UK LTD.
Neighbourhoods and Climate Change,Technical Services CM0300,Third Party Payments,430100,Rendered by Private Contractors,01/04/2020,3724172-207R00453A,"4,093.55",BIFFA WASTE SERVICES LTD.
Neighbourhoods and Climate Change,Technical Services CM0300,Third Party Payments,430100,Rendered by Private Contractors,01/04/2020,3724172-207R00477A,"1,040.20",BIFFA WASTE SERVICES LTD.
Neighbourhoods and Climate Change,Technical Services CM0300,Supplies and Services,304358,Equipment and Materials,01/04/2020,3724278-SI-957,"1,188.00",ENVIROROD LTD.
Neighbourhoods and Climate Change,Technical Services CM0300,Supplies and Services,304358,Equipment and Materials,01/04/2020,3724278-SI-958,"1,188.00",ENVIROROD LTD.
Neighbourhoods and Climate Change,Technical Services CM0300,Supplies and Services,304358,Equipment and Materials,01/04/2020,3724312-0001134001,824.00,GO PLANT LTD T/A GPL HIRE.
Neighbourhoods and Climate Change,Technical Services CM0300,Supplies and Services,304358,Equipment and Materials,01/04/2020,3724312-0001138770,850.50,GO PLANT LTD T/A GPL HIRE.
Neighbourhoods and Climate Change,Technical Services CM0300,Supplies and Services,304358,Equipment and Materials,01/04/2020,3724374-30124,"1,116.50",JOHN R BUTTERFIELD LTD.
Neighbourhoods and Climate Change,Technical Services CM0300,Supplies and Services,304358,Equipment and Materials,01/04/2020,3724374-30450,"1,236.00",JOHN R BUTTERFIELD LTD.
Neighbourhoods and Climate Change,Technical Services CM0300,Supplies and Services,304358,Equipment and Materials,01/04/2020,3724374-30452,"1,620.00",JOHN R BUTTERFIELD LTD.
Neighbourhoods and Climate Change,Technical Services CM0300,Supplies and Services,304358,Equipment and Materials,01/04/2020,3724374-30453,"1,303.50",JOHN R BUTTERFIELD LTD.
Neighbourhoods and Climate Change,Technical Services CM0300,Supplies and Services,304358,Equipment and Materials,01/04/2020,3724374-30455,"1,007.00",JOHN R BUTTERFIELD LTD.
Neighbourhoods and Climate Change,Technical Services CM0300,Supplies and Services,304358,Equipment and Materials,01/04/2020,3724374-30457,"1,091.00",JOHN R BUTTERFIELD LTD.
Neighbourhoods and Climate Change,Technical Services CM0300,Supplies and Services,304358,Equipment and Materials,01/04/2020,3724374-30470,"1,236.00",JOHN R BUTTERFIELD LTD.
Neighbourhoods and Climate Change,Technical Services CM0300,Supplies and Services,304358,Equipment and Materials,01/04/2020,3724374-30472,636.00,JOHN R BUTTERFIELD LTD.
Neighbourhoods and Climate Change,Technical Services CM0300,Supplies and Services,304358,Equipment and Materials,01/04/2020,3724374-30474,"1,477.00",JOHN R BUTTERFIELD LTD.
Neighbourhoods and Climate Change,Technical Services CM0300,Supplies and Services,304358,Equipment and Materials,01/04/2020,3724374-30475,"1,524.50",JOHN R BUTTERFIELD LTD.
Neighbourhoods and Climate Change,Technical Services CM0300,Supplies and Services,304358,Equipment and Materials,01/04/2020,3724374-30476,"1,040.00",JOHN R BUTTERFIELD LTD.
Neighbourhoods and Climate Change,Technical Services CM0300,Supplies and Services,304358,Equipment and Materials,01/04/2020,3724374-30477,708.00,JOHN R BUTTERFIELD LTD.
Neighbourhoods and Climate Change,Technical Services CM0300,Supplies and Services,304358,Equipment and Materials,01/04/2020,3724374-30478,"1,091.00",JOHN R BUTTERFIELD LTD.
Neighbourhoods and Climate Change,Technical Services CM0300,Supplies and Services,304358,Equipment and Materials,01/04/2020,3724374-30485,736.00,JOHN R BUTTERFIELD LTD.
Neighbourhoods and Climate Change,Technical Services CM0300,Supplies and Services,304358,Equipment and Materials,01/04/2020,3724374-30486,777.00,JOHN R BUTTERFIELD LTD.
Neighbourhoods and Climate Change,Technical Services CM0300,Supplies and Services,304358,Equipment and Materials,01/04/2020,3724374-30493,"1,236.00",JOHN R BUTTERFIELD LTD.
Neighbourhoods and Climate Change,Technical Services CM0300,Supplies and Services,304358,Equipment and Materials,01/04/2020,3724374-30496,"1,488.00",JOHN R BUTTERFIELD LTD.
Neighbourhoods and Climate Change,Technical Services CM0300,Supplies and Services,304358,Equipment and Materials,01/04/2020,3724374-30497,"1,211.50",JOHN R BUTTERFIELD LTD.
Neighbourhoods and Climate Change,Technical Services CM0300,Supplies and Services,304358,Equipment and Materials,01/04/2020,3724374-30498,996.00,JOHN R BUTTERFIELD LTD.
Neighbourhoods and Climate Change,Technical Services CM0300,Supplies and Services,304358,Equipment and Materials,01/04/2020,3724374-30502,649.00,JOHN R BUTTERFIELD LTD.
Neighbourhoods and Climate Change,Technical Services CM0300,Supplies and Services,304358,Equipment and Materials,01/04/2020,3724374-30504,"1,110.00",JOHN R BUTTERFIELD LTD.
Neighbourhoods and Climate Change,Technical Services CM0300,Supplies and Services,304358,Equipment and Materials,01/04/2020,3724374-30505,"1,236.00",JOHN R BUTTERFIELD LTD.
Neighbourhoods and Climate Change,Technical Services CM0300,Supplies and Services,304358,Equipment and Materials,01/04/2020,3724374-30507,"1,676.75",JOHN R BUTTERFIELD LTD.
Neighbourhoods and Climate Change,Technical Services CM0300,Supplies and Services,304358,Equipment and Materials,01/04/2020,3724374-30509,"1,072.00",JOHN R BUTTERFIELD LTD.
Neighbourhoods and Climate Change,Technical Services CM0300,Supplies and Services,304358,Equipment and Materials,01/04/2020,3724374-30525,"1,036.00",JOHN R BUTTERFIELD LTD.
Neighbourhoods and Climate Change,Technical Services CM0300,Supplies and Services,304358,Equipment and Materials,01/04/2020,3724374-30527,"1,354.50",JOHN R BUTTERFIELD LTD.
Neighbourhoods and Climate Change,Technical Services CM0300,Supplies and Services,304358,Equipment and Materials,01/04/2020,3724374-30528,"1,258.00",JOHN R BUTTERFIELD LTD.
Neighbourhoods and Climate Change,Technical Services CM0300,Supplies and Services,304358,Equipment and Materials,01/04/2020,3724374-30529,849.50,JOHN R BUTTERFIELD LTD.
Neighbourhoods and Climate Change,Technical Services CM0300,Supplies and Services,304358,Equipment and Materials,01/04/2020,3724374-30531,649.00,JOHN R BUTTERFIELD LTD.
Neighbourhoods and Climate Change,Technical Services CM0300,Supplies and Services,304358,Equipment and Materials,01/04/2020,3724374-30535,885.00,JOHN R BUTTERFIELD LTD.
Neighbourhoods and Climate Change,Technical Services CM0300,Supplies and Services,304358,Equipment and Materials,01/04/2020,3724374-30536,968.00,JOHN R BUTTERFIELD LTD.
Neighbourhoods and Climate Change,Technical Services CM0300,Supplies and Services,304358,Equipment and Materials,01/04/2020,3724374-30540,584.00,JOHN R BUTTERFIELD LTD.
Neighbourhoods and Climate Change,Technical Services CM0300,Supplies and Services,304358,Equipment and Materials,01/04/2020,3724375-0000082657,"3,365.50",JOHN WADE (HAULAGE) LTD.
Neighbourhoods and Climate Change,Technical Services CM0300,Supplies and Services,304358,Equipment and Materials,01/04/2020,3724384-3153,950.00,KEVIN SNOWDON GROUNDWORKS LTD.
Neighbourhoods and Climate Change,Technical Services CM0300,Supplies and Services,304358,Equipment and Materials,01/04/2020,3724384-3166,861.25,KEVIN SNOWDON GROUNDWORKS LTD.
Neighbourhoods and Climate Change,Technical Services CM0300,Supplies and Services,304358,Equipment and Materials,01/04/2020,3724384-3173,520.00,KEVIN SNOWDON GROUNDWORKS LTD.
Neighbourhoods and Climate Change,Technical Services CM0300,Supplies and Services,304358,Equipment and Materials,01/04/2020,3724384-3184,775.00,KEVIN SNOWDON GROUNDWORKS LTD.
Neighbourhoods and Climate Change,Technical Services CM0300,Supplies and Services,304358,Equipment and Materials,01/04/2020,3724384-3186,790.00,KEVIN SNOWDON GROUNDWORKS LTD.
Neighbourhoods and Climate Change,Technical Services CM0300,Supplies and Services,304358,Equipment and Materials,01/04/2020,3724384-3188,750.00,KEVIN SNOWDON GROUNDWORKS LTD.
Neighbourhoods and Climate Change,Technical Services CM0300,Supplies and Services,304358,Equipment and Materials,01/04/2020,3724384-3191,"1,006.00",KEVIN SNOWDON GROUNDWORKS LTD.
Neighbourhoods and Climate Change,Technical Services CM0300,Supplies and Services,304358,Equipment and Materials,01/04/2020,3724384-3197,750.00,KEVIN SNOWDON GROUNDWORKS LTD.
Neighbourhoods and Climate Change,Technical Services CM0300,Supplies and Services,304358,Equipment and Materials,01/04/2020,3724384-3199,790.00,KEVIN SNOWDON GROUNDWORKS LTD.
Neighbourhoods and Climate Change,Technical Services CM0300,Supplies and Services,304358,Equipment and Materials,01/04/2020,3724384-3203,851.00,KEVIN SNOWDON GROUNDWORKS LTD.
Neighbourhoods and Climate Change,Technical Services CM0300,Supplies and Services,304358,Equipment and Materials,01/04/2020,3724384-3204,851.00,KEVIN SNOWDON GROUNDWORKS LTD.
Neighbourhoods and Climate Change,Technical Services CM0300,Supplies and Services,304358,Equipment and Materials,01/04/2020,3724384-3205,925.00,KEVIN SNOWDON GROUNDWORKS LTD.
Neighbourhoods and Climate Change,Technical Services CM0300,Supplies and Services,304358,Equipment and Materials,01/04/2020,3724384-3206,"1,075.00",KEVIN SNOWDON GROUNDWORKS LTD.
Neighbourhoods and Climate Change,Technical Services CM0300,Supplies and Services,304358,Equipment and Materials,01/04/2020,3724384-3207,975.00,KEVIN SNOWDON GROUNDWORKS LTD.
Neighbourhoods and Climate Change,Technical Services CM0300,Supplies and Services,304358,Equipment and Materials,01/04/2020,3724384-3223,"1,219.00",KEVIN SNOWDON GROUNDWORKS LTD.
Neighbourhoods and Climate Change,Technical Services CM0300,Supplies and Services,304358,Equipment and Materials,01/04/2020,3724384-3224,775.00,KEVIN SNOWDON GROUNDWORKS LTD.
Neighbourhoods and Climate Change,Technical Services CM0300,Supplies and Services,304358,Equipment and Materials,01/04/2020,3724384-3228,"1,239.00",KEVIN SNOWDON GROUNDWORKS LTD.
Neighbourhoods and Climate Change,Technical Services CM0300,Supplies and Services,304358,Equipment and Materials,01/04/2020,3724411-MS2079,513.00,M SPENCE SURFACING LTD.
Neighbourhoods and Climate Change,Technical Services CM0300,Supplies and Services,304358,Equipment and Materials,01/04/2020,3724427-7001530883,"1,067.32",MOBILE MINI UK LTD.
Neighbourhoods and Climate Change,Technical Services CM0300,Supplies and Services,304358,Equipment and Materials,01/04/2020,3724427-7001561849,998.44,MOBILE MINI UK LTD.
Neighbourhoods and Climate Change,Technical Services CM0300,Supplies and Services,304221,Equipment and Materials,01/04/2020,3724436-0000085817,"2,642.88",NAL LTD.
Neighbourhoods and Climate Change,Technical Services CM0300,Supplies and Services,304221,Equipment and Materials,01/04/2020,3724464-315025,"3,883.93",PEART FENCING LTD.
Neighbourhoods and Climate Change,Technical Services CM0300,Supplies and Services,304221,Equipment and Materials,01/04/2020,3724554-9041717635,738.00,TARMAC TRADING LTD.
Neighbourhoods and Climate Change,Technical Services CM0300,Supplies and Services,304358,Equipment and Materials,01/04/2020,3724589-47847,"1,477.50",W MARLEY AGRICULTURAL CONTRACTORS LTD.
Neighbourhoods and Climate Change,Technical Services CM0300,Supplies and Services,304358,Equipment and Materials,01/04/2020,3724589-47848,860.00,W MARLEY AGRICULTURAL CONTRACTORS LTD.
Neighbourhoods and Climate Change,Technical Services CM0300,Supplies and Services,304358,Equipment and Materials,01/04/2020,3724589-47870,"2,075.00",W MARLEY AGRICULTURAL CONTRACTORS LTD.
Neighbourhoods and Climate Change,Technical Services CM0300,Supplies and Services,304358,Equipment and Materials,01/04/2020,3724617-8073,770.00,YOULL CONSTRUCTION LTD.
Neighbourhoods and Climate Change,Technical Services CM0300,Supplies and Services,304358,Equipment and Materials,01/04/2020,3724617-8090,780.63,YOULL CONSTRUCTION LTD.
Neighbourhoods and Climate Change,Technical Services CM0300,Supplies and Services,304358,Equipment and Materials,01/04/2020,3724617-8111,"1,430.00",YOULL CONSTRUCTION LTD.
"Regeneration, Economy and Growth",Corporate Property and Land,Premises,150015,Apportioned Exps of Operational Blds,01/04/2020,3724373-2510126,785.00,JOHN NIXON LTD.
"Regeneration, Economy and Growth",Corporate Property and Land,Third Party Payments,430100,Rendered by Private Contractors,01/04/2020,3724513-3435,"5,288.00",SCH SITE SERVICES LTD.
"Regeneration, Economy and Growth",Corporate Property and Land,Third Party Payments,430100,Rendered by Private Contractors,01/04/2020,3724303-11319,"5,349.00",FROSTREE LTD.
"Regeneration, Economy and Growth",Corporate Property and Land,Supplies and Services,304221,Equipment and Materials,01/04/2020,3724336-247526A,"1,007.00",HEATING WORLD OF SPARES LTD.
"Regeneration, Economy and Growth",Corporate Property and Land,Supplies and Services,304221,Equipment and Materials,01/04/2020,3724496-0000056128,"1,315.90",RINNAI UK LTD.
"Regeneration, Economy and Growth",Corporate Property and Land,Supplies and Services,304221,Equipment and Materials,01/04/2020,3724579-DCC/GT/141,"1,205.47",TYNE VALLEY FLOORING & CARPETS.
"Regeneration, Economy and Growth",Corporate Property and Land,Third Party Payments,430100,Rendered by Private Contractors,01/04/2020,3724579-DCC/GT/139,"1,010.11",TYNE VALLEY FLOORING & CARPETS.
"Regeneration, Economy and Growth",Corporate Property and Land,Third Party Payments,430100,Rendered by Private Contractors,01/04/2020,3724579-DCC/GT/142,586.08,TYNE VALLEY FLOORING & CARPETS.
"Regeneration, Economy and Growth",Corporate Property and Land,Third Party Payments,430100,Rendered by Private Contractors,01/04/2020,3724579-DCC/GT/143,588.19,TYNE VALLEY FLOORING & CARPETS.
"Regeneration, Economy and Growth",Corporate Property and Land,Supplies and Services,304221,Equipment and Materials,01/04/2020,3724525-2450356024,"3,012.00",SIKA LTD.
Neighbourhoods and Climate Change,Environmental Services,Supplies and Services,304358,Equipment and Materials,01/04/2020,3724409-19BB-MARCH2020,687.50,M & E & MR WALTON.
"Regeneration, Economy and Growth",Business Durham CL0850,Supplies and Services,352001,Conference Expenses,01/04/2020,3724493-5204996,"3,500.00",REACH PUBLISHING SERVICES LTD.
"Regeneration, Economy and Growth",Business Durham CL0850,Supplies and Services,338066,Services,01/04/2020,3724580-INV-13762,"8,636.36",UMI COMMERCIAL LTD.
"Regeneration, Economy and Growth",Development and Housing,Supplies and Services,336005,Advertising E336,01/04/2020,3724443-32807459,"1,418.33",NEWSQUEST (YORKSHIRE & NORTH EAST) LTD.
Neighbourhoods and Climate Change,Environmental Services,Cap Exp on Grants & Other Financial Assistance (REFCUS),918501,Exp assets not owned by authority,01/04/2020,3724213-55923,"15,848.65",CHEVIOT TREES LTD.
"Regeneration, Economy and Growth",Transport and Contracted Services,Third Party Payments,460151,Contract Payments,01/04/2020,3724364-24018,608.00,JACK COUPE & SONS LTD T/A COUPE LINE.
"Regeneration, Economy and Growth",Transport and Contracted Services,Third Party Payments,430106,Rendered by Private Contractors,01/04/2020,3724314-90/210,"6,090.98",GRAHAMS MOTOR SERVICES LTD.
"Regeneration, Economy and Growth",Transport and Contracted Services,Third Party Payments,430106,Rendered by Private Contractors,01/04/2020,3724314-90/211,"6,534.18",GRAHAMS MOTOR SERVICES LTD.
"Regeneration, Economy and Growth",Transport and Contracted Services,Third Party Payments,430106,Rendered by Private Contractors,01/04/2020,3724314-90212,"5,703.94",GRAHAMS MOTOR SERVICES LTD.
"Regeneration, Economy and Growth",Transport and Contracted Services,Third Party Payments,430106,Rendered by Private Contractors,01/04/2020,3724314-90213,"5,825.93",GRAHAMS MOTOR SERVICES LTD.
"Regeneration, Economy and Growth",Transport and Contracted Services,Third Party Payments,430106,Rendered by Private Contractors,01/04/2020,3724490-2101DATE,"4,315.84",R COOPER T/A DC TAXIS.
"Regeneration, Economy and Growth",Transport and Contracted Services,Supplies and Services,384540,Miscellaneous Expenses,01/04/2020,3724178-09586,"2,291.00",BISSELL DISPLAY.
"Regeneration, Economy and Growth",Transport and Contracted Services,Third Party Payments,430100,Rendered by Private Contractors,01/04/2020,3724489-131611,"1,504.80",QW SECURITY LTD.
"Regeneration, Economy and Growth",Transport and Contracted Services,Third Party Payments,430100,Rendered by Private Contractors,01/04/2020,3724489-131617,"6,269.94",QW SECURITY LTD.
"Regeneration, Economy and Growth",Transport and Contracted Services,Third Party Payments,430100,Rendered by Private Contractors,01/04/2020,3724489-131612,"1,101.23",QW SECURITY LTD.
"Regeneration, Economy and Growth",Transport and Contracted Services,Intangible Assets,917001,Software capitalised licence fees,01/04/2020,3724478-164415,768.00,PREMIER TRAFFIC MANAGEMENT LTD.
"Regeneration, Economy and Growth",Development and Housing,Fees,901002,Professional fees,01/04/2020,3724470-26539,"40,796.00",PINACL SOLUTIONS UK LTD.
"Regeneration, Economy and Growth",Transport and Contracted Services,Construction work A908,908105,Construction work,01/04/2020,3724439-1262277,"616,474.43",NETWORK RAIL.
"Regeneration, Economy and Growth",Development and Housing,Fees,901001,Internal fees,01/04/2020,3724343-S0016754,818.38,HOMES ENGLAND.
"Regeneration, Economy and Growth",Development and Housing,Cap Exp on Grants & Other Financial Assistance (REFCUS),918501,Exp assets not owned by authority,01/04/2020,3724422-RED-03-2020-231,"4,800.00",MICHAEL BOYD T/A INSTA PLUMBING & HEATING.
"Regeneration, Economy and Growth",Development and Housing,Cap Exp on Grants & Other Financial Assistance (REFCUS),918501,Exp assets not owned by authority,01/04/2020,3724558-RED-03-2020-249,"15,000.00",THE BELDAV GROUP LTD.
"Regeneration, Economy and Growth",Development and Housing,Supplies and Services,342051,Computers and Communications,01/04/2020,3724352-7028981,"2,712.50",IDOX SOFTWARE LTD.
Adult and Health Services,Commissioning inc Supporting People,Third Party Payments,441001,Supporting People E441,01/04/2020,3724331-1970135,"18,082.80",HARBOUR SUPPORT SERVICES.
Adult and Health Services,Commissioning inc Supporting People,Supplies and Services,338089,Services,01/04/2020,3724139-ASSFCDCC001,"6,300.00",ACCESS SKILLS LTD.
Adult and Health Services,Commissioning inc Supporting People,Supplies and Services,342033,Computers and Communications,01/04/2020,3724613-KW12748,559.40,XMA LTD.
Adult and Health Services,Commissioning inc Supporting People,Third Party Payments,440999,Other third party payments E440,01/04/2020,3724377-182890,"5,625.00",JOURNEY ENTERPRISES LTD.
Adult and Health Services,Commissioning inc Supporting People,Third Party Payments,440999,Other third party payments E440,01/04/2020,3724377-183101,"5,625.00",JOURNEY ENTERPRISES LTD.
Adult and Health Services,Commissioning inc Supporting People,Third Party Payments,479111,Purchase of Care,01/04/2020,3724412-2745,"11,757.00",MAIN - TAKING AUTISM PERSONALLY.
Adult and Health Services,Commissioning inc Supporting People,Third Party Payments,479101,Purchase of Care,01/04/2020,3724215-32729,"12,500.00",CHS HEALTHCARE.
Adult and Health Services,Commissioning inc Supporting People,Third Party Payments,479101,Purchase of Care,01/04/2020,3724215-32730,"7,000.00",CHS HEALTHCARE.
Adult and Health Services,Commissioning inc Supporting People,Supplies and Services,338370,Services,01/04/2020,3724421-45830,"22,880.00",MEDEQUIP ASSISTIVE TECHNOLOGY LTD.
Adult and Health Services,Head of Adults,Supplies and Services,338429,Services,01/04/2020,3724297-INV-0084,695.00,FOXTONS HOUSE CLEARANCE.
Adult and Health Services,Head of Adults,Transport,230005,Contract Hire,01/04/2020,3724347-41,617.53,HORNDALE TAXIS LTD.
Adult and Health Services,Head of Adults,Transport,230005,Contract Hire,01/04/2020,3724372-22-DM112-MARCH,990.00,JOHN CRAKE & SONS MINI BUSES LTD.
Adult and Health Services,Head of Adults,Transport,230005,Contract Hire,01/04/2020,3724387-007,"2,618.00",KULDEEP MAHIL T/A KOLARS CAB.
Adult and Health Services,Head of Adults,Transport,230005,Contract Hire,01/04/2020,3724430-EDB103-20,"1,056.60",MR CT WALKER T/A CW TAXIS.
Adult and Health Services,Head of Adults,Transport,230005,Contract Hire,01/04/2020,3724179-EAS193-MARCH,872.00,BLACKHALL TAXIS.
Adult and Health Services,Head of Adults,Transport,230005,Contract Hire,01/04/2020,3724240-THOR0320,"1,364.34",D IRVING T/A BJ TAXIS.
Adult and Health Services,Head of Adults,Transport,230005,Contract Hire,01/04/2020,3724440-255,"2,750.00",NEVILLE FORBES T/A FORBES TAXIS.
Adult and Health Services,Commissioning inc Supporting People,Supplies and Services,342051,Computers and Communications,01/04/2020,3724530-INV02546131,"1,775.10",SOFTCAT LTD.
Children and Young Peoples Services,Childrens Services Operational Support,Supplies and Services,338089,Services,01/04/2020,3724570-1099,741.60,TRACEY HILL TRAINING & CONSULTANCY LTD.
Adult and Health Services,Commissioning inc Supporting People,Supplies and Services,338089,Services,01/04/2020,3724192-1256,"1,639.64",BRITISH INSTITUTE OF HUMAN RIGHTS.
Adult and Health Services,Commissioning inc Supporting People,Supplies and Services,338089,Services,01/04/2020,3724587-INV-413,"1,800.00",VIVA ACCESS LTD.
"Regeneration, Economy and Growth",Culture Sport and Tourism,Vehicles Equipment Furniture and Fittings,912521,Purchase-furniture and fittings,01/04/2020,3724147-168779,"12,853.00",ALBANY OFFICE EQUIPMENT (WHOLESALE) LTD.
"Regeneration, Economy and Growth",Culture Sport and Tourism,Vehicles Equipment Furniture and Fittings,912529,Purchase-equipment,01/04/2020,3724201-7755,"1,237.70",CASH CONTROL SYSTEMS.
"Regeneration, Economy and Growth",Culture Sport and Tourism,Supplies and Services,312013,Newspapers books and periodicals E312,01/04/2020,3724598-3014,"9,970.00",WF HOWES LTD.
"Regeneration, Economy and Growth",Culture Sport and Tourism,Fees,901002,Professional fees,01/04/2020,3724287-133609/03,"1,045.00",FAIRHURST (CONSULTING ENGINEERS).
"Regeneration, Economy and Growth",Culture Sport and Tourism,Supplies and Services,384700,Miscellaneous Expenses,01/04/2020,3724498-2019-016,"1,500.00",ROBIN FEARON T/A WE LOVE MEDIA.
"Regeneration, Economy and Growth",Culture Sport and Tourism,Supplies and Services,338047,Services,01/04/2020,3724151-AC0072,"1,148.40",ALSO CREATIVE LLP.
"Regeneration, Economy and Growth",Culture Sport and Tourism,Supplies and Services,338047,Services,01/04/2020,3724245-45,"1,489.58",DAVID DALY ASSOCIATES.
"Regeneration, Economy and Growth",Culture Sport and Tourism,Supplies and Services,338047,Services,01/04/2020,3724245-46,"1,489.58",DAVID DALY ASSOCIATES.
"Regeneration, Economy and Growth",Culture Sport and Tourism,Supplies and Services,338047,Services,01/04/2020,3724366-12/03/2020,"1,489.58",REDACTED - PAYMENT TO INDIVIDUAL
"Regeneration, Economy and Growth",Culture Sport and Tourism,Supplies and Services,338047,Services,01/04/2020,3724366-13/03/2020,"1,489.58",REDACTED - PAYMENT TO INDIVIDUAL
Adult and Health Services,Public Health CC0450,Premises,145009,Cleaning and Domestic Supplies,01/04/2020,3724486-INV-1829,637.20,QUALITY CLEANING SERVICES (NORTHERN) LTD.
Adult and Health Services,Public Health CC0450,Supplies and Services,384899,Miscellaneous Expenses,01/04/2020,3724444-7010501420,"10,000.00",NHS NORTH DURHAM CCG.
Resources BK0010,Finance & Transactional Services,Supplies and Services,338066,Services,01/04/2020,3724220-C/BN194211,"4,688.15",CIVICA UK LTD.
Resources BK0010,Finance & Transactional Services,Supplies and Services,384999,Miscellaneous Expenses,01/04/2020,3724479-16822A-DURHAMCOUNTYCOUNCIL-0120,"4,166.29",PREPAID FINANCIAL SERVICES LTD.
Resources BK0010,Finance & Transactional Services,Supplies and Services,384999,Miscellaneous Expenses,01/04/2020,3724479-17172-DURHAMCOUNTYCOUNCIL-0220,"3,405.71",PREPAID FINANCIAL SERVICES LTD.
Resources BK0010,Digital and Customer Services,Supplies and Services,304252,Equipment and Materials,01/04/2020,3724150-10303,"2,995.00",ALPHATEC 2000 LTD.
Resources BK0010,Digital and Customer Services,Supplies and Services,342051,Computers and Communications,01/04/2020,3724352-7028968,"1,050.00",IDOX SOFTWARE LTD.
Resources BK0010,Digital and Customer Services,Supplies and Services,338066,Services,01/04/2020,3724220-C/PY194179,"5,160.00",CIVICA UK LTD.
Resources BK0010,Digital and Customer Services,Supplies and Services,342051,Computers and Communications,01/04/2020,3724158-17280,"4,125.00",AUDITWARE SYSTEMS LTD.
Resources BK0010,Digital and Customer Services,Supplies and Services,342051,Computers and Communications,01/04/2020,3724530-INV02541998,"2,443.21",SOFTCAT LTD.
Resources BK0010,Digital and Customer Services,Supplies and Services,342033,Computers and Communications,01/04/2020,3724551-132883,901.96,SWITCHSHOP LTD.
Resources BK0010,Digital and Customer Services,Supplies and Services,342033,Computers and Communications,01/04/2020,3724551-132945,744.57,SWITCHSHOP LTD.
Resources BK0010,Digital and Customer Services,Supplies and Services,342033,Computers and Communications,01/04/2020,3724551-132946,744.57,SWITCHSHOP LTD.
Resources BK0010,Digital and Customer Services,Supplies and Services,342033,Computers and Communications,01/04/2020,3724551-132947,744.57,SWITCHSHOP LTD.
Resources BK0010,Digital and Customer Services,Supplies and Services,342033,Computers and Communications,01/04/2020,3724551-132948,744.57,SWITCHSHOP LTD.
Resources BK0010,Digital and Customer Services,Supplies and Services,342033,Computers and Communications,01/04/2020,3724551-132958,744.57,SWITCHSHOP LTD.
Resources BK0010,Digital and Customer Services,Supplies and Services,342051,Computers and Communications,01/04/2020,3724551-132942,"1,632.00",SWITCHSHOP LTD.
Resources BK0010,Digital and Customer Services,Supplies and Services,342051,Computers and Communications,01/04/2020,3724356-4783274,"1,265.98",INSIGHT DIRECT (UK) LTD.
Resources BK0010,Legal & Democratic Services,Supplies and Services,338025,Services,01/04/2020,3724223-S44954-01449,"2,080.00",CO-OPERATIVE FUNERAL CARE.
Resources BK0010,Legal & Democratic Services,Supplies and Services,338101,Services,01/04/2020,3724257-PB159,"4,082.70",DR PAUL BARRETT.
Resources - C A C,LCTSS,Third Party Payments,440070,Other third party payments E440,01/04/2020,3724165-RES-04-2020-032A,"1,398.00",BEARPARK PARISH COUNCIL.
Resources - C A C,LCTSS,Third Party Payments,440070,Other third party payments E440,01/04/2020,3724167-RES-04-2020-005A,"3,529.00",BELMONT PARISH COUNCIL.
Resources - C A C,LCTSS,Third Party Payments,440070,Other third party payments E440,01/04/2020,3724175-RES-04-2020-060A,"8,889.00",BISHOP AUCKLAND TOWN COUNCIL.
Resources - C A C,LCTSS,Third Party Payments,440070,Other third party payments E440,01/04/2020,3724177-RES-04-2020-109A,"3,198.00",BISHOP MIDDLEHAM PARISH COUNCIL.
Resources - C A C,LCTSS,Third Party Payments,440070,Other third party payments E440,01/04/2020,3724184-RES-04-2020-062A,"1,358.00",BOURNMOOR PARISH COUNCIL.
Resources - C A C,LCTSS,Third Party Payments,440070,Other third party payments E440,01/04/2020,3724196-RES-04-2020-051A,505.00,BURNHOPE PARISH COUNCIL.
Resources - C A C,LCTSS,Third Party Payments,440070,Other third party payments E440,01/04/2020,3724210-RES-04-2020-108A,"6,675.00",CHARTER TRUSTEES FOR THE CITY OF DURHAM.
Resources - C A C,LCTSS,Third Party Payments,440070,Other third party payments E440,01/04/2020,3724225-RES-04-2020-056A,"3,679.00",COCKFIELD PARISH COUNCIL.
Resources - C A C,LCTSS,Third Party Payments,440070,Other third party payments E440,01/04/2020,3724229-RES-04-2020-019A,"21,304.00",CORNFORTH PARISH COUNCIL.
Resources - C A C,LCTSS,Third Party Payments,440070,Other third party payments E440,01/04/2020,3724230-RES-04-2020-042A,967.00,CORNSAY PARISH COUNCIL.
Resources - C A C,LCTSS,Third Party Payments,440070,Other third party payments E440,01/04/2020,3724238-RES-04-2020-067A,843.00,CROXDALE & HETT PARISH COUNCIL.
Resources - C A C,LCTSS,Third Party Payments,440070,Other third party payments E440,01/04/2020,3724242-RES-04-2020-037A,579.00,DALTON LE DALE PARISH COUNCIL.
Resources - C A C,LCTSS,Third Party Payments,440070,Other third party payments E440,01/04/2020,3724263-RES-04-2020-018A,"25,501.00",EASINGTON COLLIERY PARISH COUNCIL.
Resources - C A C,LCTSS,Third Party Payments,440070,Other third party payments E440,01/04/2020,3724266-RES-04-2020-069A,"1,017.00",EDMONDSLEY PARISH COUNCIL.
Resources - C A C,LCTSS,Third Party Payments,440070,Other third party payments E440,01/04/2020,3724273-RES-04-2020-071A,"1,985.00",ELDON PARISH COUNCIL.
Resources - C A C,LCTSS,Third Party Payments,440070,Other third party payments E440,01/04/2020,3724280-RES-04-2020-028A,"1,695.00",ESH PARISH COUNCIL.
Resources - C A C,LCTSS,Third Party Payments,440070,Other third party payments E440,01/04/2020,3724283-RES-04-2020-072A,"1,883.00",EVENWOOD & BARONY PARISH COUNCIL.
Resources - C A C,LCTSS,Third Party Payments,440070,Other third party payments E440,01/04/2020,3724288-RES-04-2020-001A,"61,318.00",FERRYHILL TOWN COUNCIL.
Resources - C A C,LCTSS,Third Party Payments,440070,Other third party payments E440,01/04/2020,3724293-RES-04-2020-023A,"11,470.00",FISHBURN PARISH COUNCIL.
Resources - C A C,LCTSS,Third Party Payments,440070,Other third party payments E440,01/04/2020,3724298-RES-04-2020-074A,533.00,FRAMWELLGATE MOOR PARISH COUNCIL.
Resources - C A C,LCTSS,Third Party Payments,440070,Other third party payments E440,01/04/2020,3724315-RES-04-2020-002A,"82,518.00",GREAT AYCLIFFE TOWN COUNCIL.
Resources - C A C,LCTSS,Third Party Payments,440070,Other third party payments E440,01/04/2020,3724316-RES-04-2020-076A,"2,047.00",GREAT LUMLEY PARISH COUNCIL.
Resources - C A C,LCTSS,Third Party Payments,440070,Other third party payments E440,01/04/2020,3724317-RES-04-2020-075A,"4,461.00",GREATER WILLINGTON TOWN COUNCIL.
Resources - C A C,LCTSS,Third Party Payments,440070,Other third party payments E440,01/04/2020,3724333-RES-04-2020-048A,"9,128.00",HASWELL PARISH COUNCIL.
Resources - C A C,LCTSS,Third Party Payments,440070,Other third party payments E440,01/04/2020,3724346-RES-04-2020-007A,"46,391.50",HORDEN PARISH COUNCIL.
Resources - C A C,LCTSS,Third Party Payments,440070,Other third party payments E440,01/04/2020,3724348-RES-04-2020-078A,"2,971.00",HUTTON HENRY PARISH COUNCIL.
Resources - C A C,LCTSS,Third Party Payments,440070,Other third party payments E440,01/04/2020,3724382-RES-04-2020-081A,"1,681.00",KELLOE PARISH COUNCIL.
Resources - C A C,LCTSS,Third Party Payments,440070,Other third party payments E440,01/04/2020,3724392-RES-04-2020-025A,964.00,LANCHESTER PARISH COUNCIL.
Resources - C A C,LCTSS,Third Party Payments,440070,Other third party payments E440,01/04/2020,3724428-RES-04-2020-031A,"20,982.00",MONK HESLEDEN PARISH COUNCIL.
Resources - C A C,LCTSS,Third Party Payments,440070,Other third party payments E440,01/04/2020,3724434-RES-04-2020-050A,"21,187.50",MURTON PARISH COUNCIL.
Resources - C A C,LCTSS,Third Party Payments,440070,Other third party payments E440,01/04/2020,3724467-RES-04-2020-003A,"132,138.00",PETERLEE TOWN COUNCIL.
Resources - C A C,LCTSS,Third Party Payments,440070,Other third party payments E440,01/04/2020,3724507-RES-04-2020-026A,"4,580.00",SACRISTON PARISH COUNCIL.
Resources - C A C,LCTSS,Third Party Payments,440070,Other third party payments E440,01/04/2020,3724515-RES-04-2020-041A,"84,134.50",SEAHAM TOWN COUNCIL.
Resources - C A C,LCTSS,Third Party Payments,440070,Other third party payments E440,01/04/2020,3724521-RES-04-2020-029A,"3,532.00",SHERBURN VILLAGE PARISH COUNCIL.
Resources - C A C,LCTSS,Third Party Payments,440070,Other third party payments E440,01/04/2020,3724522-RES-04-2020-010A,"41,745.00",SHILDON TOWN COUNCIL.
Resources - C A C,LCTSS,Third Party Payments,440070,Other third party payments E440,01/04/2020,3724533-RES-04-2020-020A,"10,084.00",SOUTH HETTON PARISH COUNCIL.
Resources - C A C,LCTSS,Third Party Payments,440070,Other third party payments E440,01/04/2020,3724539-RES-04-2020-096A,"51,728.50",STANLEY TOWN COUNCIL.
Resources - C A C,LCTSS,Third Party Payments,440070,Other third party payments E440,01/04/2020,3724563-RES-04-2020-098A,"8,739.00",THORNLEY PARISH COUNCIL.
Resources - C A C,LCTSS,Third Party Payments,440070,Other third party payments E440,01/04/2020,3724568-RES-04-2020-099A,"4,091.00",TOW LAW TOWN COUNCIL.
Resources - C A C,LCTSS,Third Party Payments,440070,Other third party payments E440,01/04/2020,3724573-RES-04-2020-054A,"9,531.00",TRIMDON FOUNDRY PARISH COUNCIL.
Resources - C A C,LCTSS,Third Party Payments,440070,Other third party payments E440,01/04/2020,3724574-RES-04-2020-022A,"11,767.00",TRIMDON PARISH COUNCIL.
Resources - C A C,LCTSS,Third Party Payments,440070,Other third party payments E440,01/04/2020,3724584-RES-04-2020-100A,"1,646.00",URPETH PARISH COUNCIL.
Resources - C A C,LCTSS,Third Party Payments,440070,Other third party payments E440,01/04/2020,3724596-RES-04-2020-101A,"4,348.00",WEST AUCKLAND PARISH COUNCIL.
Resources - C A C,LCTSS,Third Party Payments,440070,Other third party payments E440,01/04/2020,3724597-RES-04-2020-102A,"2,759.00",WEST RAINTON PARISH COUNCIL.
Resources - C A C,LCTSS,Third Party Payments,440070,Other third party payments E440,01/04/2020,3724600-RES-04-2020-055A,"14,766.00",WHEATLEY HILL PARISH COUNCIL.
Resources - C A C,LCTSS,Third Party Payments,440070,Other third party payments E440,01/04/2020,3724605-RES-04-2020-044A,"8,209.00",WINGATE PARISH COUNCIL.
Resources - C A C,LCTSS,Third Party Payments,440070,Other third party payments E440,01/04/2020,3724608-RES-04-2020-106A,"1,176.00",WITTON GILBERT PARISH COUNCIL.
Resources - C A C,LCTSS,Third Party Payments,440070,Other third party payments E440,01/04/2020,3724611-RES-04-2020-014A,724.00,WOLSINGHAM PARISH COUNCIL.
Resources BK0010,Legal & Democratic Services,Supplies and Services,338042,Services,01/04/2020,3724251-356266/INVDR698,"1,100.00",DERE STREET BARRISTERS.
Resources BK0010,Legal & Democratic Services,Supplies and Services,338042,Services,01/04/2020,3724575-266055/INVKF280,"3,500.00",TRINITY CHAMBERS.
Resources BK0010,Legal & Democratic Services,Supplies and Services,338043,Services,01/04/2020,3724591-760128,888.00,WARD HADAWAY.
Children and Young Peoples Services,Head of Education and Skills,Supplies and Services,384199,Miscellaneous Expenses,01/04/2020,3724517-INV-000092,"1,363.82",SEDGEFIELD SCHOOL SPORT PARTNERSHIP CIC.
Children and Young Peoples Services,Head of Education and Skills,Transport,230012,Contract Hire,01/04/2020,3724181-28854,"2,510.40",BLUELINE TAXIS.
Children and Young Peoples Services,Head of Education and Skills,Construction work A908,908105,Construction work,01/04/2020,3724405-110609,800.00,LUCION ENVIRONMENTAL LLP LTD.
Children and Young Peoples Services,Head of Education and Skills,Transport,230007,Contract Hire,01/04/2020,3724540-2-1212,677.84,STANLEY TRAVEL (NORTH EAST) LTD.
Children and Young Peoples Services,Head of Education and Skills,Fees,901002,Professional fees,01/04/2020,3724502-TEC543589,"11,344.00",RPS CONSULTING SERVICES LTD.
Children and Young Peoples Services,Head of Education and Skills,Transport,230034,Contract Hire,01/04/2020,3724399-4246,"1,308.55",LINCAB TAXIS.
Children and Young Peoples Services,Head of Education and Skills,Construction work A908,908105,Construction work,01/04/2020,3724476-900878826,"22,847.75",PORTAKABIN LTD.
Children and Young Peoples Services,Head of Education and Skills,Transport,230009,Contract Hire,01/04/2020,3724540-2-7370,518.00,STANLEY TRAVEL (NORTH EAST) LTD.
Children and Young Peoples Services,Head of Education and Skills,Transport,230035,Contract Hire,01/04/2020,3724431-21/2020,746.00,MR MARIUSZ LASOTA T/A BM TAXI.
Children and Young Peoples Services,Head of Education and Skills,Transport,230009,Contract Hire,01/04/2020,313748-COVID19-EST-MARCH-CYPS-391-7363,880.00,DAVID WILKINSON...
Children and Young Peoples Services,Head of Education and Skills,Transport,230035,Contract Hire,01/04/2020,3724540-2-1198,"1,478.52",STANLEY TRAVEL (NORTH EAST) LTD.
Children and Young Peoples Services,Head of Education and Skills,Transport,230008,Contract Hire,01/04/2020,3724540-2-N085,873.20,STANLEY TRAVEL (NORTH EAST) LTD.
Children and Young Peoples Services,Head of Education and Skills,Transport,230008,Contract Hire,01/04/2020,3724540-2-N213,799.20,STANLEY TRAVEL (NORTH EAST) LTD.
Children and Young Peoples Services,Head of Education and Skills,Transport,230008,Contract Hire,01/04/2020,3724540-2-N226,761.46,STANLEY TRAVEL (NORTH EAST) LTD.
Children and Young Peoples Services,Head of Education and Skills,Transport,230008,Contract Hire,01/04/2020,3724181-28899,"1,751.00",BLUELINE TAXIS.
Children and Young Peoples Services,Head of Education and Skills,Transport,230008,Contract Hire,01/04/2020,3724181-28870,"1,290.00",BLUELINE TAXIS.
Children and Young Peoples Services,Head of Education and Skills,Transport,230008,Contract Hire,01/04/2020,313746-COVID19-EST-MARCH-CYPS-990-N010,"1,633.72",C STEWART.
Children and Young Peoples Services,Head of Education and Skills,Transport,230008,Contract Hire,01/04/2020,3724540-2-N081,"1,317.20",STANLEY TRAVEL (NORTH EAST) LTD.
Children and Young Peoples Services,Head of Education and Skills,Transport,230006,Contract Hire,01/04/2020,3724181-28855,"2,279.05",BLUELINE TAXIS.
Children and Young Peoples Services,Head of Education and Skills,Transport,230016,Contract Hire,01/04/2020,3724181-28868,"1,496.00",BLUELINE TAXIS.
Children and Young Peoples Services,Head of Education and Skills,Transport,230008,Contract Hire,01/04/2020,3724181-28830,"1,349.00",BLUELINE TAXIS.
Children and Young Peoples Services,Head of Education and Skills,Transport,230008,Contract Hire,01/04/2020,3724181-28831,803.03,BLUELINE TAXIS.
Children and Young Peoples Services,Head of Education and Skills,Transport,230008,Contract Hire,01/04/2020,3724540-36876,"4,214.25",STANLEY TRAVEL (NORTH EAST) LTD.
Dedicated Schools Grant BG0015,DSG High Needs Block,Third Party Payments,410037,Rendered by Other Local Authorities,01/04/2020,3724161-BPSI205,"50,557.68",BARBARA PRIESTMAN ACADEMY.
Dedicated Schools Grant BG0015,DSG High Needs Block,Third Party Payments,410037,Rendered by Other Local Authorities,01/04/2020,3724453-INV-0783,751.50,NUDGE EDUCATION LTD.
Dedicated Schools Grant BG0015,DSG High Needs Block,Third Party Payments,410037,Rendered by Other Local Authorities,01/04/2020,3724453-INV-0811,"1,002.00",NUDGE EDUCATION LTD.
Dedicated Schools Grant BG0015,DSG High Needs Block,Third Party Payments,410037,Rendered by Other Local Authorities,01/04/2020,3724453-INV-0877,751.50,NUDGE EDUCATION LTD.
Children and Young Peoples Services,Head of Education and Skills,Transport,230010,Contract Hire,01/04/2020,3724540-2-BL003,"1,191.40",STANLEY TRAVEL (NORTH EAST) LTD.
Children and Young Peoples Services,Head of Education and Skills,Supplies and Services,338027,Services,01/04/2020,3724152-4100684562-31/03/2020,500.00,AMANDA STEWART (CONSULTANT).
Children and Young Peoples Services,Head of Education and Skills,Transport,230006,Contract Hire,01/04/2020,3724540-2-F614,"1,420.80",STANLEY TRAVEL (NORTH EAST) LTD.
Children and Young Peoples Services,Head of Education and Skills,Supplies and Services,338094,Services,01/04/2020,3724285-0000000280,551.25,EXCEL ACADEMY PARTNERSHIP T/A FRAMWELLGATE SCHOOL DURHAM.
Children and Young Peoples Services,Head of Education and Skills,Supplies and Services,338094,Services,01/04/2020,3724471-17236/14,866.61,PIONEERING CARE PARTNERSHIP.
Dedicated Schools Grant BG0015,DSG High Needs Block,Transport,230009,Contract Hire,01/04/2020,313748-COVID19-EST-MARCH-CYPS-893-G001,"1,960.00",DAVID WILKINSON...
Children and Young Peoples Services,Head of Childrens Social Care,Third Party Payments,440038,Other third party payments E440,01/04/2020,3724480-EH032020,"12,622.89",PRIMETIME CARE SERVICES LTD.
Children and Young Peoples Services,Head of Childrens Social Care,Third Party Payments,440046,Other third party payments E440,01/04/2020,3724595-INV-0179,"1,951.68",WE CARE RECRUITMENT SOLUTIONS LTD.
Children and Young Peoples Services,Head of Childrens Social Care,Third Party Payments,440046,Other third party payments E440,01/04/2020,3724595-INV-0219,621.52,WE CARE RECRUITMENT SOLUTIONS LTD.
Children and Young Peoples Services,Head of Childrens Social Care,Transport,230005,Contract Hire,01/04/2020,3724545-SI-155,"1,540.00",STEVEN PRATT T/A PTL TAXIS DURHAM.
Children and Young Peoples Services,Head of Childrens Social Care,Supplies and Services,384534,Miscellaneous Expenses,01/04/2020,3724457-21430,559.48,PA PROMOTIONS LTD.
Children and Young Peoples Services,Head of Childrens Social Care,Supplies and Services,384500,Miscellaneous Expenses,01/04/2020,3724614-1063,680.00,YORKSHIRE PLAY THERAPY (CHILDRENS THERAPUETIC SERVICE).
Children and Young Peoples Services,Head of Childrens Social Care,Supplies and Services,384199,Miscellaneous Expenses,01/04/2020,3724618-1870,"2,000.00",YOURFILM LTD.
Children and Young Peoples Services,Head of Childrens Social Care,Transport,230005,Contract Hire,01/04/2020,3724565-RES555,912.00,TONYS TAXIS (A BIRCH).
Children and Young Peoples Services,Head of Childrens Social Care,Transport,230005,Contract Hire,01/04/2020,3724565-RES556,980.00,TONYS TAXIS (A BIRCH).
Children and Young Peoples Services,Head of Early Help Inclusion & Vulnerable Children.,Third Party Payments,410037,Rendered by Other Local Authorities,01/04/2020,3724445-28754,"1,440.00",NOMS AGENCY.
Children and Young Peoples Services,Head of Early Help Inclusion & Vulnerable Children.,Supplies and Services,342051,Computers and Communications,01/04/2020,3724350-200305,"1,103.00",I2N LTD.
Children and Young Peoples Services,Head of Early Help Inclusion & Vulnerable Children.,Supplies and Services,308011,Furniture,01/04/2020,3724233-53503,556.90,CRAFTWORK UPHOLSTERY LTD.
Children and Young Peoples Services,Head of Early Help Inclusion & Vulnerable Children.,Premises,108251,Service Repairs and Maintenance,01/04/2020,3724154-300004,"35,344.06",APEX RADIO SYSTEMS LTD.
Children and Young Peoples Services,Head of Early Help Inclusion & Vulnerable Children.,Supplies and Services,384302,Miscellaneous Expenses,01/04/2020,3724599-1415,"1,495.00",WHARTON LANDSCAPES.
Resources BK0010,COVID19 - Resources,Supplies and Services,342051,Computers and Communications,01/04/2020,3724413-12469655,"10,205.00",MAINTEL EUROPE LTD.
Resources BK0010,COVID19 - Resources,Supplies and Services,342033,Computers and Communications,01/04/2020,3724551-132979,"36,078.90",SWITCHSHOP LTD.
Neighbourhoods and Climate Change,Environmental Services,Third Party Payments,430100,Rendered by Private Contractors,02/04/2020,3724632-38517,650.00,BGP CONSULTING LTD T/A BILLINGHURST GEORGE & PARTNERS.
Neighbourhoods and Climate Change,Environmental Services,Supplies and Services,304221,Equipment and Materials,02/04/2020,3724781-RSIN0331893,"4,787.00",RIGBY TAYLOR LTD.
Neighbourhoods and Climate Change,Environmental Services,Supplies and Services,304259,Equipment and Materials,02/04/2020,3724781-RSIN0331896,662.50,RIGBY TAYLOR LTD.
Neighbourhoods and Climate Change,Environmental Services,Supplies and Services,304259,Equipment and Materials,02/04/2020,3724781-RSIN0332071,662.50,RIGBY TAYLOR LTD.
Neighbourhoods and Climate Change,Environmental Services,Transport,230005,Contract Hire,02/04/2020,3724756-SL05972071INV,527.51,NORTHGATE VEHICLE HIRE LTD.
Neighbourhoods and Climate Change,Environmental Services,Transport,230005,Contract Hire,02/04/2020,3724815-20806,975.00,TRASH UK LTD.
"Regeneration, Economy and Growth",Culture Sport and Tourism,Supplies and Services,304259,Equipment and Materials,02/04/2020,3724791-0000012907,583.84,SITELINK COMMUNICATIONS LTD.
"Regeneration, Economy and Growth",Culture Sport and Tourism,Supplies and Services,384167,Miscellaneous Expenses,02/04/2020,3724775-9100,"1,450.00",QUEST & NBS.
"Regeneration, Economy and Growth",Culture Sport and Tourism,Supplies and Services,304337,Equipment and Materials,02/04/2020,3724834-I-0643480,822.40,ZOGGS INTERNATIONAL LTD.
Neighbourhoods and Climate Change,Environmental Services,Transport,210057,Repair and Maintenance of Vehicles,02/04/2020,3724642-240072,795.58,CARRS BILLINGTON AGRICULTURE.
Neighbourhoods and Climate Change,Environmental Services,Transport,210057,Repair and Maintenance of Vehicles,02/04/2020,3724642-240031,727.64,CARRS BILLINGTON AGRICULTURE.
Neighbourhoods and Climate Change,Environmental Services,Transport,230005,Contract Hire,02/04/2020,3724683-8157475,876.00,ENTERPRISE FLEX-E-RENT T/A BURNT TREE GROUP LTD.
Neighbourhoods and Climate Change,Environmental Services,Transport,215022,Running Costs of Vehicles,02/04/2020,3724759-569982,818.19,OIL NRG LTD.
"Regeneration, Economy and Growth",Corporate Property and Land,Third Party Payments,430100,Rendered by Private Contractors,02/04/2020,3724794-12209776,"3,082.69",SOUTH TYNESIDE COUNCIL.
"Regeneration, Economy and Growth",Corporate Property and Land,Supplies and Services,384159,Miscellaneous Expenses,02/04/2020,3724799-15670,"3,769.56",STEADFAST SECURITY SOLUTIONS LTD.
Neighbourhoods and Climate Change,Environmental Services,Transport,215022,Running Costs of Vehicles,02/04/2020,3724759-567075,"3,893.39",OIL NRG LTD.
"Regeneration, Economy and Growth",Culture Sport and Tourism,Supplies and Services,384999,Miscellaneous Expenses,02/04/2020,3724674-DS0212,"10,000.00",DS MEDIA & EVENTS LTD.
Neighbourhoods and Climate Change,Environmental Services,Transport,215005,Running Costs of Vehicles,02/04/2020,3724759-562991,"1,806.20",OIL NRG LTD.
Neighbourhoods and Climate Change,Technical Services CM0300,Stock A926,926900,Stock in hand-Inventory system,02/04/2020,3724699-06/057598,906.78,GREENHAM TRADING LTD.
Neighbourhoods and Climate Change,Technical Services CM0300,Stock A926,926900,Stock in hand-Inventory system,02/04/2020,3724727-9500078696,"4,048.00",LC PACKAGING UK LTD.
Neighbourhoods and Climate Change,Technical Services CM0300,Stock A926,926900,Stock in hand-Inventory system,02/04/2020,3724813-103243,660.00,TOTAL RENTAL SOLUTIONS.
Neighbourhoods and Climate Change,Technical Services CM0300,Stock A926,926900,Stock in hand-Inventory system,02/04/2020,3724813-103244,"1,330.00",TOTAL RENTAL SOLUTIONS.
Neighbourhoods and Climate Change,Technical Services CM0300,Stock A926,926900,Stock in hand-Inventory system,02/04/2020,3724813-103245,"2,250.00",TOTAL RENTAL SOLUTIONS.
Neighbourhoods and Climate Change,Technical Services CM0300,Stock A926,926900,Stock in hand-Inventory system,02/04/2020,3724813-103247,"3,782.40",TOTAL RENTAL SOLUTIONS.
Neighbourhoods and Climate Change,Technical Services CM0300,Stock A926,926900,Stock in hand-Inventory system,02/04/2020,3724813-103248,"12,380.00",TOTAL RENTAL SOLUTIONS.
Neighbourhoods and Climate Change,Technical Services CM0300,Stock A926,926900,Stock in hand-Inventory system,02/04/2020,3724813-103249,"1,344.00",TOTAL RENTAL SOLUTIONS.
Neighbourhoods and Climate Change,Technical Services CM0300,Stock A926,926900,Stock in hand-Inventory system,02/04/2020,3724813-103250,"6,750.00",TOTAL RENTAL SOLUTIONS.
Neighbourhoods and Climate Change,Technical Services CM0300,Stock A926,926900,Stock in hand-Inventory system,02/04/2020,3724813-103251,"1,189.50",TOTAL RENTAL SOLUTIONS.
Neighbourhoods and Climate Change,Technical Services CM0300,Stock A926,926900,Stock in hand-Inventory system,02/04/2020,3724813-103252,"9,000.00",TOTAL RENTAL SOLUTIONS.
Neighbourhoods and Climate Change,Technical Services CM0300,Stock A926,926900,Stock in hand-Inventory system,02/04/2020,3724813-103253,"9,904.00",TOTAL RENTAL SOLUTIONS.
Neighbourhoods and Climate Change,Technical Services CM0300,Stock A926,926900,Stock in hand-Inventory system,02/04/2020,3724813-103254,"5,138.27",TOTAL RENTAL SOLUTIONS.
Neighbourhoods and Climate Change,Technical Services CM0300,Stock A926,926900,Stock in hand-Inventory system,02/04/2020,3724813-103256,"1,212.48",TOTAL RENTAL SOLUTIONS.
Neighbourhoods and Climate Change,Technical Services CM0300,Stock A926,926900,Stock in hand-Inventory system,02/04/2020,3724813-103257,"1,786.00",TOTAL RENTAL SOLUTIONS.
Neighbourhoods and Climate Change,Technical Services CM0300,Third Party Payments,430100,Rendered by Private Contractors,02/04/2020,3724754-DI20336702,942.84,NORTHERN POWERGRID (NORTHEAST) LTD.
Neighbourhoods and Climate Change,Technical Services CM0300,Supplies and Services,304221,Equipment and Materials,02/04/2020,3724684-2002\211,970.06,EPPLETON QUARRY PRODUCTS LTD.
Neighbourhoods and Climate Change,Technical Services CM0300,Supplies and Services,304221,Equipment and Materials,02/04/2020,3724684-2002\282,646.96,EPPLETON QUARRY PRODUCTS LTD.
Neighbourhoods and Climate Change,Technical Services CM0300,Supplies and Services,304221,Equipment and Materials,02/04/2020,3724684-2002\284,921.71,EPPLETON QUARRY PRODUCTS LTD.
Neighbourhoods and Climate Change,Technical Services CM0300,Supplies and Services,304221,Equipment and Materials,02/04/2020,3724719-0113/00052501,853.20,JT DOVE LTD.
Neighbourhoods and Climate Change,Technical Services CM0300,Third Party Payments,430100,Rendered by Private Contractors,02/04/2020,3724772-131480,550.00,PROTECTOR SECURITY GROUP LTD.
Neighbourhoods and Climate Change,Technical Services CM0300,Supplies and Services,304221,Equipment and Materials,02/04/2020,3724801-1221,"1,293.36",STONEGRAVE AGGREGATES LTD.
Neighbourhoods and Climate Change,Technical Services CM0300,Supplies and Services,304221,Equipment and Materials,02/04/2020,3724807-9041603473,738.00,TARMAC TRADING LTD.
Neighbourhoods and Climate Change,Technical Services CM0300,Third Party Payments,430100,Rendered by Private Contractors,02/04/2020,3724822-1218,"5,751.66",VINOVIUM ASSOCIATES LTD.
"Regeneration, Economy and Growth",Corporate Property and Land,Third Party Payments,430100,Rendered by Private Contractors,02/04/2020,3724694-11321,"25,200.00",FROSTREE LTD.
"Regeneration, Economy and Growth",Corporate Property and Land,Supplies and Services,304221,Equipment and Materials,02/04/2020,3724704-248240A,792.00,HEATING WORLD OF SPARES LTD.
"Regeneration, Economy and Growth",Corporate Property and Land,Third Party Payments,430100,Rendered by Private Contractors,02/04/2020,3724819-DCC/GT/145,584.80,TYNE VALLEY FLOORING & CARPETS.
"Regeneration, Economy and Growth",Corporate Property and Land,Third Party Payments,430100,Rendered by Private Contractors,02/04/2020,3724819-DCC/GT/144,608.19,TYNE VALLEY FLOORING & CARPETS.
"Regeneration, Economy and Growth",Corporate Property and Land,Third Party Payments,430100,Rendered by Private Contractors,02/04/2020,3724819-DCC/GT/146,"1,246.98",TYNE VALLEY FLOORING & CARPETS.
"Regeneration, Economy and Growth",Corporate Property and Land,Third Party Payments,430100,Rendered by Private Contractors,02/04/2020,3724761-9722-241,"1,051.81",OPUS BUILDING SERVICES LTD.
"Regeneration, Economy and Growth",Corporate Property and Land,Third Party Payments,430100,Rendered by Private Contractors,02/04/2020,3724761-9722-242,"1,051.87",OPUS BUILDING SERVICES LTD.
"Regeneration, Economy and Growth",Corporate Property and Land,Third Party Payments,430100,Rendered by Private Contractors,02/04/2020,3724761-9722-243,"1,104.04",OPUS BUILDING SERVICES LTD.
"Regeneration, Economy and Growth",Corporate Property and Land,Third Party Payments,430100,Rendered by Private Contractors,02/04/2020,3724761-9722-246,"1,051.87",OPUS BUILDING SERVICES LTD.
"Regeneration, Economy and Growth",Corporate Property and Land,Third Party Payments,430100,Rendered by Private Contractors,02/04/2020,3724761-9722-247,"1,051.87",OPUS BUILDING SERVICES LTD.
"Regeneration, Economy and Growth",Corporate Property and Land,Third Party Payments,430100,Rendered by Private Contractors,02/04/2020,3724761-9722-248,"1,173.85",OPUS BUILDING SERVICES LTD.
"Regeneration, Economy and Growth",Corporate Property and Land,Supplies and Services,304221,Equipment and Materials,02/04/2020,3724812-123413,"1,600.00",TOMMY WARDLE.
Neighbourhoods and Climate Change,Environmental Services,Construction work A908,908105,Construction work,02/04/2020,3724691-ESAL06129026,"306,010.23",FINNING (UK) LTD.
"Regeneration, Economy and Growth",Business Durham CL0850,Premises,115125,Repairs to Grounds,02/04/2020,3724710-IHI100-2250,"1,020.00",IAN ADAMSON T/A COMPLETE WEED CONTROL (TYNE & WEAR).
"Regeneration, Economy and Growth",Business Durham CL0850,Construction work A908,908105,Construction work,02/04/2020,3724624-SIN030145,"2,478.00",AIREDALE GROUP T/A AIREDALE CATERING EQUIPMENT LTD.
"Regeneration, Economy and Growth",Development and Housing,Supplies and Services,384700,Miscellaneous Expenses,02/04/2020,3724779-RED-04-2020-001,"1,000.00",RAPIER FENCING.
"Regeneration, Economy and Growth",Development and Housing,Supplies and Services,336005,Advertising E336,02/04/2020,3724808-12162,503.50,TEESDALE MERCURY LTD.
Neighbourhoods and Climate Change,Environmental Services,Supplies and Services,384199,Miscellaneous Expenses,02/04/2020,3724675-190025,"3,814.29",DURHAM CATHEDRAL LTD.
Neighbourhoods and Climate Change,Environmental Services,Premises,115125,Repairs to Grounds,02/04/2020,3724660-6303,"2,000.00",D STEWART SCAFFOLDING LTD.
"Regeneration, Economy and Growth",Development and Housing,Fees,901001,Internal fees,02/04/2020,3724657-7058733,"5,272.14",CURRIE & BROWN UK LTD.
"Regeneration, Economy and Growth",Transport and Contracted Services,Supplies and Services,338078,Services,02/04/2020,3724788-168884,"2,020.20",SHOWSEC INTERNATIONAL LTD.
"Regeneration, Economy and Growth",Transport and Contracted Services,Construction work A908,908105,Construction work,02/04/2020,3724639-26514,"2,733.48",BUS SHELTERS LTD.
"Regeneration, Economy and Growth",Transport and Contracted Services,Construction work A908,908105,Construction work,02/04/2020,3724639-26516,"2,545.66",BUS SHELTERS LTD.
"Regeneration, Economy and Growth",Transport and Contracted Services,Intangible Assets,917001,Software capitalised licence fees,02/04/2020,3724741-IN00434707,"191,472.50",MOTT MACDONALD LTD.
"Regeneration, Economy and Growth",Development and Housing,Construction work A908,908105,Construction work,02/04/2020,3724720-RED-04-2020-004,"175,000.00",KARBON HOMES LTD FORMERLY CESTRIA HOUSING ASSOCIATION LTD.
Adult and Health Services,Commissioning inc Supporting People,Third Party Payments,442002,Supporting People E442,02/04/2020,3724670-2019/20/04CLS,"3,750.00",DERWENTSIDE MIND.
Children and Young Peoples Services,Childrens Services Operational Support,Supplies and Services,338026,Services,02/04/2020,3724742-135,910.00,MR SIMON FORSTER T/A SCF TRAINING & CONSULTANCY LTD.
Adult and Health Services,Head of Adults,Supplies and Services,338042,Services,02/04/2020,3724669-354809/INVSRG120,"1,620.00",DERE STREET BARRISTERS.
Adult and Health Services,Head of Adults,Third Party Payments,478151,Purchase of Care,02/04/2020,3724707-HLC164,"3,286.00",HIGHLEA CARE LTD.
Adult and Health Services,Head of Adults,Third Party Payments,478151,Purchase of Care,02/04/2020,3724707-NUMBERHLC165,"1,779.09",HIGHLEA CARE LTD.
Children and Young Peoples Services,Childrens Services Operational Support,Supplies and Services,338089,Services,02/04/2020,3724814-1100,"2,266.05",TRACEY HILL TRAINING & CONSULTANCY LTD.
"Regeneration, Economy and Growth",Culture Sport and Tourism,Vehicles Equipment Furniture and Fittings,912529,Purchase-equipment,02/04/2020,3724711-6079,"12,692.72",INGRAM AV LTD T/A INGRAMSOUNDS.
Adult and Health Services,Public Health CC0450,Supplies and Services,384199,Miscellaneous Expenses,02/04/2020,3724774-INV-1830,"1,047.00",QUALITY CLEANING SERVICES (NORTHERN) LTD.
Adult and Health Services,Public Health CC0450,Third Party Payments,460803,Contract Payments,02/04/2020,3724702-DCC012MARCH20,"41,401.00",HARBOUR SUPPORT SERVICES.
Chief Executive's Office,Communications Management,Supplies and Services,336005,Advertising E336,02/04/2020,3724629-499003,"4,401.34",BAUER RADIO LTD.
Transformation and Partnerships,Communications Management,Supplies and Services,336005,Advertising E336,02/04/2020,3724629-499003,"4,401.34",BAUER RADIO LTD.
Resources BK0010,Corporate Finance & Commercial Services,Supplies and Services,336005,Advertising E336,02/04/2020,3724749-32790623,"5,151.15",NEWSQUEST (YORKSHIRE & NORTH EAST) LTD.
Resources BK0010,Finance & Transactional Services,Supplies and Services,338066,Services,02/04/2020,3724755-91432527,"9,273.00",NORTHGATE PUBLIC SERVICES (UK) LTD.
Resources BK0010,Digital and Customer Services,Vehicles Equipment Furniture and Fittings,912701,Computer equipment,02/04/2020,3724830-KW16289,"14,456.72",XMA LTD.
Resources BK0010,Digital and Customer Services,Intangible Assets,917003,Software capitalised implementation fees,02/04/2020,3724773-92587794,"6,280.00",QUADIENT FINANCE UK LTD FORMERLY NEOPOST LTD.
Resources BK0010,Digital and Customer Services,Supplies and Services,344014,Telephones,02/04/2020,3724823-NW42806,730.00,VODAFONE LTD.
Resources BK0010,Digital and Customer Services,Supplies and Services,344015,Telephones,02/04/2020,3724823-NW95888,730.00,VODAFONE LTD.
Resources BK0010,Digital and Customer Services,Supplies and Services,344015,Telephones,02/04/2020,3724823-NW95894,"1,022.00",VODAFONE LTD.
Resources BK0010,Digital and Customer Services,Supplies and Services,344015,Telephones,02/04/2020,3724823-NX05017,584.00,VODAFONE LTD.
Resources BK0010,Corporate Finance & Commercial Services,Supplies and Services,384150,Miscellaneous Expenses,02/04/2020,3724721-0000314081,"3,045.00",KAYS MEDICAL LTD.
Resources BK0010,Business Support,Supplies and Services,312009,Newspapers books and periodicals E312,02/04/2020,3724748-2059,"1,048.09",NEWS TEAM GROUP LTD T/A NEWS TEAM NEWCASTLE.
Resources BK0010,Legal & Democratic Services,Supplies and Services,338042,Services,02/04/2020,3724669-349328/INVCMC321,"2,000.00",DERE STREET BARRISTERS.
Resources BK0010,Legal & Democratic Services,Supplies and Services,338042,Services,02/04/2020,3724669-351420/INVEJ142,"1,350.00",DERE STREET BARRISTERS.
Resources BK0010,Legal & Democratic Services,Supplies and Services,338042,Services,02/04/2020,3724669-352256/INVBOM95,650.00,DERE STREET BARRISTERS.
Resources BK0010,Legal & Democratic Services,Supplies and Services,338042,Services,02/04/2020,3724669-356108/INVJAH119,700.00,DERE STREET BARRISTERS.
Resources BK0010,Legal & Democratic Services,Supplies and Services,338042,Services,02/04/2020,3724816-268665/INVKW339,875.00,TRINITY CHAMBERS.
Children and Young Peoples Services,Head of Education and Skills,Fees,901002,Professional fees,02/04/2020,3724689-20014265,"6,257.91",FAITHFUL & GOULD LTD.
Children and Young Peoples Services,Head of Education and Skills,Third Party Payments,410037,Rendered by Other Local Authorities,02/04/2020,3724708-1567,"5,320.00",HOLME FARM RESIDENTIAL VILLAGE.
Children and Young Peoples Services,Head of Early Help Inclusion & Vulnerable Children.,Supplies and Services,384899,Miscellaneous Expenses,02/04/2020,3724653-THK048,"1,333.00",COUNTY DURHAM FURNITURE HELP SCHEME (CDFHS).
Dedicated Schools Grant BG0015,DSG High Needs Block,Central Support and Other Recharges,689988,Unclassified E690,02/04/2020,3724810-CAS-04-2020-002,"1,247.92",THE LAIDLAW SCHOOLS TRUST.
Dedicated Schools Grant BG0015,DSG High Needs Block,Third Party Payments,440038,Other third party payments E440,02/04/2020,3724643-18014,"4,448.75",CHORISTER SCHOOL.
Dedicated Schools Grant BG0015,DSG High Needs Block,Third Party Payments,440038,Other third party payments E440,02/04/2020,3724643-18015,"4,967.16",CHORISTER SCHOOL.
Dedicated Schools Grant BG0015,DSG High Needs Block,Third Party Payments,440080,Other third party payments E440,02/04/2020,3724766-43792,"34,637.53",PERCY HEDLEY FOUNDATION.
Dedicated Schools Grant BG0015,DSG High Needs Block,Third Party Payments,440080,Other third party payments E440,02/04/2020,3724785-WHI00000377,"16,329.87",S/C 200000 CAMBIAN CHILDCARE LTD.
Children and Young Peoples Services,Head of Education and Skills,Supplies and Services,338027,Services,02/04/2020,3724738-DCC3013,570.00,MIKE REDSHAW EDUCATION CONSULTANT.
Children and Young Peoples Services,Head of Education and Skills,Supplies and Services,384199,Miscellaneous Expenses,02/04/2020,3724713-289,"3,052.00",INVESTING IN CHILDREN CIC.
Children and Young Peoples Services,Head of Education and Skills,Third Party Payments,440999,Other third party payments E440,02/04/2020,3724677-6024,"6,159.00",EAST DURHAM COMMUNITY DEVELOPMENT TRUST LTD T/A EAST DURHAM TRUST.
Dedicated Schools Grant BG0015,DSG High Needs Block,Central Support and Other Recharges,615208,Support Services,02/04/2020,3724679-RES-04-2020-115,946.64,EDEN LEARNING TRUST T/A FERRYHILL BUSINESS & ENTERPRISE COLLEGE.
Neighbourhoods and Climate Change,Partnerships & Community Engagement Div.,Supplies and Services,304040,Equipment and Materials,02/04/2020,3724737-4183,"4,434.00",ME LEARNING LTD.
Neighbourhoods and Climate Change,Partnerships & Community Engagement Div.,Supplies and Services,338044,Services,02/04/2020,3724814-1097,"2,259.15",TRACEY HILL TRAINING & CONSULTANCY LTD.
Children and Young Peoples Services,Head of Childrens Social Care,Supplies and Services,384199,Miscellaneous Expenses,02/04/2020,3724714-HP00529,"2,500.00",ISLINGTON COUNCIL.
Children and Young Peoples Services,Head of Childrens Social Care,Third Party Payments,440038,Other third party payments E440,02/04/2020,3724647-3335,800.00,CITY OF SUNDERLAND YMCA LTD.
Children and Young Peoples Services,Head of Childrens Social Care,Third Party Payments,425023,Rendered by Voluntary Organisations,02/04/2020,3724765-301018,"15,668.74",PEARTREE PROJECTS LTD.
Children and Young Peoples Services,Head of Childrens Social Care,Third Party Payments,425023,Rendered by Voluntary Organisations,02/04/2020,3724785-WHI00000378,"20,750.16",S/C 200000 CAMBIAN CHILDCARE LTD.
Children and Young Peoples Services,Head of Childrens Social Care,Third Party Payments,440046,Other third party payments E440,02/04/2020,3724776-460,873.65,RAB OUTDOOR EDUCATION LTD.
Children and Young Peoples Services,Head of Childrens Social Care,Transport,230005,Contract Hire,02/04/2020,3724800-SI-583,760.00,STEVEN PRATT T/A PTL TAXIS DURHAM.
Children and Young Peoples Services,Head of Childrens Social Care,Transport,230005,Contract Hire,02/04/2020,3724800-SI-589,995.00,STEVEN PRATT T/A PTL TAXIS DURHAM.
Children and Young Peoples Services,Head of Childrens Social Care,Transport,230005,Contract Hire,02/04/2020,3724800-SI-592,560.00,STEVEN PRATT T/A PTL TAXIS DURHAM.
Children and Young Peoples Services,Head of Childrens Social Care,Transport,230005,Contract Hire,02/04/2020,3724800-SI-593,693.50,STEVEN PRATT T/A PTL TAXIS DURHAM.
Children and Young Peoples Services,Head of Childrens Social Care,Supplies and Services,384575,Miscellaneous Expenses,02/04/2020,3724627-2019-386,"1,200.00",ASPIRE PSYCHOLOGICAL SERVICES LTD.
Children and Young Peoples Services,Head of Childrens Social Care,Supplies and Services,384575,Miscellaneous Expenses,02/04/2020,3724627-2019-387,650.00,ASPIRE PSYCHOLOGICAL SERVICES LTD.
Children and Young Peoples Services,Head of Childrens Social Care,Supplies and Services,384575,Miscellaneous Expenses,02/04/2020,3724627-2019-589,650.00,ASPIRE PSYCHOLOGICAL SERVICES LTD.
Children and Young Peoples Services,Head of Childrens Social Care,Supplies and Services,384575,Miscellaneous Expenses,02/04/2020,3724627-2019-605,"1,500.00",ASPIRE PSYCHOLOGICAL SERVICES LTD.
Children and Young Peoples Services,Head of Childrens Social Care,Supplies and Services,384500,Miscellaneous Expenses,02/04/2020,3724831-1060,"1,020.00",YORKSHIRE PLAY THERAPY (CHILDRENS THERAPUETIC SERVICE).
Children and Young Peoples Services,Head of Childrens Social Care,Employees,080025,Agency Staff,02/04/2020,3724696-2437287,"128,913.35",GEOMETRIC RESULTS INTERNATIONAL.
Children and Young Peoples Services,Head of Childrens Social Care,Supplies and Services,338044,Services,02/04/2020,3724692-51862,657.07,FORENSIC TESTING SERVICE LTD.
Children and Young Peoples Services,Head of Childrens Social Care,Transport,230005,Contract Hire,02/04/2020,3724654-110281,"1,267.60",CROFT BUSINESS SERVICES (UK) LTD T/A CROFT TAXIS.
Children and Young Peoples Services,Head of Childrens Social Care,Transport,230005,Contract Hire,02/04/2020,3724800-SI-595,730.00,STEVEN PRATT T/A PTL TAXIS DURHAM.
Children and Young Peoples Services,Head of Childrens Social Care,Transport,230005,Contract Hire,02/04/2020,3724654-110282,"1,101.08",CROFT BUSINESS SERVICES (UK) LTD T/A CROFT TAXIS.
Children and Young Peoples Services,Head of Childrens Social Care,Transport,230005,Contract Hire,02/04/2020,3724800-SI-582.,962.00,STEVEN PRATT T/A PTL TAXIS DURHAM.
Children and Young Peoples Services,Head of Early Help Inclusion & Vulnerable Children.,Supplies and Services,344135,Telephones,02/04/2020,3724732-12469610,548.88,MAINTEL EUROPE LTD.
Children and Young Peoples Services,Head of Early Help Inclusion & Vulnerable Children.,Supplies and Services,384302,Miscellaneous Expenses,02/04/2020,3724819-DCCFAMILYCENTRE140,840.00,TYNE VALLEY FLOORING & CARPETS.
Neighbourhoods and Climate Change,Environmental Services,Supplies and Services,304221,Equipment and Materials,03/04/2020,3725409-371001,"1,222.25",THE HELPING HAND CO (LEDBURY) LTD.
Neighbourhoods and Climate Change,Environmental Services,Supplies and Services,304221,Equipment and Materials,03/04/2020,3724876-INV137567,"1,141.50",AZTEC CHEMICALS LTD.
Neighbourhoods and Climate Change,Environmental Services,Supplies and Services,338078,Services,03/04/2020,3725390-15694,"6,506.50",STEADFAST SECURITY SOLUTIONS LTD.
Neighbourhoods and Climate Change,Environmental Services,Supplies and Services,338078,Services,03/04/2020,3725390-15693,"3,008.00",STEADFAST SECURITY SOLUTIONS LTD.
Neighbourhoods and Climate Change,Environmental Services,Transport,210057,Repair and Maintenance of Vehicles,03/04/2020,3724884-35177535,729.30,BELL TRUCK SALES LTD T/A BELL TRUCK & VAN.
Neighbourhoods and Climate Change,Environmental Services,Transport,210057,Repair and Maintenance of Vehicles,03/04/2020,3724884-35177577,747.25,BELL TRUCK SALES LTD T/A BELL TRUCK & VAN.
Neighbourhoods and Climate Change,Environmental Services,Transport,210057,Repair and Maintenance of Vehicles,03/04/2020,3724955-DE11299519,656.97,DENNIS EAGLE LTD.
"Regeneration, Economy and Growth",Culture Sport and Tourism,Supplies and Services,304337,Equipment and Materials,03/04/2020,3725447-I-0640142,817.45,ZOGGS INTERNATIONAL LTD.
"Regeneration, Economy and Growth",Culture Sport and Tourism,Supplies and Services,372009,Subscriptions E372,03/04/2020,3725406-2072000842,714.59,TECHNOGYM UK LTD.
Neighbourhoods and Climate Change,Community Protection,Supplies and Services,338027,Services,03/04/2020,3725003-0000013827,"8,105.00",GROUNDWORK NORTH EAST.
Neighbourhoods and Climate Change,Technical Services CM0300,Third Party Payments,430128,Rendered by Private Contractors,03/04/2020,3725093-5901,802.00,MAKEPEACE MOTORS.
"Regeneration, Economy and Growth",Corporate Property and Land,Supplies and Services,384199,Miscellaneous Expenses,03/04/2020,3725440-274,975.00,WHORLTON LAND SURVEYS LTD.
Neighbourhoods and Climate Change,Environmental Services,Premises,108099,Service Repairs and Maintenance,03/04/2020,3724844-43033353-61,564.69,ADT FIRE & SECURITY PLC.
"Regeneration, Economy and Growth",Corporate Property and Land,Supplies and Services,304999,Equipment and Materials,03/04/2020,3724956-0000377277,"1,165.95",DIGITAL ID LTD.
Neighbourhoods and Climate Change,Environmental Services,Supplies and Services,304259,Equipment and Materials,03/04/2020,3725112-10200,"4,999.00",MAXOPTRA LTD.
Neighbourhoods and Climate Change,Environmental Services,Supplies and Services,338078,Services,03/04/2020,3725390-15695,"8,415.11",STEADFAST SECURITY SOLUTIONS LTD.
Neighbourhoods and Climate Change,Environmental Services,Third Party Payments,430120,Rendered by Private Contractors,03/04/2020,3724986-CTIN06601792,"5,680.89",FINNING (UK) LTD.
Neighbourhoods and Climate Change,Environmental Services,Third Party Payments,430120,Rendered by Private Contractors,03/04/2020,3724986-CTIN06601793,"4,754.22",FINNING (UK) LTD.
Neighbourhoods and Climate Change,Environmental Services,Supplies and Services,338027,Services,03/04/2020,3725038-498,"1,061.05",JENNY GRANT (ORGANICS RECYCLING GROUP).
Neighbourhoods and Climate Change,Environmental Services,Supplies and Services,338027,Services,03/04/2020,3725380-0000814129,"2,720.00",SOCOTEC UK LTD.
Neighbourhoods and Climate Change,Environmental Services,Premises,106080,Centrally Controlled Rep and Maint,03/04/2020,3725392-15209,665.50,STONE TECHNICAL SERVICES LTD.
Neighbourhoods and Climate Change,Environmental Services,Third Party Payments,430100,Rendered by Private Contractors,03/04/2020,3725358-5462,552.00,SAFE STRIP UK LTD.
"Regeneration, Economy and Growth",Culture Sport and Tourism,Supplies and Services,384199,Miscellaneous Expenses,03/04/2020,3724930-0121,"1,250.00",CLAIRE MARSLAND (CONTRACTOR).
"Regeneration, Economy and Growth",Culture Sport and Tourism,Supplies and Services,384199,Miscellaneous Expenses,03/04/2020,3725299-0055,"4,300.00",NORTH EXHIBITION SERVICES LTD.
Neighbourhoods and Climate Change,Environmental Services,Transport,215005,Running Costs of Vehicles,03/04/2020,3725303-558315,"2,849.75",OIL NRG LTD.
"Regeneration, Economy and Growth",Culture Sport and Tourism,Premises,106082,Centrally Controlled Rep and Maint,03/04/2020,3724993-16946,"2,616.25",FT LEISURE LTD.
"Regeneration, Economy and Growth",Corporate Property and Land,Premises,108099,Service Repairs and Maintenance,03/04/2020,3725427-1310,595.00,VENTILATION HYGIENE SPECIALISTS (VHS) LTD.
"Regeneration, Economy and Growth",Corporate Property and Land,Premises,108099,Service Repairs and Maintenance,03/04/2020,3724909-6829,565.12,CATHEDRAL LOCK & SAFE SERVICES LTD.
"Regeneration, Economy and Growth",Corporate Property and Land,Premises,108099,Service Repairs and Maintenance,03/04/2020,3725018-7080812639,"1,403.39",HONEYWELL NOVAR SYSTEMS LTD.
"Regeneration, Economy and Growth",Corporate Property and Land,Premises,108099,Service Repairs and Maintenance,03/04/2020,3724843-39229424-61,576.18,ADT FIRE & SECURITY PLC.
Neighbourhoods and Climate Change,Technical Services CM0300,Stock A926,926900,Stock in hand-Inventory system,03/04/2020,3725000-06/059041,695.60,GREENHAM TRADING LTD.
Neighbourhoods and Climate Change,Technical Services CM0300,Third Party Payments,430100,Rendered by Private Contractors,03/04/2020,3725331-164396,"6,046.10",PREMIER TRAFFIC MANAGEMENT LTD.
Neighbourhoods and Climate Change,Technical Services CM0300,Supplies and Services,338066,Services,03/04/2020,3725324-5890,"1,427.60",PINKNEY BUILDING CONTRACTORS LTD.
Neighbourhoods and Climate Change,Technical Services CM0300,Supplies and Services,304221,Equipment and Materials,03/04/2020,3724848-29560877,741.02,AGGREGATE INDUSTRIES UK LTD.
Neighbourhoods and Climate Change,Technical Services CM0300,Supplies and Services,304221,Equipment and Materials,03/04/2020,3724848-29598619,"2,524.10",AGGREGATE INDUSTRIES UK LTD.
Neighbourhoods and Climate Change,Technical Services CM0300,Third Party Payments,430100,Rendered by Private Contractors,03/04/2020,3724878-CSUKOU/INV/84342,"31,362.67",BALFOUR BEATTY LIVING PLACES LTD.*
Neighbourhoods and Climate Change,Technical Services CM0300,Third Party Payments,430100,Rendered by Private Contractors,03/04/2020,3724926-6026,814.00,CITY FABRICATIONS LTD.
Neighbourhoods and Climate Change,Technical Services CM0300,Third Party Payments,430100,Rendered by Private Contractors,03/04/2020,3724980-SI-982,950.00,ENVIROROD LTD.
Neighbourhoods and Climate Change,Technical Services CM0300,Supplies and Services,304358,Equipment and Materials,03/04/2020,3725029-1797/2019,"1,708.50",J & JG GILL & SONS LTD.
Neighbourhoods and Climate Change,Technical Services CM0300,Supplies and Services,304221,Equipment and Materials,03/04/2020,3725053-0104/00043253,558.98,JT DOVE LTD.
Neighbourhoods and Climate Change,Technical Services CM0300,Supplies and Services,304358,Equipment and Materials,03/04/2020,3725089-MS2068,"1,339.20",M SPENCE SURFACING LTD.
Neighbourhoods and Climate Change,Technical Services CM0300,Supplies and Services,304358,Equipment and Materials,03/04/2020,3725089-MS2069,961.20,M SPENCE SURFACING LTD.
Neighbourhoods and Climate Change,Technical Services CM0300,Supplies and Services,304358,Equipment and Materials,03/04/2020,3725089-MS2082,696.60,M SPENCE SURFACING LTD.
Neighbourhoods and Climate Change,Technical Services CM0300,Supplies and Services,304358,Equipment and Materials,03/04/2020,3725089-MS2100,583.20,M SPENCE SURFACING LTD.
Neighbourhoods and Climate Change,Technical Services CM0300,Supplies and Services,304358,Equipment and Materials,03/04/2020,3725089-MS2102,572.62,M SPENCE SURFACING LTD.
Neighbourhoods and Climate Change,Technical Services CM0300,Supplies and Services,304221,Equipment and Materials,03/04/2020,3725093-5892,"3,846.80",MAKEPEACE MOTORS.
Neighbourhoods and Climate Change,Technical Services CM0300,Supplies and Services,304358,Equipment and Materials,03/04/2020,3725093-5886,"1,909.50",MAKEPEACE MOTORS.
Neighbourhoods and Climate Change,Technical Services CM0300,Supplies and Services,304358,Equipment and Materials,03/04/2020,3725093-5887,"1,825.50",MAKEPEACE MOTORS.
Neighbourhoods and Climate Change,Technical Services CM0300,Supplies and Services,304358,Equipment and Materials,03/04/2020,3725093-5888,"2,203.00",MAKEPEACE MOTORS.
Neighbourhoods and Climate Change,Technical Services CM0300,Supplies and Services,304358,Equipment and Materials,03/04/2020,3725093-5889,"2,070.50",MAKEPEACE MOTORS.
Neighbourhoods and Climate Change,Technical Services CM0300,Supplies and Services,304358,Equipment and Materials,03/04/2020,3725093-5899,"2,352.00",MAKEPEACE MOTORS.
Neighbourhoods and Climate Change,Technical Services CM0300,Supplies and Services,304358,Equipment and Materials,03/04/2020,3725093-5900,"2,247.00",MAKEPEACE MOTORS.
Neighbourhoods and Climate Change,Technical Services CM0300,Third Party Payments,430100,Rendered by Private Contractors,03/04/2020,3725324-5886,"4,228.37",PINKNEY BUILDING CONTRACTORS LTD.
Neighbourhoods and Climate Change,Technical Services CM0300,Third Party Payments,430100,Rendered by Private Contractors,03/04/2020,3725324-5887,"1,877.60",PINKNEY BUILDING CONTRACTORS LTD.
Neighbourhoods and Climate Change,Technical Services CM0300,Third Party Payments,430100,Rendered by Private Contractors,03/04/2020,3725324-5897,"4,228.37",PINKNEY BUILDING CONTRACTORS LTD.
Neighbourhoods and Climate Change,Technical Services CM0300,Third Party Payments,430100,Rendered by Private Contractors,03/04/2020,3725324-5898,"2,089.16",PINKNEY BUILDING CONTRACTORS LTD.
Neighbourhoods and Climate Change,Technical Services CM0300,Third Party Payments,430100,Rendered by Private Contractors,03/04/2020,3725331-164086,"8,575.70",PREMIER TRAFFIC MANAGEMENT LTD.
Neighbourhoods and Climate Change,Technical Services CM0300,Third Party Payments,430100,Rendered by Private Contractors,03/04/2020,3725333-18335,"1,248.00",PRM FABRICATIONS LTD.
Neighbourhoods and Climate Change,Technical Services CM0300,Supplies and Services,304358,Equipment and Materials,03/04/2020,3725356-1917,999.00,S & R LANDSCAPES.
Neighbourhoods and Climate Change,Technical Services CM0300,Supplies and Services,304221,Equipment and Materials,03/04/2020,3725424-209182,"1,107.38",TYNEDALE ROADSTONE LTD.
"Regeneration, Economy and Growth",Corporate Property and Land,Third Party Payments,430100,Rendered by Private Contractors,03/04/2020,3724857-17678,"1,050.00",AMBIC LTD.
"Regeneration, Economy and Growth",Corporate Property and Land,Third Party Payments,430100,Rendered by Private Contractors,03/04/2020,3725307-9722-253,"1,132.18",OPUS BUILDING SERVICES LTD.
"Regeneration, Economy and Growth",Corporate Property and Land,Third Party Payments,430100,Rendered by Private Contractors,03/04/2020,3725309-2311,"5,023.07",PARAMOUNT CEILINGS & PARTITIONS.
"Regeneration, Economy and Growth",Corporate Property and Land,Supplies and Services,304221,Equipment and Materials,03/04/2020,3724873-7454,"2,290.00",ATLAS WASHROOM SYSTEMS LTD.
"Regeneration, Economy and Growth",Corporate Property and Land,Third Party Payments,430100,Rendered by Private Contractors,03/04/2020,3724998-INV-0073,"1,000.00",GLENFIELD ENERGY SOLUTIONS LTD.
"Regeneration, Economy and Growth",Corporate Property and Land,Third Party Payments,430100,Rendered by Private Contractors,03/04/2020,3724883-6671,"2,042.00",BELL CONTROL SOLUTIONS LTD.
"Regeneration, Economy and Growth",Corporate Property and Land,Third Party Payments,430100,Rendered by Private Contractors,03/04/2020,3724883-6673,900.00,BELL CONTROL SOLUTIONS LTD.
"Regeneration, Economy and Growth",Corporate Property and Land,Third Party Payments,430100,Rendered by Private Contractors,03/04/2020,3725434-5919,520.00,WARREN (ELECTRICAL) LTD.
"Regeneration, Economy and Growth",Corporate Property and Land,Supplies and Services,304221,Equipment and Materials,03/04/2020,3725442-67465740,"5,475.91",WOLSELEY UK LTD.
"Regeneration, Economy and Growth",Corporate Property and Land,Supplies and Services,304221,Equipment and Materials,03/04/2020,3725011-4665775,913.90,HEADLAM (FLOORCOVERING DISTRIBUTORS) LTD.
"Regeneration, Economy and Growth",Corporate Property and Land,Supplies and Services,304358,Equipment and Materials,03/04/2020,3725089-MS2025,612.00,M SPENCE SURFACING LTD.
"Regeneration, Economy and Growth",Corporate Property and Land,Third Party Payments,430100,Rendered by Private Contractors,03/04/2020,3725307-9722-213,"1,104.67",OPUS BUILDING SERVICES LTD.
"Regeneration, Economy and Growth",Corporate Property and Land,Third Party Payments,430100,Rendered by Private Contractors,03/04/2020,3725307-9095-10,"27,733.95",OPUS BUILDING SERVICES LTD.
"Regeneration, Economy and Growth",Corporate Property and Land,Third Party Payments,430100,Rendered by Private Contractors,03/04/2020,3725307-9722-244,877.35,OPUS BUILDING SERVICES LTD.
"Regeneration, Economy and Growth",Corporate Property and Land,Third Party Payments,430100,Rendered by Private Contractors,03/04/2020,3725307-9722-245,"1,051.87",OPUS BUILDING SERVICES LTD.
"Regeneration, Economy and Growth",Corporate Property and Land,Third Party Payments,430100,Rendered by Private Contractors,03/04/2020,3725307-9722-249,893.62,OPUS BUILDING SERVICES LTD.
"Regeneration, Economy and Growth",Corporate Property and Land,Third Party Payments,430100,Rendered by Private Contractors,03/04/2020,3725307-9722-250,"1,117.87",OPUS BUILDING SERVICES LTD.
"Regeneration, Economy and Growth",Corporate Property and Land,Third Party Payments,430100,Rendered by Private Contractors,03/04/2020,3725307-9722-254,893.62,OPUS BUILDING SERVICES LTD.
"Regeneration, Economy and Growth",Corporate Property and Land,Third Party Payments,430100,Rendered by Private Contractors,03/04/2020,3725307-9722-255,"1,448.97",OPUS BUILDING SERVICES LTD.
"Regeneration, Economy and Growth",Corporate Property and Land,Third Party Payments,430100,Rendered by Private Contractors,03/04/2020,3724993-17003,"2,482.14",FT LEISURE LTD.
"Regeneration, Economy and Growth",Development and Housing,Supplies and Services,336005,Advertising E336,03/04/2020,3725298-190202,550.00,NORTH EAST TIMES MAGAZINE LTD.
"Regeneration, Economy and Growth",Development and Housing,Supplies and Services,338027,Services,03/04/2020,3725286-INV127697,"2,362.50",NATHANIEL LICHFIELD & PARTNERS LTD.
"Regeneration, Economy and Growth",Development and Housing,Supplies and Services,372009,Subscriptions E372,03/04/2020,3725343-9632,"1,065.65",RESOLUTION DATA MANAGEMENT LTD.
"Regeneration, Economy and Growth",Development and Housing,Supplies and Services,384999,Miscellaneous Expenses,03/04/2020,3724940-RLS0001,"1,323.80",COUNTY DURHAM FURNITURE HELP SCHEME (CDFHS).
"Regeneration, Economy and Growth",Development and Housing,Supplies and Services,384999,Miscellaneous Expenses,03/04/2020,3725329-R2056,550.00,PPS DEVELOPMENTS LTD.
"Regeneration, Economy and Growth",Development and Housing,Third Party Payments,430100,Rendered by Private Contractors,03/04/2020,3725395-2805021071,"27,600.94",SUNDERLAND CITY COUNCIL.
"Regeneration, Economy and Growth",Development and Housing,Construction work A908,908105,Construction work,03/04/2020,3725440-273,875.00,WHORLTON LAND SURVEYS LTD.
"Regeneration, Economy and Growth",Transport and Contracted Services,Fees,901002,Professional fees,03/04/2020,3724893-SIN014228,"136,239.82",BLOOM PROCUREMENT SERVICES LTD (FORMERLY NEPRO LTD).
Neighbourhoods and Climate Change,Environmental Services,Supplies and Services,304999,Equipment and Materials,03/04/2020,3725425-RED-03-2020-299,"1,219.00",UMI COMMERCIAL LTD.
Adult and Health Services,Head of Adults,Transport,230005,Contract Hire,03/04/2020,3725048-21-MARCH,990.00,JOHN CRAKE & SONS MINI BUSES LTD.
Adult and Health Services,Commissioning inc Supporting People,Supplies and Services,352001,Conference Expenses,03/04/2020,3725377-SINV14981,"4,722.50",SKILLS FOR CARE SOLUTIONS LTD.
Adult and Health Services,Commissioning inc Supporting People,Supplies and Services,384540,Miscellaneous Expenses,03/04/2020,3725414-2457,"4,303.00",THREE MOTION MEDIA LTD.
Adult and Health Services,Head of Adults,Transport,230005,Contract Hire,03/04/2020,3725359-0,647.40,SAFELINE TRAVEL.
Adult and Health Services,Head of Adults,Transport,230005,Contract Hire,03/04/2020,3725048-20SED126MAR20,"1,760.00",JOHN CRAKE & SONS MINI BUSES LTD.
Adult and Health Services,Head of Adults,Transport,230005,Contract Hire,03/04/2020,3725320-0938,"1,865.38",PETER`S PRIVATE HIRE/PETER BEST.
Adult and Health Services,Head of Adults,Transport,230005,Contract Hire,03/04/2020,3725418-ED-INV-NO956,"1,260.16",TONYS TAXIS (A BIRCH).
Adult and Health Services,Head of Adults,Transport,230005,Contract Hire,03/04/2020,3725313-DM170-MARCH,"1,160.00",PAUL WILSON.
Adult and Health Services,Head of Adults,Transport,230005,Contract Hire,03/04/2020,3725321-DM204-MARCH,"1,460.00",PETER`S TAXIS.
Adult and Health Services,Head of Adults,Transport,230005,Contract Hire,03/04/2020,3725418-957,702.00,TONYS TAXIS (A BIRCH).
Adult and Health Services,Head of Adults,Transport,230005,Contract Hire,03/04/2020,3725418-962,700.00,TONYS TAXIS (A BIRCH).
Adult and Health Services,Head of Adults,Transport,230005,Contract Hire,03/04/2020,3725418-ED-INV-NO961,688.00,TONYS TAXIS (A BIRCH).
Children and Young Peoples Services,Childrens Services Operational Support,Supplies and Services,338026,Services,03/04/2020,3725276-142,525.00,MR SIMON FORSTER T/A SCF TRAINING & CONSULTANCY LTD.
Resources BK0010,Business Support,Third Party Payments,470101,Purchase of Care,03/04/2020,3724995-102137115,"514,691.73",GATESHEAD COUNCIL.
"Regeneration, Economy and Growth",Culture Sport and Tourism,Supplies and Services,384199,Miscellaneous Expenses,03/04/2020,3724909-6886,"2,194.50",CATHEDRAL LOCK & SAFE SERVICES LTD.
"Regeneration, Economy and Growth",Culture Sport and Tourism,Premises,106082,Centrally Controlled Rep and Maint,03/04/2020,3725344-19-0391,"1,991.68",REVINSON FIRE LTD.
"Regeneration, Economy and Growth",Culture Sport and Tourism,Premises,106082,Centrally Controlled Rep and Maint,03/04/2020,3725344-20-0001,921.93,REVINSON FIRE LTD.
"Regeneration, Economy and Growth",Culture Sport and Tourism,Premises,106082,Centrally Controlled Rep and Maint,03/04/2020,3725344-20-0002,"2,212.50",REVINSON FIRE LTD.
"Regeneration, Economy and Growth",Culture Sport and Tourism,Premises,106082,Centrally Controlled Rep and Maint,03/04/2020,3725344-20-0003,"4,845.32",REVINSON FIRE LTD.
Adult and Health Services,Head of Adults,Premises,108099,Service Repairs and Maintenance,03/04/2020,3724909-6820,"2,051.76",CATHEDRAL LOCK & SAFE SERVICES LTD.
Adult and Health Services,Public Health CC0450,Third Party Payments,460803,Contract Payments,03/04/2020,3725020-830/20/1801,"374,752.10",HUMANKIND CHARITY.
Adult and Health Services,Public Health CC0450,Third Party Payments,460803,Contract Payments,03/04/2020,3725020-831/20/1801,"8,640.00",HUMANKIND CHARITY.
Resources BK0010,Transformation,Fees,901002,Professional fees,03/04/2020,3725355-002394,"3,921.50",RYDER ARCHITECTURE LTD.
Resources BK0010,Finance & Transactional Services,Supplies and Services,384700,Miscellaneous Expenses,03/04/2020,3724924-CACD647,"7,500.00",CITIZENS ADVICE COUNTY DURHAM.
Resources BK0010,Finance & Transactional Services,Supplies and Services,340001,Postages E340,03/04/2020,3724914-038354,"12,016.30",CFH TOTAL DOCUMENT MANAGEMENT LTD.
Resources BK0010,Finance & Transactional Services,Supplies and Services,338017,Services,03/04/2020,3725083-120073769,"8,262.64",LLOYDS BANK PLC.
Resources BK0010,Digital and Customer Services,Supplies and Services,344014,Telephones,03/04/2020,3725432-NW04256,"1,440.00",VODAFONE LTD.
Resources BK0010,Digital and Customer Services,Supplies and Services,304252,Equipment and Materials,03/04/2020,3725335-92579111,"3,120.08",QUADIENT FINANCE UK LTD FORMERLY NEOPOST LTD.
Resources BK0010,Digital and Customer Services,Vehicles Equipment Furniture and Fittings,912701,Computer equipment,03/04/2020,3725432-NV73021,730.00,VODAFONE LTD.
Resources BK0010,Digital and Customer Services,Vehicles Equipment Furniture and Fittings,912701,Computer equipment,03/04/2020,3725432-NW25020,"1,460.00",VODAFONE LTD.
Resources BK0010,Digital and Customer Services,Supplies and Services,344015,Telephones,03/04/2020,3725432-NW95887,"1,460.00",VODAFONE LTD.
Resources BK0010,Legal & Democratic Services,Supplies and Services,344014,Telephones,03/04/2020,3725432-NW95889,722.85,VODAFONE LTD.
Resources BK0010,Legal & Democratic Services,Supplies and Services,338102,Services,03/04/2020,3724860-006918,"5,885.00",ANALYTICAL SERVICES INTERNATIONAL LTD.
Resources BK0010,Legal & Democratic Services,Supplies and Services,338102,Services,03/04/2020,3724860-006919,"5,495.00",ANALYTICAL SERVICES INTERNATIONAL LTD.
Resources BK0010,Legal & Democratic Services,Supplies and Services,338102,Services,03/04/2020,3724860-006920,"2,140.00",ANALYTICAL SERVICES INTERNATIONAL LTD.
Resources BK0010,Legal & Democratic Services,Supplies and Services,338102,Services,03/04/2020,3724860-006921,"2,675.00",ANALYTICAL SERVICES INTERNATIONAL LTD.
Resources BK0010,Legal & Democratic Services,Supplies and Services,338025,Services,03/04/2020,3724966-104020,780.00,EAST DURHAM FUNERAL SERVICE LTD.
Dedicated Schools Grant BG0015,DSG High Needs Block,Supplies and Services,384199,Miscellaneous Expenses,03/04/2020,3725369-32,"2,970.00",SHARON HOWARD T/A SH COUNSELLING SERVICES.
Children and Young Peoples Services,Head of Early Help Inclusion & Vulnerable Children.,Supplies and Services,338076,Services,03/04/2020,3725407-3036,"15,312.06",TEESDALE COMMUNITY RESOURCES (TCR) LTD.
Children and Young Peoples Services,Head of Education and Skills,Construction work A908,908105,Construction work,03/04/2020,3725358-5240,556.00,SAFE STRIP UK LTD.
Children and Young Peoples Services,Head of Education and Skills,Construction work A908,908105,Construction work,03/04/2020,3725358-5471,"32,800.00",SAFE STRIP UK LTD.
Children and Young Peoples Services,Head of Education and Skills,Transport,230035,Contract Hire,03/04/2020,3725034-1713,708.00,JDS PRIVATE HIRE DURHAM.
Children and Young Peoples Services,Head of Education and Skills,Transport,230009,Contract Hire,03/04/2020,3725096-INV111925,"1,768.32",MARK & JOHN CHISHOLM T/A (CHEVRON).
Children and Young Peoples Services,Head of Education and Skills,Transport,230008,Contract Hire,03/04/2020,3724931-31/03/20,560.00,CLARE LYNSEY STEWART T/A K&C TAXIS.
Children and Young Peoples Services,Head of Education and Skills,Transport,230008,Contract Hire,03/04/2020,3724943-110112,"1,425.12",CROFT BUSINESS SERVICES (UK) LTD T/A CROFT TAXIS.
Children and Young Peoples Services,Head of Education and Skills,Transport,230008,Contract Hire,03/04/2020,3725389-2-N076,"1,554.40",STANLEY TRAVEL (NORTH EAST) LTD.
Children and Young Peoples Services,Head of Education and Skills,Transport,230008,Contract Hire,03/04/2020,3725266-72/2019/M003,825.00,MR MARIUSZ LASOTA T/A BM TAXI.
Children and Young Peoples Services,Head of Education and Skills,Transport,230008,Contract Hire,03/04/2020,3725096-INV071916,"1,446.60",MARK & JOHN CHISHOLM T/A (CHEVRON).
Dedicated Schools Grant BG0015,DSG High Needs Block,Third Party Payments,425005,Rendered by Voluntary Organisations,03/04/2020,3725317-42458,"13,960.55",PERCY HEDLEY FOUNDATION.
Dedicated Schools Grant BG0015,DSG High Needs Block,Third Party Payments,425005,Rendered by Voluntary Organisations,03/04/2020,3725317-43233,"13,960.55",PERCY HEDLEY FOUNDATION.
Children and Young Peoples Services,Head of Education and Skills,Supplies and Services,338027,Services,03/04/2020,3725143-4,775.00,MISS CATHERINE ROBSON (EDUCATION CONSULTANT).
Dedicated Schools Grant BG0015,DSG High Needs Block,Third Party Payments,440080,Other third party payments E440,03/04/2020,3724950-CAS-04-2020-036,"6,157.55",DARLINGTON COLLEGE.
Dedicated Schools Grant BG0015,DSG High Needs Block,Third Party Payments,440080,Other third party payments E440,03/04/2020,3725012-CAS-04-2020-038,"14,447.81",HEALTH EDUCATION ENGLAND.
Dedicated Schools Grant BG0015,DSG High Needs Block,Third Party Payments,440080,Other third party payments E440,03/04/2020,3725122-CAS-04-2020-037,"8,749.94",MIDDLESBROUGH COLLEGE.
Neighbourhoods and Climate Change,Partnerships & Community Engagement Div.,Supplies and Services,304040,Equipment and Materials,03/04/2020,3725114-4182,"4,434.00",ME LEARNING LTD.
Neighbourhoods and Climate Change,Partnerships & Community Engagement Div.,Supplies and Services,338094,Services,03/04/2020,3725352-7140010120,526.33,RIVERSIDE EVENTS LLP.
Children and Young Peoples Services,Head of Childrens Social Care,Third Party Payments,440038,Other third party payments E440,03/04/2020,3724927-3225,800.00,CITY OF SUNDERLAND YMCA LTD.
Children and Young Peoples Services,Head of Childrens Social Care,Third Party Payments,440038,Other third party payments E440,03/04/2020,3724927-3244,800.00,CITY OF SUNDERLAND YMCA LTD.
Children and Young Peoples Services,Head of Childrens Social Care,Third Party Payments,440038,Other third party payments E440,03/04/2020,3724927-3298,800.00,CITY OF SUNDERLAND YMCA LTD.
Children and Young Peoples Services,Head of Childrens Social Care,Third Party Payments,440038,Other third party payments E440,03/04/2020,3724927-3312,800.00,CITY OF SUNDERLAND YMCA LTD.
Children and Young Peoples Services,Head of Childrens Social Care,Third Party Payments,440038,Other third party payments E440,03/04/2020,3724927-3341,800.00,CITY OF SUNDERLAND YMCA LTD.
Children and Young Peoples Services,Head of Childrens Social Care,Third Party Payments,440038,Other third party payments E440,03/04/2020,3724927-3344,800.00,CITY OF SUNDERLAND YMCA LTD.
Children and Young Peoples Services,Head of Childrens Social Care,Third Party Payments,440038,Other third party payments E440,03/04/2020,3724927-3346,800.00,CITY OF SUNDERLAND YMCA LTD.
Children and Young Peoples Services,Head of Childrens Social Care,Third Party Payments,440038,Other third party payments E440,03/04/2020,3724927-3354,800.00,CITY OF SUNDERLAND YMCA LTD.
Children and Young Peoples Services,Head of Childrens Social Care,Third Party Payments,440038,Other third party payments E440,03/04/2020,3724927-3356,800.00,CITY OF SUNDERLAND YMCA LTD.
Children and Young Peoples Services,Head of Childrens Social Care,Third Party Payments,440038,Other third party payments E440,03/04/2020,3725016-1566,"13,285.67",HOLME FARM RESIDENTIAL VILLAGE.
Children and Young Peoples Services,Head of Childrens Social Care,Central Support and Other Recharges,615094,Support Services,03/04/2020,3725043-19,560.00,JIGSAW RECOVERY PROJECT CIC.
Children and Young Peoples Services,Head of Childrens Social Care,Third Party Payments,440038,Other third party payments E440,03/04/2020,3725227-AW002,"10,320.00",MOVING UP CARE LTD.
Children and Young Peoples Services,Head of Childrens Social Care,Third Party Payments,440038,Other third party payments E440,03/04/2020,3725227-CG011,"10,230.00",MOVING UP CARE LTD.
Children and Young Peoples Services,Head of Childrens Social Care,Third Party Payments,440038,Other third party payments E440,03/04/2020,3725297-CC7,"3,800.00",NORTH EAST SUPPORTED TENANCIES (NEST).
Children and Young Peoples Services,Head of Childrens Social Care,Third Party Payments,440038,Other third party payments E440,03/04/2020,3725297-MM46,"3,800.00",NORTH EAST SUPPORTED TENANCIES (NEST).
Children and Young Peoples Services,Head of Childrens Social Care,Third Party Payments,440038,Other third party payments E440,03/04/2020,3725332-EH0220,"1,628.76",PRIMETIME CARE SERVICES LTD.
Children and Young Peoples Services,Head of Childrens Social Care,Third Party Payments,425021,Rendered by Voluntary Organisations,03/04/2020,3725400-952,"52,551.82",TALBOT HOUSE TRUST NORTH EAST.
Children and Young Peoples Services,Head of Childrens Social Care,Third Party Payments,440039,Other third party payments E440,03/04/2020,3724927-3332,800.00,CITY OF SUNDERLAND YMCA LTD.
Children and Young Peoples Services,Head of Childrens Social Care,Third Party Payments,440039,Other third party payments E440,03/04/2020,3724927-3340,800.00,CITY OF SUNDERLAND YMCA LTD.
Children and Young Peoples Services,Head of Childrens Social Care,Supplies and Services,384199,Miscellaneous Expenses,03/04/2020,3724947-0332708,"4,975.75",CUMBRIA COUNTY COUNCIL..
Children and Young Peoples Services,Head of Childrens Social Care,Supplies and Services,338044,Services,03/04/2020,3725410-25429,"1,844.14",THE LUCY FAITHFULL FOUNDATION.
Children and Young Peoples Services,Head of Childrens Social Care,Third Party Payments,486020,Service level agreements E486,03/04/2020,3725024-0019,"1,006.93",INTEGRATING CHILDREN.
Children and Young Peoples Services,Head of Childrens Social Care,Third Party Payments,486020,Service level agreements E486,03/04/2020,3725024-0020,"1,091.91",INTEGRATING CHILDREN.
Children and Young Peoples Services,Head of Childrens Social Care,Third Party Payments,486020,Service level agreements E486,03/04/2020,3725024-0021,"1,067.27",INTEGRATING CHILDREN.
Children and Young Peoples Services,Head of Childrens Social Care,Third Party Payments,486020,Service level agreements E486,03/04/2020,3725024-0022,"1,451.96",INTEGRATING CHILDREN.
Children and Young Peoples Services,Head of Childrens Social Care,Third Party Payments,486020,Service level agreements E486,03/04/2020,3725024-045,828.86,INTEGRATING CHILDREN.
Children and Young Peoples Services,Head of Childrens Social Care,Third Party Payments,486020,Service level agreements E486,03/04/2020,3725024-046,838.15,INTEGRATING CHILDREN.
Children and Young Peoples Services,Head of Childrens Social Care,Third Party Payments,486020,Service level agreements E486,03/04/2020,3725024-047,838.15,INTEGRATING CHILDREN.
Children and Young Peoples Services,Head of Childrens Social Care,Third Party Payments,486020,Service level agreements E486,03/04/2020,3725024-44,"1,124.02",INTEGRATING CHILDREN.
Children and Young Peoples Services,Head of Childrens Social Care,Third Party Payments,440062,Other third party payments E440,03/04/2020,3725289-7010101565,"165,211.89",NHS DDES CCG.
Children and Young Peoples Services,Head of Early Help Inclusion & Vulnerable Children.,Employees,080025,Agency Staff,03/04/2020,3725334-51500032,674.25,PROTOCOL EDUCATION LTD.
Children and Young Peoples Services,Head of Early Help Inclusion & Vulnerable Children.,Premises,145009,Cleaning and Domestic Supplies,03/04/2020,3725388-1569,"1,220.00",STAINKLEEN.
Children and Young Peoples Services,Head of Early Help Inclusion & Vulnerable Children.,Premises,108099,Service Repairs and Maintenance,03/04/2020,3724844-42469959-61,587.40,ADT FIRE & SECURITY PLC.
Children and Young Peoples Services,Head of Early Help Inclusion & Vulnerable Children.,Supplies and Services,338078,Services,03/04/2020,3725390-15692,"16,855.97",STEADFAST SECURITY SOLUTIONS LTD.
Neighbourhoods and Climate Change,Environmental Services,Supplies and Services,304221,Equipment and Materials,06/04/2020,3725481-INV0145468,"25,891.20",CROMWELL POLYTHENE LTD.
Neighbourhoods and Climate Change,Environmental Services,Transport,230710,Contract Hire,06/04/2020,3725628-902261,"58,396.48",TRIPLE POINT LEASE PARTNERS.
Neighbourhoods and Climate Change,Environmental Services,Transport,215005,Running Costs of Vehicles,06/04/2020,3725564-569973,"10,296.52",OIL NRG LTD.
"Regeneration, Economy and Growth",Culture Sport and Tourism,Premises,145023,Cleaning and Domestic Supplies,06/04/2020,3725476-CN30024571,615.36,CITRON HYGIENE UK LTD.
"Regeneration, Economy and Growth",Culture Sport and Tourism,Supplies and Services,304337,Equipment and Materials,06/04/2020,3725643-I-0643481,620.80,ZOGGS INTERNATIONAL LTD.
Neighbourhoods and Climate Change,Technical Services CM0300,Third Party Payments,430127,Rendered by Private Contractors,06/04/2020,3725522-2751,825.00,IAN C LIDDLE T/A IC LIDDLE SERVICES.
Neighbourhoods and Climate Change,Technical Services CM0300,Third Party Payments,430127,Rendered by Private Contractors,06/04/2020,3725522-2752,863.00,IAN C LIDDLE T/A IC LIDDLE SERVICES.
Neighbourhoods and Climate Change,Technical Services CM0300,Third Party Payments,430127,Rendered by Private Contractors,06/04/2020,3725528-5305852A,889.00,JA GILSON (AGRICULTURAL CONTRACTORS) LTD.
Neighbourhoods and Climate Change,Technical Services CM0300,Third Party Payments,430128,Rendered by Private Contractors,06/04/2020,3725540-5909,"3,013.00",MAKEPEACE MOTORS.
Neighbourhoods and Climate Change,Technical Services CM0300,Third Party Payments,430127,Rendered by Private Contractors,06/04/2020,3725591-1942,"2,508.50",S & R LANDSCAPES.
Neighbourhoods and Climate Change,Technical Services CM0300,Third Party Payments,430127,Rendered by Private Contractors,06/04/2020,3725591-1943,"1,368.00",S & R LANDSCAPES.
Neighbourhoods and Climate Change,Technical Services CM0300,Third Party Payments,430127,Rendered by Private Contractors,06/04/2020,3725591-1944,"1,873.00",S & R LANDSCAPES.
Neighbourhoods and Climate Change,Technical Services CM0300,Third Party Payments,430127,Rendered by Private Contractors,06/04/2020,3725591-1945,"2,777.50",S & R LANDSCAPES.
Neighbourhoods and Climate Change,Technical Services CM0300,Third Party Payments,430127,Rendered by Private Contractors,06/04/2020,3725591-1946,"2,892.50",S & R LANDSCAPES.
Neighbourhoods and Climate Change,Technical Services CM0300,Third Party Payments,430127,Rendered by Private Contractors,06/04/2020,3725591-1947,"2,472.50",S & R LANDSCAPES.
Neighbourhoods and Climate Change,Technical Services CM0300,Third Party Payments,430127,Rendered by Private Contractors,06/04/2020,3725591-1948,"2,111.00",S & R LANDSCAPES.
Neighbourhoods and Climate Change,Technical Services CM0300,Third Party Payments,430127,Rendered by Private Contractors,06/04/2020,3725591-1949,"1,996.00",S & R LANDSCAPES.
Neighbourhoods and Climate Change,Technical Services CM0300,Third Party Payments,430127,Rendered by Private Contractors,06/04/2020,3725634-47814,"6,652.00",W MARLEY AGRICULTURAL CONTRACTORS LTD.
Neighbourhoods and Climate Change,Environmental Services,Transport,215005,Running Costs of Vehicles,06/04/2020,3725564-569980,"13,695.26",OIL NRG LTD.
Neighbourhoods and Climate Change,Environmental Services,Transport,230710,Contract Hire,06/04/2020,3725628-902262,"2,974.06",TRIPLE POINT LEASE PARTNERS.
Neighbourhoods and Climate Change,Environmental Services,Supplies and Services,304221,Equipment and Materials,06/04/2020,3725607-0000048656,"9,168.72",STRAIGHT MANUFACTURING LTD.
Neighbourhoods and Climate Change,Environmental Services,Third Party Payments,430100,Rendered by Private Contractors,06/04/2020,3725589-AG0040424,"1,236.00",RURAL PAYMENTS AGENCY.
"Regeneration, Economy and Growth",Corporate Property and Land,Supplies and Services,384199,Miscellaneous Expenses,06/04/2020,3725487-10545,725.00,DUNELM GEOTECHNICAL & ENVIRONMENTAL LTD.
Neighbourhoods and Climate Change,Environmental Services,Supplies and Services,324117,Provisions E324,06/04/2020,3725527-7658,538.32,J MORAN LTD T/A CAFFE VINCI.
Neighbourhoods and Climate Change,Environmental Services,Premises,108099,Service Repairs and Maintenance,06/04/2020,3725620-0393,936.00,THE SKILL MILL LTD.
"Regeneration, Economy and Growth",Culture Sport and Tourism,Supplies and Services,384199,Miscellaneous Expenses,06/04/2020,3725507-SINV00249260,"1,306.00",GLOBAL OUTDOOR MEDIA LTD.
Neighbourhoods and Climate Change,Environmental Services,Third Party Payments,430100,Rendered by Private Contractors,06/04/2020,3725522-2723,"3,502.50",IAN C LIDDLE T/A IC LIDDLE SERVICES.
"Regeneration, Economy and Growth",Culture Sport and Tourism,Supplies and Services,338047,Services,06/04/2020,3725496-12181,"6,068.33",ENTERTAINERS SHOW PROVIDERS LTD.
"Regeneration, Economy and Growth",Culture Sport and Tourism,Supplies and Services,384956,Miscellaneous Expenses,06/04/2020,3725503-1264,"1,700.00",FOOTBALL FOUNDATION TRADING LTD.
Neighbourhoods and Climate Change,Technical Services CM0300,Third Party Payments,430100,Rendered by Private Contractors,06/04/2020,3725460-CSUKOU/INV/86284,"54,020.09",BALFOUR BEATTY LIVING PLACES LTD.*
Neighbourhoods and Climate Change,Technical Services CM0300,Supplies and Services,304221,Equipment and Materials,06/04/2020,3725636-23844,"2,807.00",WARD TIMBER LTD.
Neighbourhoods and Climate Change,Technical Services CM0300,Third Party Payments,430100,Rendered by Private Contractors,06/04/2020,3725642-145364624,"5,425.00",ZG LIGHTING (UK) LTD.
Neighbourhoods and Climate Change,Environmental Services,Transport,215012,Running Costs of Vehicles,06/04/2020,3725472-195023,675.50,CHEVIN FLEET SOLUTIONS LTD.
"Regeneration, Economy and Growth",Corporate Property and Land,Third Party Payments,430100,Rendered by Private Contractors,06/04/2020,3725477-6058,740.00,CITY FABRICATIONS LTD.
"Regeneration, Economy and Growth",Corporate Property and Land,Supplies and Services,304221,Equipment and Materials,06/04/2020,3725523-S113793294,"1,621.12",ICI DULUX DECORATOR CENTRES.
"Regeneration, Economy and Growth",Corporate Property and Land,Supplies and Services,304221,Equipment and Materials,06/04/2020,3725470-5856,790.00,CENTURY FABRICATIONS LTD.
"Regeneration, Economy and Growth","Corporate Director - Regeneration, Economy & Growth",Supplies and Services,352001,Conference Expenses,06/04/2020,3725586-7140010130,"1,170.58",RIVERSIDE EVENTS LLP.
"Regeneration, Economy and Growth",Development and Housing,Supplies and Services,384999,Miscellaneous Expenses,06/04/2020,3725617-TGHC/1899,"20,589.68",THE GATESHEAD HOUSING COMPANY LTD.
Adult and Health Services,Head of Adults,Transport,230005,Contract Hire,06/04/2020,3725463-0286,684.00,BIRDS TAXIS LTD.
Adult and Health Services,Head of Adults,Transport,230005,Contract Hire,06/04/2020,3725592-WV137/03,720.00,S & S TRAVEL LTD.
Adult and Health Services,Commissioning inc Supporting People,Third Party Payments,473111,Purchase of Care,06/04/2020,3725534-LCD-FTI013466,"4,119.24",LEONARD CHESHIRE DISABILITY.
Adult and Health Services,Head of Adults,Transport,230005,Contract Hire,06/04/2020,3725459-DCC5MAR20,"1,450.64",ATLAS TAXIS BISHOP AUCKLAND.
Adult and Health Services,Head of Adults,Transport,230005,Contract Hire,06/04/2020,3725463-0281,660.00,BIRDS TAXIS LTD.
Adult and Health Services,Head of Adults,Transport,230005,Contract Hire,06/04/2020,3725463-0284,836.00,BIRDS TAXIS LTD.
Adult and Health Services,Head of Adults,Transport,230005,Contract Hire,06/04/2020,3725542-000043,"2,200.00",MARK HUSBAND T/A TEAK`S TAXIS.
Adult and Health Services,Head of Adults,Transport,230005,Contract Hire,06/04/2020,3725543-KC1032,770.00,MARK O`NEILL T/A KWIK CABS.
Adult and Health Services,Head of Adults,Transport,230005,Contract Hire,06/04/2020,3725506-101619,"1,643.40",G & P JOHNSON LTD T/A NIGHTINGALE COACHES.
Adult and Health Services,Head of Adults,Transport,230005,Contract Hire,06/04/2020,3725576-GL2,"1,251.00",PRESTYS HACKNEY & PRIVATE HIRE TAXIS.
Adult and Health Services,Head of Adults,Transport,230005,Contract Hire,06/04/2020,3725450-32013,572.94,24/7 TAXI SERVICES LTD.
Adult and Health Services,Head of Adults,Transport,230005,Contract Hire,06/04/2020,3725516-07-MARCH,897.00,HARDIP SINGH MAHIL T/A AMBER CARS.
Adult and Health Services,Head of Adults,Transport,230005,Contract Hire,06/04/2020,3725463-0285,"2,156.00",BIRDS TAXIS LTD.
Adult and Health Services,Head of Adults,Third Party Payments,470101,Purchase of Care,06/04/2020,3725468-CFSI1194.,"6,333.33",CATCOTE FUTURES.
Adult and Health Services,Head of Adults,Transport,230005,Contract Hire,06/04/2020,3725483-FOO7,780.00,DAVID BRIDDICK T/A COUNDONS TAXIS.
Adult and Health Services,Head of Adults,Transport,230005,Contract Hire,06/04/2020,3725521-IR2003006,"2,090.00",I & R EXECUTIVE TRAVEL.
Adult and Health Services,Head of Adults,Transport,230005,Contract Hire,06/04/2020,3725592-SED112/19,"2,039.84",S & S TRAVEL LTD.
Adult and Health Services,Head of Adults,Transport,230005,Contract Hire,06/04/2020,3725601-2055,"1,804.00",SIMONS TAXIS.
Children and Young Peoples Services,Childrens Services Operational Support,Supplies and Services,338026,Services,06/04/2020,3725474-ED415,"1,690.50",CHOICES & VOICES CARE LTD.
Children and Young Peoples Services,Childrens Services Operational Support,Supplies and Services,338026,Services,06/04/2020,3725474-ED422,551.25,CHOICES & VOICES CARE LTD.
Children and Young Peoples Services,Childrens Services Operational Support,Supplies and Services,338026,Services,06/04/2020,3725474-LJR43,808.55,CHOICES & VOICES CARE LTD.
"Regeneration, Economy and Growth",Culture Sport and Tourism,Fees,901004,Capital - Detailed Design,06/04/2020,3725609-180466,520.00,SUPATINT LTD T/A SUPATINT WINDOW FILMS & BLINDS.
"Regeneration, Economy and Growth",Culture Sport and Tourism,Supplies and Services,328041,Clothing uniforms and laundry E328,06/04/2020,3725621-NSIN00033558,521.02,THOMAS OWEN & SONS (NEWCASTLE) LTD.
"Regeneration, Economy and Growth",Culture Sport and Tourism,Supplies and Services,324001,Provisions E324,06/04/2020,3725551-905748782,"1,430.94",MOLSON COORS BREWING COMPANY (UK) LTD.
"Regeneration, Economy and Growth",Culture Sport and Tourism,Vehicles Equipment Furniture and Fittings,912529,Purchase-equipment,06/04/2020,3725604-00373474,"44,777.58",STAGE ELECTRICS PARTNERSHIP LTD.
Chief Executive's Office,Communications Management,Supplies and Services,336005,Advertising E336,06/04/2020,3725561-32233645,680.00,NEWSQUEST (YORKSHIRE & NORTH EAST) LTD.
Chief Executive's Office,Communications Management,Supplies and Services,336005,Advertising E336,06/04/2020,3725561-32356645,"1,050.00",NEWSQUEST (YORKSHIRE & NORTH EAST) LTD.
Chief Executive's Office,Communications Management,Supplies and Services,336005,Advertising E336,06/04/2020,3725561-32359101,"1,000.00",NEWSQUEST (YORKSHIRE & NORTH EAST) LTD.
Chief Executive's Office,Communications Management,Supplies and Services,336005,Advertising E336,06/04/2020,3725561-32376040,724.76,NEWSQUEST (YORKSHIRE & NORTH EAST) LTD.
Chief Executive's Office,Communications Management,Supplies and Services,336005,Advertising E336,06/04/2020,3725561-32376352,"1,076.69",NEWSQUEST (YORKSHIRE & NORTH EAST) LTD.
Chief Executive's Office,Communications Management,Supplies and Services,336005,Advertising E336,06/04/2020,3725561-32379345,500.00,NEWSQUEST (YORKSHIRE & NORTH EAST) LTD.
Chief Executive's Office,Communications Management,Supplies and Services,336005,Advertising E336,06/04/2020,3725561-32380829,"1,500.00",NEWSQUEST (YORKSHIRE & NORTH EAST) LTD.
Chief Executive's Office,Communications Management,Supplies and Services,336005,Advertising E336,06/04/2020,3725561-32425853,693.00,NEWSQUEST (YORKSHIRE & NORTH EAST) LTD.
Chief Executive's Office,Communications Management,Supplies and Services,336005,Advertising E336,06/04/2020,3725561-32651342,"1,000.00",NEWSQUEST (YORKSHIRE & NORTH EAST) LTD.
Chief Executive's Office,Communications Management,Supplies and Services,336005,Advertising E336,06/04/2020,3725561-32669117,"1,050.00",NEWSQUEST (YORKSHIRE & NORTH EAST) LTD.
Transformation and Partnerships,Communications Management,Supplies and Services,336005,Advertising E336,06/04/2020,3725561-32233645,680.00,NEWSQUEST (YORKSHIRE & NORTH EAST) LTD.
Transformation and Partnerships,Communications Management,Supplies and Services,336005,Advertising E336,06/04/2020,3725561-32356645,"1,050.00",NEWSQUEST (YORKSHIRE & NORTH EAST) LTD.
Transformation and Partnerships,Communications Management,Supplies and Services,336005,Advertising E336,06/04/2020,3725561-32359101,"1,000.00",NEWSQUEST (YORKSHIRE & NORTH EAST) LTD.
Transformation and Partnerships,Communications Management,Supplies and Services,336005,Advertising E336,06/04/2020,3725561-32376040,724.76,NEWSQUEST (YORKSHIRE & NORTH EAST) LTD.
Transformation and Partnerships,Communications Management,Supplies and Services,336005,Advertising E336,06/04/2020,3725561-32376352,"1,076.69",NEWSQUEST (YORKSHIRE & NORTH EAST) LTD.
Transformation and Partnerships,Communications Management,Supplies and Services,336005,Advertising E336,06/04/2020,3725561-32379345,500.00,NEWSQUEST (YORKSHIRE & NORTH EAST) LTD.
Transformation and Partnerships,Communications Management,Supplies and Services,336005,Advertising E336,06/04/2020,3725561-32380829,"1,500.00",NEWSQUEST (YORKSHIRE & NORTH EAST) LTD.
Transformation and Partnerships,Communications Management,Supplies and Services,336005,Advertising E336,06/04/2020,3725561-32425853,693.00,NEWSQUEST (YORKSHIRE & NORTH EAST) LTD.
Transformation and Partnerships,Communications Management,Supplies and Services,336005,Advertising E336,06/04/2020,3725561-32651342,"1,000.00",NEWSQUEST (YORKSHIRE & NORTH EAST) LTD.
Transformation and Partnerships,Communications Management,Supplies and Services,336005,Advertising E336,06/04/2020,3725561-32669117,"1,050.00",NEWSQUEST (YORKSHIRE & NORTH EAST) LTD.
Neighbourhoods and Climate Change,Partnerships & Community Engagement Div.,Supplies and Services,384086,Miscellaneous Expenses,06/04/2020,3725511-VOUCHERATKJ14-19,500.00,GREAT AYCLIFFE VILLAGE HALL ASSOCIATION.
Neighbourhoods and Climate Change,Partnerships & Community Engagement Div.,Cap Exp on Grants & Other Financial Assistance (REFCUS),918004,Contributions to other bodies 918004,06/04/2020,3725638-VOUCHER19NB-CHES027,"5,056.00",WOODSHED WORKSHOP CIC.
Resources BK0010,Digital and Customer Services,Supplies and Services,344015,Telephones,06/04/2020,3725633-NV73022,"1,022.00",VODAFONE LTD.
Resources BK0010,Digital and Customer Services,Supplies and Services,344015,Telephones,06/04/2020,3725633-NW95893,876.00,VODAFONE LTD.
Resources BK0010,Digital and Customer Services,Supplies and Services,344015,Telephones,06/04/2020,3725633-NW95898,688.00,VODAFONE LTD.
Resources BK0010,Digital and Customer Services,Supplies and Services,304040,Equipment and Materials,06/04/2020,3725469-100281,"1,848.00",CENTRAL POWER SERVICES LTD (CPS).
Resources BK0010,Legal & Democratic Services,Supplies and Services,338042,Services,06/04/2020,3725485-356266/INVCSM471,550.00,DERE STREET BARRISTERS.
Children and Young Peoples Services,Head of Education and Skills,Supplies and Services,372009,Subscriptions E372,06/04/2020,3725500-SIS20-0715,"47,796.85",FFT EDUCATION LTD.
Resources BK0010,Digital and Customer Services,Stock A926,926900,Stock in hand-Inventory system,06/04/2020,3725484-7402609037,"7,592.00",DELL COMPUTER CORPORATION LTD.
Dedicated Schools Grant BG0015,DSG High Needs Block,Supplies and Services,384199,Miscellaneous Expenses,06/04/2020,3725541-101,630.00,MARGARET NETZLER T/A MC COUNSELLING SERVICES.
Children and Young Peoples Services,Head of Education and Skills,Transport,230007,Contract Hire,06/04/2020,3725540-5911,545.53,MAKEPEACE MOTORS.
Children and Young Peoples Services,Head of Education and Skills,Supplies and Services,384199,Miscellaneous Expenses,06/04/2020,3725588-DW0044/2,"1,217.90",ROSEBERRY GRANGE GOLF CLUB.
Children and Young Peoples Services,Head of Education and Skills,Transport,230008,Contract Hire,06/04/2020,3725568-N07409,"1,246.39",PB PRIVATE HIRE.
Children and Young Peoples Services,Head of Education and Skills,Supplies and Services,338027,Services,06/04/2020,3725549-0052,"1,875.00",MICHAEL NELSON T/A CAD2CODE CIC.
Children and Young Peoples Services,Head of Education and Skills,Supplies and Services,338027,Services,06/04/2020,3725549-0053,"1,125.00",MICHAEL NELSON T/A CAD2CODE CIC.
Children and Young Peoples Services,Head of Education and Skills,Transport,230006,Contract Hire,06/04/2020,3725572-34660,676.98,PHOENIX TAXIS T/A PRATT`S TAXIS.
Children and Young Peoples Services,Head of Childrens Social Care,Supplies and Services,338044,Services,06/04/2020,3725548-0420,"1,780.00",MECROW MEDICAL SERVICES LTD.
Children and Young Peoples Services,Head of Childrens Social Care,Third Party Payments,425020,Rendered by Voluntary Organisations,06/04/2020,3725603-7805,"3,684.06",ST OSWALD`S HOSPICE LTD.
Children and Young Peoples Services,Head of Childrens Social Care,Third Party Payments,425020,Rendered by Voluntary Organisations,06/04/2020,3725603-7869,"2,456.04",ST OSWALD`S HOSPICE LTD.
Children and Young Peoples Services,Head of Childrens Social Care,Third Party Payments,425020,Rendered by Voluntary Organisations,06/04/2020,3725603-7957,"8,186.80",ST OSWALD`S HOSPICE LTD.
Children and Young Peoples Services,Head of Childrens Social Care,Third Party Payments,425028,Rendered by Voluntary Organisations,06/04/2020,3725524-SB/EA0220,"4,900.00",INCLUDE IN AUTISM.
Neighbourhoods and Climate Change,Environmental Services,Third Party Payments,430100,Rendered by Private Contractors,07/04/2020,3726359-57687,"1,638.04",ALAN REED LTD.
Neighbourhoods and Climate Change,Environmental Services,Third Party Payments,430100,Rendered by Private Contractors,07/04/2020,3726398-I330ZJ254,528.20,CHARLES PUGH (WINDSCREENS) LTD T/A NATIONAL WINDSCREENS TEESSIDE/TYNESIDE.
Neighbourhoods and Climate Change,Environmental Services,Third Party Payments,430100,Rendered by Private Contractors,07/04/2020,3726419-375690,680.68,DENNIS EAGLE LTD.
Neighbourhoods and Climate Change,Environmental Services,Third Party Payments,430101,Rendered by Private Contractors,07/04/2020,3726424-IV1248805,"2,024.30",DIRECT TYRE MANAGEMENT LTD (DTM).
Neighbourhoods and Climate Change,Environmental Services,Third Party Payments,430101,Rendered by Private Contractors,07/04/2020,3726424-IV1260827,978.37,DIRECT TYRE MANAGEMENT LTD (DTM).
Neighbourhoods and Climate Change,Environmental Services,Third Party Payments,430100,Rendered by Private Contractors,07/04/2020,3726603-125029,945.66,ZOELLER WASTE SYSTEMS LTD.
Neighbourhoods and Climate Change,Environmental Services,Third Party Payments,430100,Rendered by Private Contractors,07/04/2020,3726419-375661,524.27,DENNIS EAGLE LTD.
Neighbourhoods and Climate Change,Environmental Services,Third Party Payments,430101,Rendered by Private Contractors,07/04/2020,3726424-IV1255469,"1,992.66",DIRECT TYRE MANAGEMENT LTD (DTM).
Neighbourhoods and Climate Change,Environmental Services,Third Party Payments,430101,Rendered by Private Contractors,07/04/2020,3726424-IV1258336,621.69,DIRECT TYRE MANAGEMENT LTD (DTM).
Neighbourhoods and Climate Change,Environmental Services,Third Party Payments,430101,Rendered by Private Contractors,07/04/2020,3726424-IV1260834,665.82,DIRECT TYRE MANAGEMENT LTD (DTM).
Neighbourhoods and Climate Change,Environmental Services,Third Party Payments,430101,Rendered by Private Contractors,07/04/2020,3726424-IV1260830,580.32,DIRECT TYRE MANAGEMENT LTD (DTM).
Neighbourhoods and Climate Change,Environmental Services,Transport,230005,Contract Hire,07/04/2020,3726583-9HP20123,540.12,TURNER HIRE DRIVE LTD.
Neighbourhoods and Climate Change,Environmental Services,Third Party Payments,430100,Rendered by Private Contractors,07/04/2020,3726603-124886,835.35,ZOELLER WASTE SYSTEMS LTD.
Neighbourhoods and Climate Change,Technical Services CM0300,Third Party Payments,430128,Rendered by Private Contractors,07/04/2020,3726442-267,650.00,F WARD FARM.
Neighbourhoods and Climate Change,Technical Services CM0300,Third Party Payments,430128,Rendered by Private Contractors,07/04/2020,3726442-268,519.75,F WARD FARM.
Neighbourhoods and Climate Change,Technical Services CM0300,Third Party Payments,430128,Rendered by Private Contractors,07/04/2020,3726442-269,"1,535.25",F WARD FARM.
Neighbourhoods and Climate Change,Technical Services CM0300,Third Party Payments,430128,Rendered by Private Contractors,07/04/2020,3726442-270,"2,808.00",F WARD FARM.
Neighbourhoods and Climate Change,Technical Services CM0300,Third Party Payments,430128,Rendered by Private Contractors,07/04/2020,3726442-272,814.00,F WARD FARM.
Neighbourhoods and Climate Change,Technical Services CM0300,Third Party Payments,430128,Rendered by Private Contractors,07/04/2020,3726442-273,"2,710.00",F WARD FARM.
Neighbourhoods and Climate Change,Environmental Services,Third Party Payments,430101,Rendered by Private Contractors,07/04/2020,3726424-IV1255468,943.55,DIRECT TYRE MANAGEMENT LTD (DTM).
Neighbourhoods and Climate Change,Environmental Services,Third Party Payments,430101,Rendered by Private Contractors,07/04/2020,3726424-IV1260833,"2,033.27",DIRECT TYRE MANAGEMENT LTD (DTM).
Neighbourhoods and Climate Change,Environmental Services,Third Party Payments,430100,Rendered by Private Contractors,07/04/2020,3726438-1000423448,503.55,ENTERPRISE FLEX-E-RENT T/A BURNT TREE GROUP LTD.
Neighbourhoods and Climate Change,Environmental Services,Third Party Payments,430100,Rendered by Private Contractors,07/04/2020,3726438-13000432761,"2,004.05",ENTERPRISE FLEX-E-RENT T/A BURNT TREE GROUP LTD.
Neighbourhoods and Climate Change,Environmental Services,Third Party Payments,430100,Rendered by Private Contractors,07/04/2020,3726438-13000438459,824.73,ENTERPRISE FLEX-E-RENT T/A BURNT TREE GROUP LTD.
Neighbourhoods and Climate Change,Environmental Services,Third Party Payments,430100,Rendered by Private Contractors,07/04/2020,3726470-81799,"1,480.22",HOGARTH COACHWORKS LTD.
Neighbourhoods and Climate Change,Environmental Services,Third Party Payments,430100,Rendered by Private Contractors,07/04/2020,3726470-81800,965.48,HOGARTH COACHWORKS LTD.
Neighbourhoods and Climate Change,Environmental Services,Third Party Payments,430100,Rendered by Private Contractors,07/04/2020,3726482-65328289,551.04,JOHNSTON SWEEPERS LTD.
Neighbourhoods and Climate Change,Environmental Services,Third Party Payments,430100,Rendered by Private Contractors,07/04/2020,3726530-TEE2261,597.54,PIRTEK TYNE & WEAR.
Neighbourhoods and Climate Change,Environmental Services,Transport,230005,Contract Hire,07/04/2020,3726550-11254044,664.26,SHB HIRE LTD.
Neighbourhoods and Climate Change,Community Protection,Supplies and Services,338027,Services,07/04/2020,3726600-64447937,"5,745.00",WSP UK LTD.
Neighbourhoods and Climate Change,Environmental Services,Supplies and Services,304221,Equipment and Materials,07/04/2020,3726373-97915125,"1,506.96",BALL COLEGRAVE LTD.
Neighbourhoods and Climate Change,Environmental Services,Supplies and Services,304221,Equipment and Materials,07/04/2020,3726373-97915131,"1,027.32",BALL COLEGRAVE LTD.
Neighbourhoods and Climate Change,Community Protection,Third Party Payments,430100,Rendered by Private Contractors,07/04/2020,3726414-SAC/JC/58376,750.00,CSN CONSULTING.*
Neighbourhoods and Climate Change,Technical Services CM0300,Construction work A908,908112,Capital - Drainage,07/04/2020,3726518-914742264,"7,246.06",NORTHUMBRIAN WATER LTD.
Resources BK0010,Digital and Customer Services,Supplies and Services,332001,Printing Stationery and Gen Off Exps,07/04/2020,3726554-15668,"1,105.17",STEADFAST SECURITY SOLUTIONS LTD.
Neighbourhoods and Climate Change,Environmental Services,Premises,108099,Service Repairs and Maintenance,07/04/2020,3726370-INV001056,734.75,ASSOCIATED MAINTENANCE SERVICES LTD.
Neighbourhoods and Climate Change,Environmental Services,Third Party Payments,430119,Rendered by Private Contractors,07/04/2020,3726464-115622,"10,852.76",HARPERS ENVIRONMENTAL LTD.
"Regeneration, Economy and Growth",Culture Sport and Tourism,Supplies and Services,384199,Miscellaneous Expenses,07/04/2020,3726367-1721,"1,528.00",ASH COOPER FREELANCE SERVICES.
"Regeneration, Economy and Growth",Culture Sport and Tourism,Supplies and Services,384151,Miscellaneous Expenses,07/04/2020,3726454-303A,"2,350.00",GAZEBOS FOR HIRE LTD.
"Regeneration, Economy and Growth",Culture Sport and Tourism,Supplies and Services,384199,Miscellaneous Expenses,07/04/2020,3726456-267,750.00,GRAHAM RUSHTON.
"Regeneration, Economy and Growth",Culture Sport and Tourism,Employees,080030,Agency Staff,07/04/2020,3726486-DCC2020001,616.00,JULIE RYAN T/A TANK GIRL TRAINING.
Neighbourhoods and Climate Change,Technical Services CM0300,Stock A926,926900,Stock in hand-Inventory system,07/04/2020,3726407-236783,"2,793.84",COLAS LTD.
Neighbourhoods and Climate Change,Technical Services CM0300,Stock A926,926900,Stock in hand-Inventory system,07/04/2020,3726407-236787,631.20,COLAS LTD.
Neighbourhoods and Climate Change,Technical Services CM0300,Supplies and Services,304221,Equipment and Materials,07/04/2020,3726430-059-262181,903.00,EDMUNDSON ELECTRICAL LTD.
Neighbourhoods and Climate Change,Technical Services CM0300,Third Party Payments,430100,Rendered by Private Contractors,07/04/2020,3726469-3092,"2,350.00",HIGHWAY CONSTRUCTION SERVICES LTD.
Neighbourhoods and Climate Change,Technical Services CM0300,Third Party Payments,430100,Rendered by Private Contractors,07/04/2020,3726469-3093,"4,600.00",HIGHWAY CONSTRUCTION SERVICES LTD.
Neighbourhoods and Climate Change,Technical Services CM0300,Supplies and Services,304221,Equipment and Materials,07/04/2020,3726511-0000085965,"4,217.97",NAL LTD.
Neighbourhoods and Climate Change,Technical Services CM0300,Supplies and Services,304221,Equipment and Materials,07/04/2020,3726560-1658,630.72,STONEGRAVE AGGREGATES LTD.
Neighbourhoods and Climate Change,Technical Services CM0300,Supplies and Services,304221,Equipment and Materials,07/04/2020,3726560-1915,551.04,STONEGRAVE AGGREGATES LTD.
"Regeneration, Economy and Growth",Corporate Property and Land,Third Party Payments,430100,Rendered by Private Contractors,07/04/2020,3726394-458,538.14,CEILINGS DIRECT LTD.
"Regeneration, Economy and Growth",Corporate Property and Land,Third Party Payments,430100,Rendered by Private Contractors,07/04/2020,3726394-461,"1,359.41",CEILINGS DIRECT LTD.
"Regeneration, Economy and Growth",Corporate Property and Land,Third Party Payments,430100,Rendered by Private Contractors,07/04/2020,3726394-462,"1,891.54",CEILINGS DIRECT LTD.
"Regeneration, Economy and Growth",Corporate Property and Land,Third Party Payments,430100,Rendered by Private Contractors,07/04/2020,3726450-11320,"8,043.00",FROSTREE LTD.
Neighbourhoods and Climate Change,Technical Services CM0300,Supplies and Services,338044,Services,07/04/2020,3726358-28421679,"6,264.00",AECOM LTD.
Neighbourhoods and Climate Change,Technical Services CM0300,Third Party Payments,430100,Rendered by Private Contractors,07/04/2020,3726372-CSUKOU/INV/87781,"59,283.61",BALFOUR BEATTY CIVIL ENGINEERING LTD.
Neighbourhoods and Climate Change,Environmental Services,Premises,120021,Energy Costs,07/04/2020,3726391-32711684,855.17,CALOR GAS LTD.
"Regeneration, Economy and Growth",Development and Housing,Supplies and Services,338066,Services,07/04/2020,3726544-002447,"21,000.00",RYDER ARCHITECTURE LTD.
"Regeneration, Economy and Growth",Business Durham CL0850,Supplies and Services,344033,Telephones,07/04/2020,3726448-DERW01-0020,914.40,FREEDOM COMMUNICATIONS (UK) LTD.
"Regeneration, Economy and Growth",Business Durham CL0850,Supplies and Services,304259,Equipment and Materials,07/04/2020,3726528-67318327,"2,275.25",PHS GROUP PLC.
"Regeneration, Economy and Growth",Business Durham CL0850,Supplies and Services,368008,Incentives to Industrialists,07/04/2020,3726411-RED-04-2020-037,"3,996.09",COUNTY DURHAM ENGINEERING & MANUFACTURING NETWORK LTD (CDEMN).
"Regeneration, Economy and Growth",Development and Housing,Supplies and Services,384999,Miscellaneous Expenses,07/04/2020,3726366-117041,996.50,ARRIVA DURHAM COUNTY LTD.
"Regeneration, Economy and Growth",Development and Housing,Supplies and Services,384999,Miscellaneous Expenses,07/04/2020,3726545-1,790.00,SAFE & SECURE PROPERTIES.
"Regeneration, Economy and Growth",Corporate Property and Land,Construction work A908,908105,Construction work,07/04/2020,3726489-10004226,"863,438.85",KIER PROPERTY DEVELOPMENTS LTD.
"Regeneration, Economy and Growth",Corporate Property and Land,Supplies and Services,338066,Services,07/04/2020,3726598-3469568,"2,345.40",WOMBLE BOND DICKINSON (UK) LLP.
"Regeneration, Economy and Growth",Transport and Contracted Services,Third Party Payments,430106,Rendered by Private Contractors,07/04/2020,3726444-PUBLICSERVICEFEB/MAR20,"4,856.95",FERRYHILL VILLAGE TRAVEL.
"Regeneration, Economy and Growth",Transport and Contracted Services,Supplies and Services,338080,Services,07/04/2020,3726439-2350,"1,174.96",ESP SYSTEX LTD.
"Regeneration, Economy and Growth",Corporate Property and Land,Supplies and Services,338066,Services,07/04/2020,3726362-APP0000000592,"29,347.12",ALIGN PROPERTY PARTNERS LTD.
Adult and Health Services,Commissioning inc Supporting People,Third Party Payments,442002,Supporting People E442,07/04/2020,3726651-1970234,"39,736.48",CREATIVE SUPPORT LTD.
Adult and Health Services,Commissioning inc Supporting People,Third Party Payments,441001,Supporting People E441,07/04/2020,3726720-1970281,"53,698.32",HOME GROUP LTD FORMERLY STONHAM HOUSING ASSOCIATION LTD.
Adult and Health Services,Commissioning inc Supporting People,Third Party Payments,442002,Supporting People E442,07/04/2020,3726720-1970283,"55,925.72",HOME GROUP LTD FORMERLY STONHAM HOUSING ASSOCIATION LTD.
Adult and Health Services,Commissioning inc Supporting People,Third Party Payments,442002,Supporting People E442,07/04/2020,3726745-1970236,"10,939.72",MENTAL HEALTH MATTERS.
Adult and Health Services,Commissioning inc Supporting People,Third Party Payments,441001,Supporting People E441,07/04/2020,3726792-1970239,"18,847.88",RICHMOND FELLOWSHIP.
Adult and Health Services,Commissioning inc Supporting People,Third Party Payments,442002,Supporting People E442,07/04/2020,3726792-1970238,"23,524.08",RICHMOND FELLOWSHIP.
Adult and Health Services,Commissioning inc Supporting People,Third Party Payments,442002,Supporting People E442,07/04/2020,3726838-1970259,"10,177.84",THIRTEEN HOUSING GROUP LTD.
Adult and Health Services,Commissioning inc Supporting People,Third Party Payments,441001,Supporting People E441,07/04/2020,3726852-1970241,"4,735.20",WADDINGTON STREET CENTRE LTD.
Adult and Health Services,Commissioning inc Supporting People,Third Party Payments,442002,Supporting People E442,07/04/2020,3726852-1970263,"1,747.44",WADDINGTON STREET CENTRE LTD.
Adult and Health Services,Commissioning inc Supporting People,Third Party Payments,479111,Purchase of Care,07/04/2020,3726609-1970270,"6,594.48",ANCHOR HANOVER GROUP.
Adult and Health Services,Commissioning inc Supporting People,Third Party Payments,442002,Supporting People E442,07/04/2020,3726621-1970242,"32,896.04",BID SERVICES.
Adult and Health Services,Commissioning inc Supporting People,Third Party Payments,479111,Purchase of Care,07/04/2020,3726720-1970245,"1,977.36",HOME GROUP LTD FORMERLY STONHAM HOUSING ASSOCIATION LTD.
Adult and Health Services,Commissioning inc Supporting People,Third Party Payments,441001,Supporting People E441,07/04/2020,3726671-1970240,"10,966.40",EAST DURHAM COMMUNITY INITIATIVES LTD.
Adult and Health Services,Commissioning inc Supporting People,Third Party Payments,441001,Supporting People E441,07/04/2020,3726720-1970271,"108,932.72",HOME GROUP LTD FORMERLY STONHAM HOUSING ASSOCIATION LTD.
Adult and Health Services,Commissioning inc Supporting People,Third Party Payments,442002,Supporting People E442,07/04/2020,3726721-1970264,"55,771.68",HUMANKIND CHARITY.
Adult and Health Services,Commissioning inc Supporting People,Third Party Payments,442002,Supporting People E442,07/04/2020,3726748-1970272,"5,240.48",MOVING ON HOUSING.
Adult and Health Services,Commissioning inc Supporting People,Third Party Payments,442002,Supporting People E442,07/04/2020,3726811-1970273,"12,662.08",SINGLE HOMELESS ACTION INITIATIVE IN DURHAM LTD (SHAID).
Adult and Health Services,Commissioning inc Supporting People,Third Party Payments,441001,Supporting People E441,07/04/2020,3726838-1970261,"22,272.08",THIRTEEN HOUSING GROUP LTD.
Adult and Health Services,Commissioning inc Supporting People,Third Party Payments,441001,Supporting People E441,07/04/2020,3726838-1970260,"15,553.68",THIRTEEN HOUSING GROUP LTD.
Adult and Health Services,Commissioning inc Supporting People,Third Party Payments,441001,Supporting People E441,07/04/2020,3726665-1970267,"50,490.12",DURHAM ACTION ON SINGLE HOUSING LTD.
Adult and Health Services,Commissioning inc Supporting People,Third Party Payments,442002,Supporting People E442,07/04/2020,3726687-1970266,"46,686.56",FOUNDATION.
Adult and Health Services,Commissioning inc Supporting People,Third Party Payments,441001,Supporting People E441,07/04/2020,3726699-1970235,"36,165.80",HARBOUR SUPPORT SERVICES.
Adult and Health Services,Commissioning inc Supporting People,Third Party Payments,442002,Supporting People E442,07/04/2020,3726720-1970232,"227,886.68",HOME GROUP LTD FORMERLY STONHAM HOUSING ASSOCIATION LTD.
Adult and Health Services,Commissioning inc Supporting People,Third Party Payments,442002,Supporting People E442,07/04/2020,3726721-1970233,"11,336.48",HUMANKIND CHARITY.
Adult and Health Services,Commissioning inc Supporting People,Third Party Payments,441001,Supporting People E441,07/04/2020,3726830-1970243,"38,462.20",THE CYRENIANS LTD T/A CHANGING LIVES.
Adult and Health Services,Commissioning inc Supporting People,Third Party Payments,441001,Supporting People E441,07/04/2020,3726838-1970285,"23,595.88",THIRTEEN HOUSING GROUP LTD.
Adult and Health Services,Commissioning inc Supporting People,Third Party Payments,441001,Supporting People E441,07/04/2020,3726855-1970237,"14,314.00",WEAR VALLEY WOMENS AID LTD.
Adult and Health Services,Commissioning inc Supporting People,Supplies and Services,336005,Advertising E336,07/04/2020,3726576-2458,"7,990.00",THREE MOTION MEDIA LTD.
Adult and Health Services,Commissioning inc Supporting People,Third Party Payments,479111,Purchase of Care,07/04/2020,3726392-4405,"4,949.66",CARERS FEDERATION LTD.
Adult and Health Services,Head of Adults,Transport,230005,Contract Hire,07/04/2020,3726452-101652,"1,073.60",G & P JOHNSON LTD T/A NIGHTINGALE COACHES.
Adult and Health Services,Head of Adults,Transport,230005,Contract Hire,07/04/2020,3726452-101653,910.14,G & P JOHNSON LTD T/A NIGHTINGALE COACHES.
Adult and Health Services,Head of Adults,Transport,230005,Contract Hire,07/04/2020,3726452-101654,"1,232.00",G & P JOHNSON LTD T/A NIGHTINGALE COACHES.
Adult and Health Services,Head of Adults,Transport,230005,Contract Hire,07/04/2020,3726452-101656,551.72,G & P JOHNSON LTD T/A NIGHTINGALE COACHES.
Adult and Health Services,Head of Adults,Transport,230005,Contract Hire,07/04/2020,3726452-101657,864.80,G & P JOHNSON LTD T/A NIGHTINGALE COACHES.
Adult and Health Services,Head of Adults,Transport,230005,Contract Hire,07/04/2020,3726452-101658,"1,826.00",G & P JOHNSON LTD T/A NIGHTINGALE COACHES.
Adult and Health Services,Head of Adults,Transport,230005,Contract Hire,07/04/2020,3726452-101659,975.00,G & P JOHNSON LTD T/A NIGHTINGALE COACHES.
Adult and Health Services,Head of Adults,Transport,230005,Contract Hire,07/04/2020,3726473-IR2003010,704.00,I & R EXECUTIVE TRAVEL.
Adult and Health Services,Head of Adults,Transport,230005,Contract Hire,07/04/2020,3726473-IR2003011,844.00,I & R EXECUTIVE TRAVEL.
Adult and Health Services,Head of Adults,Transport,230005,Contract Hire,07/04/2020,3726487-1064,"3,256.00",K & R TAXIS (STANLEY).
Adult and Health Services,Head of Adults,Transport,230005,Contract Hire,07/04/2020,3726515-MARCH2020,600.00,ND TAXIS.
Adult and Health Services,Head of Adults,Transport,230005,Contract Hire,07/04/2020,3726452-101652MARCH,"1,449.03",G & P JOHNSON LTD T/A NIGHTINGALE COACHES.
Adult and Health Services,Head of Adults,Transport,230005,Contract Hire,07/04/2020,3726452-101660,"1,910.92",G & P JOHNSON LTD T/A NIGHTINGALE COACHES.
Adult and Health Services,Head of Adults,Transport,230005,Contract Hire,07/04/2020,3726452-101661,"2,092.86",G & P JOHNSON LTD T/A NIGHTINGALE COACHES.
Adult and Health Services,Head of Adults,Transport,230005,Contract Hire,07/04/2020,3726481-01032020,"1,639.90",JOHN HUBBLE T/A HUBB`S TAXIS.
Adult and Health Services,Head of Adults,Transport,230005,Contract Hire,07/04/2020,3726492-1818,"1,592.36",LD TAXIS.
Adult and Health Services,Head of Adults,Third Party Payments,473101,Purchase of Care,07/04/2020,3726517-0000052486,698.88,NORTH EAST AUTISM SOCIETY.
Children and Young Peoples Services,Childrens Services Operational Support,Supplies and Services,338026,Services,07/04/2020,3726562-SC22,563.10,SUSAN CAWTHERLEY.
"Regeneration, Economy and Growth",Culture Sport and Tourism,Premises,120037,Energy Costs,07/04/2020,3726391-32345767,"3,755.84",CALOR GAS LTD.
Resources BK0010,Finance & Transactional Services,Supplies and Services,340001,Postages E340,07/04/2020,3726542-9060578147,"15,042.14",ROYAL MAIL GROUP PLC.
Resources BK0010,Digital and Customer Services,Vehicles Equipment Furniture and Fittings,912701,Computer equipment,07/04/2020,3726475-4801753,691.00,INSIGHT DIRECT (UK) LTD.
Resources BK0010,Digital and Customer Services,Supplies and Services,304252,Equipment and Materials,07/04/2020,3726534-92653713,"15,653.89",QUADIENT FINANCE UK LTD FORMERLY NEOPOST LTD.
Resources BK0010,Legal & Democratic Services,Supplies and Services,338042,Services,07/04/2020,3726421-352611/INVMM485,"1,800.00",DERE STREET BARRISTERS.
Resources BK0010,Legal & Democratic Services,Supplies and Services,338042,Services,07/04/2020,3726421-354364/INVEI4,"2,650.00",DERE STREET BARRISTERS.
Resources BK0010,Legal & Democratic Services,Supplies and Services,338042,Services,07/04/2020,3726421-356708/INVHT43,550.00,DERE STREET BARRISTERS.
Resources BK0010,Digital and Customer Services,Stock A926,926900,Stock in hand-Inventory system,07/04/2020,3726475-4802426,521.00,INSIGHT DIRECT (UK) LTD.
Children and Young Peoples Services,Head of Education and Skills,Transport,230008,Contract Hire,07/04/2020,3726504-100,504.00,MICHAEL COBB T/A HAIL TAXIS.
Children and Young Peoples Services,Head of Education and Skills,Transport,230007,Contract Hire,07/04/2020,3726379-27471,"1,463.00",BLUELINE TAXIS.
Children and Young Peoples Services,Head of Education and Skills,Transport,230009,Contract Hire,07/04/2020,3726498-INV111924,716.00,MARK & JOHN CHISHOLM T/A (CHEVRON).
Children and Young Peoples Services,Head of Education and Skills,Transport,230009,Contract Hire,07/04/2020,3726379-29492,"1,314.00",BLUELINE TAXIS.
Children and Young Peoples Services,Head of Education and Skills,Supplies and Services,384199,Miscellaneous Expenses,07/04/2020,3726535-INV-0098,"9,750.00",RAW DIGITAL TRAINING LTD.
Children and Young Peoples Services,Head of Education and Skills,Transport,230008,Contract Hire,07/04/2020,3726379-28160,918.00,BLUELINE TAXIS.
Dedicated Schools Grant BG0015,DSG High Needs Block,Third Party Payments,440080,Other third party payments E440,07/04/2020,3726426-CRAW02,"2,665.50",DURHAM SCHOOL.*
Dedicated Schools Grant BG0015,DSG High Needs Block,Third Party Payments,440080,Other third party payments E440,07/04/2020,3726426-FOX02,"4,997.57",DURHAM SCHOOL.*
Dedicated Schools Grant BG0015,DSG High Needs Block,Third Party Payments,425005,Rendered by Voluntary Organisations,07/04/2020,3726517-0000051446,"21,243.35",NORTH EAST AUTISM SOCIETY.
Dedicated Schools Grant BG0015,DSG High Needs Block,Third Party Payments,425005,Rendered by Voluntary Organisations,07/04/2020,3726517-0000051448,"27,601.67",NORTH EAST AUTISM SOCIETY.
Dedicated Schools Grant BG0015,DSG High Needs Block,Third Party Payments,425005,Rendered by Voluntary Organisations,07/04/2020,3726517-0000051805,"27,601.67",NORTH EAST AUTISM SOCIETY.
Children and Young Peoples Services,Head of Education and Skills,Transport,230006,Contract Hire,07/04/2020,3726527-34647,"1,272.00",PHOENIX TAXIS T/A PRATT`S TAXIS.
Children and Young Peoples Services,Head of Education and Skills,Transport,230006,Contract Hire,07/04/2020,3726527-34648,748.00,PHOENIX TAXIS T/A PRATT`S TAXIS.
Children and Young Peoples Services,Head of Education and Skills,Transport,230006,Contract Hire,07/04/2020,3726527-34657,906.00,PHOENIX TAXIS T/A PRATT`S TAXIS.
Children and Young Peoples Services,Head of Education and Skills,Third Party Payments,440999,Other third party payments E440,07/04/2020,3726369-8014/C,"29,250.00",ASPIRE LEARNING SUPPORT & WELLBEING CIC.
Children and Young Peoples Services,Head of Childrens Social Care,Third Party Payments,425041,Rendered by Voluntary Organisations,07/04/2020,3726365-ARC1920-374,"51,000.00",ARC ADOPTION NORTH EAST.
Non-Service Specific,Non Service Specific-Financing,Long Term Debtors,924001,Car loans,07/04/2020,3726366-116693,639.00,ARRIVA DURHAM COUNTY LTD.
Neighbourhoods and Climate Change,Environmental Services,Supplies and Services,304221,Equipment and Materials,08/04/2020,3726989-7868,"2,300.00",IBA FABRICATIONS LTD.
Neighbourhoods and Climate Change,Environmental Services,Premises,108099,Service Repairs and Maintenance,08/04/2020,3726984-J7271,530.00,GROVE REED.
Neighbourhoods and Climate Change,Environmental Services,Premises,120009,Energy Costs,08/04/2020,3727053-219120672-05/03/2020,857.06,NPOWER.
Neighbourhoods and Climate Change,Environmental Services,Supplies and Services,328041,Clothing uniforms and laundry E328,08/04/2020,3727000-9730,"1,185.00",JG UNIFORMS.
Neighbourhoods and Climate Change,Environmental Services,Supplies and Services,304259,Equipment and Materials,08/04/2020,3726902-411149,"1,428.00",CARRS BILLINGTON AGRICULTURE.
Neighbourhoods and Climate Change,Environmental Services,Transport,210057,Repair and Maintenance of Vehicles,08/04/2020,3726891-35177499,596.83,BELL TRUCK SALES LTD T/A BELL TRUCK & VAN.
Neighbourhoods and Climate Change,Environmental Services,Transport,210057,Repair and Maintenance of Vehicles,08/04/2020,3726907-3437368113,"3,198.68",CHEMETALL LTD.
Neighbourhoods and Climate Change,Environmental Services,Transport,230005,Contract Hire,08/04/2020,3726962-8158620,571.02,ENTERPRISE FLEX-E-RENT T/A BURNT TREE GROUP LTD.
Neighbourhoods and Climate Change,Environmental Services,Transport,230005,Contract Hire,08/04/2020,3726962-8158636,"1,173.35",ENTERPRISE FLEX-E-RENT T/A BURNT TREE GROUP LTD.
"Regeneration, Economy and Growth",Culture Sport and Tourism,Supplies and Services,304337,Equipment and Materials,08/04/2020,3727170-I-0643482,726.20,ZOGGS INTERNATIONAL LTD.
"Regeneration, Economy and Growth",Culture Sport and Tourism,Premises,145023,Cleaning and Domestic Supplies,08/04/2020,3726909-CN30024570,581.88,CITRON HYGIENE UK LTD.
"Regeneration, Economy and Growth",Culture Sport and Tourism,Supplies and Services,304252,Equipment and Materials,08/04/2020,3726879-70019393,"1,091.37",APPLIED TRADING LTD.
"Regeneration, Economy and Growth",Culture Sport and Tourism,Supplies and Services,328041,Clothing uniforms and laundry E328,08/04/2020,3727139-NSIN00033841,660.38,THOMAS OWEN & SONS (NEWCASTLE) LTD.
"Regeneration, Economy and Growth",Culture Sport and Tourism,Supplies and Services,328041,Clothing uniforms and laundry E328,08/04/2020,3727139-NSIN00033838,"1,040.34",THOMAS OWEN & SONS (NEWCASTLE) LTD.
"Regeneration, Economy and Growth",Culture Sport and Tourism,Supplies and Services,328041,Clothing uniforms and laundry E328,08/04/2020,3727139-NSIN00033549,672.47,THOMAS OWEN & SONS (NEWCASTLE) LTD.
Neighbourhoods and Climate Change,Technical Services CM0300,Supplies and Services,372009,Subscriptions E372,08/04/2020,3726882-2020211022,"2,120.00","ASSOCIATION OF DIRECTORS OF ENVIRONMENT, ECONOMY, PLANNING & TRANSPORT (ADEPT)."
Neighbourhoods and Climate Change,Environmental Services,Transport,210057,Repair and Maintenance of Vehicles,08/04/2020,3726934-DE11301411,"1,647.74",DENNIS EAGLE LTD.
"Regeneration, Economy and Growth",Culture Sport and Tourism,Supplies and Services,304337,Equipment and Materials,08/04/2020,3726916-20297,700.00,CONNECT HEALTH LTD.
Neighbourhoods and Climate Change,Technical Services CM0300,Third Party Payments,430128,Rendered by Private Contractors,08/04/2020,3727008-INV-0168,"3,559.00",JW TEWARD & SONS.
Neighbourhoods and Climate Change,Technical Services CM0300,Third Party Payments,430100,Rendered by Private Contractors,08/04/2020,3727099-SC20-2468,"3,264.00",SAFECOTE LTD.
Neighbourhoods and Climate Change,Technical Services CM0300,Third Party Payments,430100,Rendered by Private Contractors,08/04/2020,3727099-SC20-2469,"3,264.00",SAFECOTE LTD.
Neighbourhoods and Climate Change,Environmental Services,Transport,230005,Contract Hire,08/04/2020,3726962-8158623,568.85,ENTERPRISE FLEX-E-RENT T/A BURNT TREE GROUP LTD.
Neighbourhoods and Climate Change,Environmental Services,Transport,230005,Contract Hire,08/04/2020,3726962-8158633,"1,085.00",ENTERPRISE FLEX-E-RENT T/A BURNT TREE GROUP LTD.
Neighbourhoods and Climate Change,Environmental Services,Transport,230005,Contract Hire,08/04/2020,3726962-8158635,"1,173.35",ENTERPRISE FLEX-E-RENT T/A BURNT TREE GROUP LTD.
"Regeneration, Economy and Growth",Corporate Property and Land,Supplies and Services,384199,Miscellaneous Expenses,08/04/2020,3727003-000082696,875.00,JOHN WADE (HAULAGE) LTD.
"Regeneration, Economy and Growth",Corporate Property and Land,Supplies and Services,384199,Miscellaneous Expenses,08/04/2020,3727003-INSDEMOLITIONOFGARAGES,"48,688.00",JOHN WADE (HAULAGE) LTD.
"Regeneration, Economy and Growth",Corporate Property and Land,Premises,108251,Service Repairs and Maintenance,08/04/2020,3726937-0000377279,666.55,DIGITAL ID LTD.
"Regeneration, Economy and Growth",Corporate Property and Land,Premises,145023,Cleaning and Domestic Supplies,08/04/2020,3726982-06/059386,"1,579.20",GREENHAM TRADING LTD.
Neighbourhoods and Climate Change,Technical Services CM0300,Fees,901004,Capital - Detailed Design,08/04/2020,3727056-22334,"1,314.00",NW SECURITY GROUP LTD.
Neighbourhoods and Climate Change,Environmental Services,Supplies and Services,304358,Equipment and Materials,08/04/2020,3727002-30537,"1,009.00",JOHN R BUTTERFIELD LTD.
Neighbourhoods and Climate Change,Environmental Services,Vehicles Equipment Furniture and Fittings,912529,Purchase-equipment,08/04/2020,3727162-0000810158,"23,813.00",WICKSTEED LEISURE LTD.
"Regeneration, Economy and Growth",Culture Sport and Tourism,Supplies and Services,384199,Miscellaneous Expenses,08/04/2020,3726881-1722,"1,482.50",ASH COOPER FREELANCE SERVICES.
Neighbourhoods and Climate Change,Technical Services CM0300,Stock A926,926900,Stock in hand-Inventory system,08/04/2020,3726875-I8534872,"15,875.00",ALLIANCE DISPOSABLES LTD T/A ALLIANCE NORTH LTD.
Neighbourhoods and Climate Change,Technical Services CM0300,Stock A926,926900,Stock in hand-Inventory system,08/04/2020,3726982-06/059327,"1,048.02",GREENHAM TRADING LTD.
Neighbourhoods and Climate Change,Technical Services CM0300,Stock A926,926900,Stock in hand-Inventory system,08/04/2020,3727031-IN220148,"1,970.00",MAZWELL GROUP LTD.
Neighbourhoods and Climate Change,Technical Services CM0300,Stock A926,926900,Stock in hand-Inventory system,08/04/2020,3727062-XL254031,"3,935.97",PARK ELECTRICAL DISTRIBUTORS LTD.
Neighbourhoods and Climate Change,Technical Services CM0300,Stock A926,926900,Stock in hand-Inventory system,08/04/2020,3727062-XL254334,"1,675.71",PARK ELECTRICAL DISTRIBUTORS LTD.
Neighbourhoods and Climate Change,Technical Services CM0300,Stock A926,926900,Stock in hand-Inventory system,08/04/2020,3727126-5282084,"2,490.00",SUPPLIES TEAM LTD NOW KNOWN AS BANNER GROUP LTD.
Neighbourhoods and Climate Change,Technical Services CM0300,Stock A926,926900,Stock in hand-Inventory system,08/04/2020,3727153-29640,"20,019.95",UNITED HYGIENE & CATERING EQUIPMENT LTD.
Neighbourhoods and Climate Change,Technical Services CM0300,Third Party Payments,430100,Rendered by Private Contractors,08/04/2020,3727139-NSIN00033950,"3,953.04",THOMAS OWEN & SONS (NEWCASTLE) LTD.
Neighbourhoods and Climate Change,Technical Services CM0300,Supplies and Services,304358,Equipment and Materials,08/04/2020,3726900-07144,862.50,BW HAULAGE LTD.
Neighbourhoods and Climate Change,Technical Services CM0300,Third Party Payments,430100,Rendered by Private Contractors,08/04/2020,3726965-164620,"1,996.00",ESH CONSTRUCTION LTD FORMERLY LUMSDEN & CARROLL CONSTRUCTION LTD.
Neighbourhoods and Climate Change,Technical Services CM0300,Supplies and Services,304358,Equipment and Materials,08/04/2020,3727002-30126,"1,091.00",JOHN R BUTTERFIELD LTD.
Neighbourhoods and Climate Change,Technical Services CM0300,Supplies and Services,304358,Equipment and Materials,08/04/2020,3727002-30526,"1,476.00",JOHN R BUTTERFIELD LTD.
Neighbourhoods and Climate Change,Technical Services CM0300,Supplies and Services,304358,Equipment and Materials,08/04/2020,3727002-30532,"1,421.50",JOHN R BUTTERFIELD LTD.
Neighbourhoods and Climate Change,Technical Services CM0300,Supplies and Services,304358,Equipment and Materials,08/04/2020,3727002-30533,"1,110.00",JOHN R BUTTERFIELD LTD.
Neighbourhoods and Climate Change,Technical Services CM0300,Supplies and Services,304358,Equipment and Materials,08/04/2020,3727002-30551,"1,036.00",JOHN R BUTTERFIELD LTD.
Neighbourhoods and Climate Change,Technical Services CM0300,Supplies and Services,304358,Equipment and Materials,08/04/2020,3727002-30552,"1,584.00",JOHN R BUTTERFIELD LTD.
Neighbourhoods and Climate Change,Technical Services CM0300,Supplies and Services,304358,Equipment and Materials,08/04/2020,3727002-30553,"1,475.00",JOHN R BUTTERFIELD LTD.
Neighbourhoods and Climate Change,Technical Services CM0300,Supplies and Services,304358,Equipment and Materials,08/04/2020,3727002-30554,936.00,JOHN R BUTTERFIELD LTD.
Neighbourhoods and Climate Change,Technical Services CM0300,Supplies and Services,304358,Equipment and Materials,08/04/2020,3727002-30555,959.50,JOHN R BUTTERFIELD LTD.
Neighbourhoods and Climate Change,Technical Services CM0300,Supplies and Services,304358,Equipment and Materials,08/04/2020,3727002-30558,"1,193.00",JOHN R BUTTERFIELD LTD.
Neighbourhoods and Climate Change,Technical Services CM0300,Supplies and Services,304358,Equipment and Materials,08/04/2020,3727002-30559,"1,110.00",JOHN R BUTTERFIELD LTD.
Neighbourhoods and Climate Change,Technical Services CM0300,Supplies and Services,304358,Equipment and Materials,08/04/2020,3727002-30560,888.00,JOHN R BUTTERFIELD LTD.
Neighbourhoods and Climate Change,Technical Services CM0300,Supplies and Services,304358,Equipment and Materials,08/04/2020,3727002-30564,834.00,JOHN R BUTTERFIELD LTD.
Neighbourhoods and Climate Change,Technical Services CM0300,Supplies and Services,304358,Equipment and Materials,08/04/2020,3727002-30573,"1,004.00",JOHN R BUTTERFIELD LTD.
Neighbourhoods and Climate Change,Technical Services CM0300,Supplies and Services,304358,Equipment and Materials,08/04/2020,3727002-30574,"1,120.00",JOHN R BUTTERFIELD LTD.
Neighbourhoods and Climate Change,Technical Services CM0300,Supplies and Services,304358,Equipment and Materials,08/04/2020,3727002-30575,785.00,JOHN R BUTTERFIELD LTD.
Neighbourhoods and Climate Change,Technical Services CM0300,Supplies and Services,304358,Equipment and Materials,08/04/2020,3727002-30576,647.50,JOHN R BUTTERFIELD LTD.
Neighbourhoods and Climate Change,Technical Services CM0300,Supplies and Services,304358,Equipment and Materials,08/04/2020,3727002-30580,560.00,JOHN R BUTTERFIELD LTD.
Neighbourhoods and Climate Change,Technical Services CM0300,Supplies and Services,304358,Equipment and Materials,08/04/2020,3727002-30581,501.00,JOHN R BUTTERFIELD LTD.
Neighbourhoods and Climate Change,Technical Services CM0300,Supplies and Services,304358,Equipment and Materials,08/04/2020,3727003-0000082654,750.00,JOHN WADE (HAULAGE) LTD.
Neighbourhoods and Climate Change,Technical Services CM0300,Supplies and Services,304358,Equipment and Materials,08/04/2020,3727010-3181,"1,036.00",KEVIN SNOWDON GROUNDWORKS LTD.
Neighbourhoods and Climate Change,Technical Services CM0300,Supplies and Services,304358,Equipment and Materials,08/04/2020,3727010-3189,991.00,KEVIN SNOWDON GROUNDWORKS LTD.
Neighbourhoods and Climate Change,Technical Services CM0300,Supplies and Services,304358,Equipment and Materials,08/04/2020,3727010-3192,975.00,KEVIN SNOWDON GROUNDWORKS LTD.
Neighbourhoods and Climate Change,Technical Services CM0300,Supplies and Services,304358,Equipment and Materials,08/04/2020,3727010-3195,726.00,KEVIN SNOWDON GROUNDWORKS LTD.
Neighbourhoods and Climate Change,Technical Services CM0300,Supplies and Services,304358,Equipment and Materials,08/04/2020,3727010-3202,704.00,KEVIN SNOWDON GROUNDWORKS LTD.
Neighbourhoods and Climate Change,Technical Services CM0300,Supplies and Services,304358,Equipment and Materials,08/04/2020,3727010-3210,"1,006.00",KEVIN SNOWDON GROUNDWORKS LTD.
Neighbourhoods and Climate Change,Technical Services CM0300,Supplies and Services,304358,Equipment and Materials,08/04/2020,3727010-3220,"1,326.50",KEVIN SNOWDON GROUNDWORKS LTD.
Neighbourhoods and Climate Change,Technical Services CM0300,Supplies and Services,304358,Equipment and Materials,08/04/2020,3727010-3221,669.00,KEVIN SNOWDON GROUNDWORKS LTD.
Neighbourhoods and Climate Change,Technical Services CM0300,Supplies and Services,304358,Equipment and Materials,08/04/2020,3727093-3760,"1,314.00",REUBEN SMITH (PLANT HIRE) LTD.
"Regeneration, Economy and Growth",Corporate Property and Land,Third Party Payments,430100,Rendered by Private Contractors,08/04/2020,3726885-2013,"20,212.38",AWR ROOFING & ALUMIN RAINWATER SYSTEMS LTD.
"Regeneration, Economy and Growth",Corporate Property and Land,Supplies and Services,304221,Equipment and Materials,08/04/2020,3727130-JE01971TLEP,"1,670.00",T MANNERS & SONS LTD.
"Regeneration, Economy and Growth",Corporate Property and Land,Third Party Payments,430100,Rendered by Private Contractors,08/04/2020,3726975-AP23379,593.25,GEOFFREY ROBINSON LTD.
"Regeneration, Economy and Growth",Corporate Property and Land,Supplies and Services,304221,Equipment and Materials,08/04/2020,3727118-00373521,"2,133.11",STAGE ELECTRICS PARTNERSHIP LTD.
"Regeneration, Economy and Growth",Corporate Property and Land,Supplies and Services,304221,Equipment and Materials,08/04/2020,3727118-00373522,894.43,STAGE ELECTRICS PARTNERSHIP LTD.
"Regeneration, Economy and Growth",Corporate Property and Land,Third Party Payments,430100,Rendered by Private Contractors,08/04/2020,3727118-00373520,"1,185.68",STAGE ELECTRICS PARTNERSHIP LTD.
"Regeneration, Economy and Growth",Corporate Property and Land,Third Party Payments,430100,Rendered by Private Contractors,08/04/2020,3726972-824810,"1,384.40",GARTEC LTD.
"Regeneration, Economy and Growth",Corporate Property and Land,Supplies and Services,304221,Equipment and Materials,08/04/2020,3727108-0000104753,745.00,SHORTS INDUSTRIES LTD T/A SHORTS LIFTS.
"Regeneration, Economy and Growth",Business Durham CL0850,Premises,120009,Energy Costs,08/04/2020,3727053-NNO786BD,"2,233.48",NPOWER.
"Regeneration, Economy and Growth",Business Durham CL0850,Premises,120009,Energy Costs,08/04/2020,3727053-NNO797RG,"2,927.30",NPOWER.
"Regeneration, Economy and Growth",Business Durham CL0850,Premises,120009,Energy Costs,08/04/2020,3727053-NNO797RF,"2,314.28",NPOWER.
"Regeneration, Economy and Growth",Business Durham CL0850,Premises,120009,Energy Costs,08/04/2020,3727059-67956791,"2,436.31",OPUS ENERGY LTD.
"Regeneration, Economy and Growth",Business Durham CL0850,Premises,120009,Energy Costs,08/04/2020,3727059-68118516,"1,558.92",OPUS ENERGY LTD.
"Regeneration, Economy and Growth",Business Durham CL0850,Premises,120009,Energy Costs,08/04/2020,3727053-NNO786BV,"1,137.51",NPOWER.
"Regeneration, Economy and Growth",Business Durham CL0850,Premises,120009,Energy Costs,08/04/2020,3727053-NNO797RL,"1,477.00",NPOWER.
"Regeneration, Economy and Growth",Business Durham CL0850,Supplies and Services,338078,Services,08/04/2020,3727157-INV-35801,"5,839.62",VISTECH SERVICES.
"Regeneration, Economy and Growth",Development and Housing,Supplies and Services,384871,Miscellaneous Expenses,08/04/2020,3726920-RED-04-2020-038,"1,000.00",COUNTY DURHAM COMMUNITY FOUNDATION.
"Regeneration, Economy and Growth",Development and Housing,Supplies and Services,304403,Equipment and Materials,08/04/2020,3727128-505724,"1,083.60",SYCAL UMBRELLAS PRINT & PROMOTIONS LTD.
"Regeneration, Economy and Growth",Development and Housing,Supplies and Services,338027,Services,08/04/2020,3727016-167500MAR20,"139,685.87",LANDMARK CHAMBERS.
Neighbourhoods and Climate Change,Environmental Services,Supplies and Services,338066,Services,08/04/2020,3726961-1014-16808,950.00,ENERGY & COMPLIANCE TECHNOLOGY LTD T/A COMPLIANCE365.
Neighbourhoods and Climate Change,Environmental Services,Supplies and Services,384199,Miscellaneous Expenses,08/04/2020,3727091-4100691296-APRIL2020,625.00,RACHEL RIDDELL (MARINE & SOCIAL RESEARCH).
Neighbourhoods and Climate Change,Environmental Services,Supplies and Services,384199,Miscellaneous Expenses,08/04/2020,3726939-INV-0190,"8,000.00",DIGVENTURES LTD.
Neighbourhoods and Climate Change,Environmental Services,Supplies and Services,384199,Miscellaneous Expenses,08/04/2020,3726939-INV-0198,"10,500.00",DIGVENTURES LTD.
Neighbourhoods and Climate Change,Environmental Services,Supplies and Services,384199,Miscellaneous Expenses,08/04/2020,3727007-1210,"7,840.00",JW BAINBRIDGE CONTRACTORS LTD.
"Regeneration, Economy and Growth",Development and Housing,Supplies and Services,384999,Miscellaneous Expenses,08/04/2020,3726897-28GBC/GG/12,630.00,BISHOP LETTINGS.
"Regeneration, Economy and Growth",Transport and Contracted Services,Third Party Payments,430100,Rendered by Private Contractors,08/04/2020,3727054-00012021,"26,003.75",NSL LTD.
"Regeneration, Economy and Growth",Transport and Contracted Services,Third Party Payments,430100,Rendered by Private Contractors,08/04/2020,3727054-00012022,676.86,NSL LTD.
"Regeneration, Economy and Growth",Transport and Contracted Services,Third Party Payments,430100,Rendered by Private Contractors,08/04/2020,3727054-00012130,"6,638.05",NSL LTD.
"Regeneration, Economy and Growth",Transport and Contracted Services,Third Party Payments,430100,Rendered by Private Contractors,08/04/2020,3727054-00012023,"52,606.94",NSL LTD.
"Regeneration, Economy and Growth",Transport and Contracted Services,Third Party Payments,430100,Rendered by Private Contractors,08/04/2020,3727054-00012024,"3,213.55",NSL LTD.
"Regeneration, Economy and Growth",Transport and Contracted Services,Third Party Payments,430100,Rendered by Private Contractors,08/04/2020,3727054-00012025,"6,372.68",NSL LTD.
"Regeneration, Economy and Growth",Transport and Contracted Services,Third Party Payments,430100,Rendered by Private Contractors,08/04/2020,3727054-00012131,"3,160.56",NSL LTD.
"Regeneration, Economy and Growth",Transport and Contracted Services,Third Party Payments,430100,Rendered by Private Contractors,08/04/2020,3727054-00012026,"17,261.43",NSL LTD.
"Regeneration, Economy and Growth",Transport and Contracted Services,Third Party Payments,430106,Rendered by Private Contractors,08/04/2020,3726978-73250,"96,398.31",GO GATESHEAD LTD.
"Regeneration, Economy and Growth",Transport and Contracted Services,Supplies and Services,338080,Services,08/04/2020,3726966-2361,"1,285.66",ESP SYSTEX LTD.
"Regeneration, Economy and Growth",Transport and Contracted Services,Intangible Assets,917001,Software capitalised licence fees,08/04/2020,3726942-DRA1155,"55,653.00",DRAKEWELL LTD.
"Regeneration, Economy and Growth",Corporate Property and Land,Construction work A908,908105,Construction work,08/04/2020,3726883-20011587,"10,498.00",ATKINS GLOBAL.
"Regeneration, Economy and Growth",Corporate Property and Land,Fees,901002,Professional fees,08/04/2020,3726883-20002663,"8,540.00",ATKINS GLOBAL.
Adult and Health Services,Commissioning inc Supporting People,Third Party Payments,473111,Purchase of Care,08/04/2020,3727019-LCD-FTI013467,"4,119.24",LEONARD CHESHIRE DISABILITY.
Adult and Health Services,Head of Adults,Transport,230005,Contract Hire,08/04/2020,3727033-202012,636.90,MR JR FORT T/A JRF TAXIS.
Adult and Health Services,Head of Adults,Premises,145050,Cleaning and Domestic Supplies,08/04/2020,3726913-JOB001/19969,"1,900.00",COLIN JOBLING T/A RAINBOW INTERNATIONAL.
Adult and Health Services,Head of Adults,Transport,230005,Contract Hire,08/04/2020,3726895-0283,724.00,BIRDS TAXIS LTD.
Adult and Health Services,Head of Adults,Transport,230005,Contract Hire,08/04/2020,3726914-WV104/032020,864.38,COLVIN`S CABS.
Adult and Health Services,Head of Adults,Transport,230005,Contract Hire,08/04/2020,3726971-101666,"1,518.00",G & P JOHNSON LTD T/A NIGHTINGALE COACHES.
Adult and Health Services,Head of Adults,Transport,230005,Contract Hire,08/04/2020,3727033-202011,636.48,MR JR FORT T/A JRF TAXIS.
Adult and Health Services,Head of Adults,Transport,230005,Contract Hire,08/04/2020,3727138-216,"1,056.91",THE TAXI COMPANY (MURTON) LTD.
Adult and Health Services,Head of Adults,Transport,230005,Contract Hire,08/04/2020,3726873-0031,"1,559.46",AIRPORT TAXIS 4U.
Adult and Health Services,Head of Adults,Transport,230005,Contract Hire,08/04/2020,3726884-04110,685.49,ATLAS TAXIS CONSETT.
Adult and Health Services,Head of Adults,Third Party Payments,470101,Purchase of Care,08/04/2020,3727048-0000051894,"50,831.46",NORTH EAST AUTISM SOCIETY.
Children and Young Peoples Services,Childrens Services Operational Support,Supplies and Services,338026,Services,08/04/2020,3727006-DS1,"1,406.65",JULIE ROSLING (INDEPENDENT SOCIAL WORKER).
"Regeneration, Economy and Growth",Culture Sport and Tourism,Supplies and Services,372009,Subscriptions E372,08/04/2020,3727080-SIN1429017,"4,203.76",PPL PRS LTD.
"Regeneration, Economy and Growth",Culture Sport and Tourism,Vehicles Equipment Furniture and Fittings,912529,Purchase-equipment,08/04/2020,3727118-00373499,"2,742.05",STAGE ELECTRICS PARTNERSHIP LTD.
Adult and Health Services,Public Health CC0450,Third Party Payments,460803,Contract Payments,08/04/2020,3727074-17281/14,"5,462.93",PIONEERING CARE PARTNERSHIP.
Resources BK0010,Finance & Transactional Services,Supplies and Services,338066,Services,08/04/2020,3726910-C/BN194699,"7,344.25",CIVICA UK LTD.
Resources BK0010,Digital and Customer Services,Supplies and Services,304245,Equipment and Materials,08/04/2020,3726878-9206351,540.00,ANTALIS LTD.
Resources BK0010,Digital and Customer Services,Intangible Assets,917003,Software capitalised implementation fees,08/04/2020,3727088-925877931,"13,000.00",QUADIENT FINANCE UK LTD FORMERLY NEOPOST LTD.
Resources BK0010,Digital and Customer Services,Supplies and Services,344015,Telephones,08/04/2020,3727159-NX45699,"3,695.00",VODAFONE LTD.
Resources BK0010,Digital and Customer Services,Supplies and Services,342051,Computers and Communications,08/04/2020,3727168-IN0087366,"3,310.00",ZELLIS UK LTD.
Resources BK0010,Digital and Customer Services,Supplies and Services,342051,Computers and Communications,08/04/2020,3727168-IN0087367,"23,508.00",ZELLIS UK LTD.
Resources - C A C,Centrally Administered costs 069006,Third Party Payments,440999,Other third party payments E440,08/04/2020,3727161-8000267751,"6,528.00",WEST DEVON BOROUGH COUNCIL.
Resources BK0010,Legal & Democratic Services,Supplies and Services,338042,Services,08/04/2020,3726935-349386/INVRR111,"6,400.00",DERE STREET BARRISTERS.
Resources BK0010,Legal & Democratic Services,Supplies and Services,338042,Services,08/04/2020,3726935-349386/INVRR112,"2,120.00",DERE STREET BARRISTERS.
Resources BK0010,Legal & Democratic Services,Supplies and Services,338042,Services,08/04/2020,3726935-350542/INVEMC329,"3,925.00",DERE STREET BARRISTERS.
Resources BK0010,Legal & Democratic Services,Supplies and Services,338042,Services,08/04/2020,3726935-353269/INVSW856,"2,375.00",DERE STREET BARRISTERS.
Resources BK0010,Legal & Democratic Services,Supplies and Services,338042,Services,08/04/2020,3726935-353779/INVEMC328,890.00,DERE STREET BARRISTERS.
Resources BK0010,Legal & Democratic Services,Supplies and Services,338042,Services,08/04/2020,3726935-353848/INVCM147,"2,250.00",DERE STREET BARRISTERS.
Resources BK0010,Legal & Democratic Services,Supplies and Services,338042,Services,08/04/2020,3726935-355831/INVSEB1X218,"1,350.00",DERE STREET BARRISTERS.
Resources BK0010,Legal & Democratic Services,Supplies and Services,338042,Services,08/04/2020,3726935-356028/INVCM150,900.00,DERE STREET BARRISTERS.
Resources BK0010,Legal & Democratic Services,Supplies and Services,338042,Services,08/04/2020,3726935-356708/INVSEB1X220,850.00,DERE STREET BARRISTERS.
Resources BK0010,Legal & Democratic Services,Supplies and Services,338042,Services,08/04/2020,3726935-356724/INVSEB1X221,550.00,DERE STREET BARRISTERS.
Resources BK0010,Legal & Democratic Services,Supplies and Services,338042,Services,08/04/2020,3726935-357018/INVTD779,550.00,DERE STREET BARRISTERS.
Children and Young Peoples Services,Head of Education and Skills,Transport,230034,Contract Hire,08/04/2020,3727071-34654,841.00,PHOENIX TAXIS T/A PRATT`S TAXIS.
Children and Young Peoples Services,Head of Education and Skills,Transport,230009,Contract Hire,08/04/2020,3727071-7374,675.00,PHOENIX TAXIS T/A PRATT`S TAXIS.
Dedicated Schools Grant BG0015,DSG High Needs Block,Third Party Payments,440080,Other third party payments E440,08/04/2020,3727048-0000051462,"7,980.00",NORTH EAST AUTISM SOCIETY.
Dedicated Schools Grant BG0015,DSG High Needs Block,Third Party Payments,440080,Other third party payments E440,08/04/2020,3727048-0000051766,"14,040.00",NORTH EAST AUTISM SOCIETY.
Dedicated Schools Grant BG0015,DSG High Needs Block,Third Party Payments,440080,Other third party payments E440,08/04/2020,3727048-0000051771,"9,165.00",NORTH EAST AUTISM SOCIETY.
Dedicated Schools Grant BG0015,DSG High Needs Block,Third Party Payments,440080,Other third party payments E440,08/04/2020,3727048-0000051772,"14,040.00",NORTH EAST AUTISM SOCIETY.
Dedicated Schools Grant BG0015,DSG High Needs Block,Third Party Payments,440080,Other third party payments E440,08/04/2020,3727048-0000051784,"27,926.67",NORTH EAST AUTISM SOCIETY.
Dedicated Schools Grant BG0015,DSG High Needs Block,Third Party Payments,440080,Other third party payments E440,08/04/2020,3727048-0000051787,"23,790.00",NORTH EAST AUTISM SOCIETY.
Dedicated Schools Grant BG0015,DSG High Needs Block,Third Party Payments,440080,Other third party payments E440,08/04/2020,3727048-0000051810,"9,880.00",NORTH EAST AUTISM SOCIETY.
Dedicated Schools Grant BG0015,DSG High Needs Block,Third Party Payments,440080,Other third party payments E440,08/04/2020,3727048-0000051812,"27,910.42",NORTH EAST AUTISM SOCIETY.
Dedicated Schools Grant BG0015,DSG High Needs Block,Third Party Payments,440080,Other third party payments E440,08/04/2020,3727048-0000051814,"14,040.00",NORTH EAST AUTISM SOCIETY.
Dedicated Schools Grant BG0015,DSG High Needs Block,Third Party Payments,440080,Other third party payments E440,08/04/2020,3727048-0000051934,"7,980.00",NORTH EAST AUTISM SOCIETY.
Dedicated Schools Grant BG0015,DSG High Needs Block,Third Party Payments,440080,Other third party payments E440,08/04/2020,3727048-0000051940,"5,066.66",NORTH EAST AUTISM SOCIETY.
Dedicated Schools Grant BG0015,DSG High Needs Block,Third Party Payments,440080,Other third party payments E440,08/04/2020,3727048-0000051981,"1,110.00",NORTH EAST AUTISM SOCIETY.
Dedicated Schools Grant BG0015,DSG High Needs Block,Third Party Payments,440080,Other third party payments E440,08/04/2020,3727048-0000052444,"1,020.00",NORTH EAST AUTISM SOCIETY.
Dedicated Schools Grant BG0015,DSG High Needs Block,Third Party Payments,425005,Rendered by Voluntary Organisations,08/04/2020,3727048-0000050568,"23,790.00",NORTH EAST AUTISM SOCIETY.
Dedicated Schools Grant BG0015,DSG High Needs Block,Third Party Payments,425005,Rendered by Voluntary Organisations,08/04/2020,3727048-0000051764,"14,040.00",NORTH EAST AUTISM SOCIETY.
Dedicated Schools Grant BG0015,DSG High Needs Block,Third Party Payments,425005,Rendered by Voluntary Organisations,08/04/2020,3727048-0000051770,"14,218.75",NORTH EAST AUTISM SOCIETY.
Dedicated Schools Grant BG0015,DSG High Needs Block,Third Party Payments,425005,Rendered by Voluntary Organisations,08/04/2020,3727048-0000051773,"14,040.00",NORTH EAST AUTISM SOCIETY.
Dedicated Schools Grant BG0015,DSG High Needs Block,Third Party Payments,425005,Rendered by Voluntary Organisations,08/04/2020,3727048-0000051774,"23,790.00",NORTH EAST AUTISM SOCIETY.
Dedicated Schools Grant BG0015,DSG High Needs Block,Third Party Payments,425005,Rendered by Voluntary Organisations,08/04/2020,3727048-0000051776,"23,790.00",NORTH EAST AUTISM SOCIETY.
Dedicated Schools Grant BG0015,DSG High Needs Block,Third Party Payments,425005,Rendered by Voluntary Organisations,08/04/2020,3727048-0000051780,"14,040.00",NORTH EAST AUTISM SOCIETY.
Dedicated Schools Grant BG0015,DSG High Needs Block,Third Party Payments,425005,Rendered by Voluntary Organisations,08/04/2020,3727048-0000051808,"14,040.00",NORTH EAST AUTISM SOCIETY.
Dedicated Schools Grant BG0015,DSG High Needs Block,Third Party Payments,425005,Rendered by Voluntary Organisations,08/04/2020,3727048-0000051822,"7,540.00",NORTH EAST AUTISM SOCIETY.
Dedicated Schools Grant BG0015,DSG High Needs Block,Third Party Payments,425005,Rendered by Voluntary Organisations,08/04/2020,3727048-0000051824,"14,040.00",NORTH EAST AUTISM SOCIETY.
Dedicated Schools Grant BG0015,DSG High Needs Block,Third Party Payments,425005,Rendered by Voluntary Organisations,08/04/2020,3727048-0000051825,"14,040.00",NORTH EAST AUTISM SOCIETY.
Dedicated Schools Grant BG0015,DSG High Needs Block,Third Party Payments,425005,Rendered by Voluntary Organisations,08/04/2020,3727048-0000051921,"9,750.00",NORTH EAST AUTISM SOCIETY.
Dedicated Schools Grant BG0015,DSG High Needs Block,Third Party Payments,425005,Rendered by Voluntary Organisations,08/04/2020,3727048-0000052446,"23,968.75",NORTH EAST AUTISM SOCIETY.
Dedicated Schools Grant BG0015,DSG High Needs Block,Third Party Payments,410037,Rendered by Other Local Authorities,08/04/2020,3727055-INV-1075,668.00,NUDGE EDUCATION LTD.
Children and Young Peoples Services,Head of Education and Skills,Transport,230006,Contract Hire,08/04/2020,3727071-34646,894.00,PHOENIX TAXIS T/A PRATT`S TAXIS.
Dedicated Schools Grant BG0015,DSG High Needs Block,Third Party Payments,440999,Other third party payments E440,08/04/2020,3727044-SLINV/00003960,"50,000.00",NEW COLLEGE DURHAM.
Children and Young Peoples Services,Head of Childrens Social Care,Third Party Payments,425023,Rendered by Voluntary Organisations,08/04/2020,3727048-0000051895,"35,789.00",NORTH EAST AUTISM SOCIETY.
Children and Young Peoples Services,Head of Childrens Social Care,Employees,080025,Agency Staff,08/04/2020,3726976-2437477A,"124,007.69",GEOMETRIC RESULTS INTERNATIONAL.
Children and Young Peoples Services,Head of Childrens Social Care,Third Party Payments,425028,Rendered by Voluntary Organisations,08/04/2020,3726958-EMC106,"4,800.00",ELAINE CHANDLER.
Neighbourhoods and Climate Change,Environmental Services,Premises,108099,Service Repairs and Maintenance,09/04/2020,3727388-12546,"1,250.00",PREMIER CELL FIT T/A LIVEWIRE GATES & DOORS.
Neighbourhoods and Climate Change,Environmental Services,Transport,230005,Contract Hire,09/04/2020,3727459-21105,975.00,TRASH UK LTD.
Neighbourhoods and Climate Change,Environmental Services,Transport,230005,Contract Hire,09/04/2020,3727459-21118,975.00,TRASH UK LTD.
Neighbourhoods and Climate Change,Environmental Services,Transport,230005,Contract Hire,09/04/2020,3727459-21152,975.00,TRASH UK LTD.
Neighbourhoods and Climate Change,Environmental Services,Transport,230005,Contract Hire,09/04/2020,3727276-8158649,568.85,ENTERPRISE FLEX-E-RENT T/A BURNT TREE GROUP LTD.
Neighbourhoods and Climate Change,Environmental Services,Transport,210057,Repair and Maintenance of Vehicles,09/04/2020,3727417-2020.1000007831,827.93,SCARAB SWEEPERS LTD.
"Regeneration, Economy and Growth",Culture Sport and Tourism,Premises,106083,Centrally Controlled Rep and Maint,09/04/2020,3727476-12441,"1,625.00",WATERMAN ENVIRONMENTAL SERVICES.
"Regeneration, Economy and Growth",Culture Sport and Tourism,Supplies and Services,324117,Provisions E324,09/04/2020,3727352-905748796,"2,240.42",MOLSON COORS BREWING COMPANY (UK) LTD.
Neighbourhoods and Climate Change,Community Protection,Third Party Payments,430100,Rendered by Private Contractors,09/04/2020,3727393-IN-20-WP-000846,749.54,PUBLIC ANALYST SCIENTIFIC SERVICES LTD.
Neighbourhoods and Climate Change,Technical Services CM0300,Third Party Payments,430127,Rendered by Private Contractors,09/04/2020,3727317-5305853A,514.00,JA GILSON (AGRICULTURAL CONTRACTORS) LTD.
Neighbourhoods and Climate Change,Environmental Services,Transport,230005,Contract Hire,09/04/2020,3727276-8158651,"1,173.35",ENTERPRISE FLEX-E-RENT T/A BURNT TREE GROUP LTD.
Neighbourhoods and Climate Change,Environmental Services,Transport,230005,Contract Hire,09/04/2020,3727276-8158652,757.00,ENTERPRISE FLEX-E-RENT T/A BURNT TREE GROUP LTD.
Neighbourhoods and Climate Change,Environmental Services,Transport,230005,Contract Hire,09/04/2020,3727276-8158661,"1,173.35",ENTERPRISE FLEX-E-RENT T/A BURNT TREE GROUP LTD.
Neighbourhoods and Climate Change,Environmental Services,Transport,230005,Contract Hire,09/04/2020,3727276-8158666,"1,173.35",ENTERPRISE FLEX-E-RENT T/A BURNT TREE GROUP LTD.
Neighbourhoods and Climate Change,Environmental Services,Transport,230005,Contract Hire,09/04/2020,3727276-8158674,"1,173.35",ENTERPRISE FLEX-E-RENT T/A BURNT TREE GROUP LTD.
Neighbourhoods and Climate Change,Environmental Services,Transport,230005,Contract Hire,09/04/2020,3727276-8158678,"1,173.35",ENTERPRISE FLEX-E-RENT T/A BURNT TREE GROUP LTD.
Neighbourhoods and Climate Change,Environmental Services,Transport,230005,Contract Hire,09/04/2020,3727276-8158681,"1,173.35",ENTERPRISE FLEX-E-RENT T/A BURNT TREE GROUP LTD.
Neighbourhoods and Climate Change,Environmental Services,Transport,230005,Contract Hire,09/04/2020,3727276-8158682,571.02,ENTERPRISE FLEX-E-RENT T/A BURNT TREE GROUP LTD.
Neighbourhoods and Climate Change,Environmental Services,Transport,230005,Contract Hire,09/04/2020,3727276-8158687,"1,173.35",ENTERPRISE FLEX-E-RENT T/A BURNT TREE GROUP LTD.
Neighbourhoods and Climate Change,Environmental Services,Transport,230005,Contract Hire,09/04/2020,3727276-8158689,"1,173.35",ENTERPRISE FLEX-E-RENT T/A BURNT TREE GROUP LTD.
Neighbourhoods and Climate Change,Environmental Services,Transport,230005,Contract Hire,09/04/2020,3727276-8158694,"1,173.35",ENTERPRISE FLEX-E-RENT T/A BURNT TREE GROUP LTD.
Neighbourhoods and Climate Change,Environmental Services,Transport,230005,Contract Hire,09/04/2020,3727276-8158702,508.00,ENTERPRISE FLEX-E-RENT T/A BURNT TREE GROUP LTD.
Neighbourhoods and Climate Change,Environmental Services,Transport,230005,Contract Hire,09/04/2020,3727276-8158716,605.60,ENTERPRISE FLEX-E-RENT T/A BURNT TREE GROUP LTD.
Neighbourhoods and Climate Change,Environmental Services,Transport,210057,Repair and Maintenance of Vehicles,09/04/2020,3727297-261514,500.70,GREENLAY T/A THOMAS SHERRIFF & CO LTD.
Neighbourhoods and Climate Change,Environmental Services,Transport,210057,Repair and Maintenance of Vehicles,09/04/2020,3727303-9539,540.00,HILLCREST AUTO ELECTRICS.
"Regeneration, Economy and Growth",Corporate Property and Land,Supplies and Services,338066,Services,09/04/2020,3727196-HV006913-4/3/20,"2,723.68",B&ES.
Neighbourhoods and Climate Change,Environmental Services,Supplies and Services,338078,Services,09/04/2020,3727432-15696,"6,085.00",STEADFAST SECURITY SOLUTIONS LTD.
"Regeneration, Economy and Growth",Corporate Property and Land,Premises,106082,Centrally Controlled Rep and Maint,09/04/2020,3727191-9293,"1,248.00",ASPECT FIRE SOLUTIONS LTD.
Neighbourhoods and Climate Change,Community Protection,Supplies and Services,338045,Services,09/04/2020,3727248-SAC/SB/58304-26/11/19,984.00,CSN CONSULTING.*
"Regeneration, Economy and Growth",Culture Sport and Tourism,Supplies and Services,384199,Miscellaneous Expenses,09/04/2020,3727449-353,750.00,TERESA BOVEY (DEMONSTRATOR).
"Regeneration, Economy and Growth",Corporate Property and Land,Premises,108099,Service Repairs and Maintenance,09/04/2020,3727177-42465407-61,"1,545.21",ADT FIRE & SECURITY PLC.
Neighbourhoods and Climate Change,Technical Services CM0300,Stock A926,926900,Stock in hand-Inventory system,09/04/2020,3727235-653304,627.40,CMT EQUIPMENT LTD.
Neighbourhoods and Climate Change,Technical Services CM0300,Stock A926,926900,Stock in hand-Inventory system,09/04/2020,3727259-101988,"3,500.00",DESIGN FOR PLASTICS LTD.
Neighbourhoods and Climate Change,Technical Services CM0300,Stock A926,926900,Stock in hand-Inventory system,09/04/2020,3727296-06/054572,"1,067.00",GREENHAM TRADING LTD.
Neighbourhoods and Climate Change,Technical Services CM0300,Stock A926,926900,Stock in hand-Inventory system,09/04/2020,3727323-0113/00035004,"2,744.78",JT DOVE LTD.
Neighbourhoods and Climate Change,Technical Services CM0300,Stock A926,926900,Stock in hand-Inventory system,09/04/2020,3727361-90266,"2,600.00",NBT GROUP LTD.
Neighbourhoods and Climate Change,Technical Services CM0300,Stock A926,926900,Stock in hand-Inventory system,09/04/2020,3727378-XL253167,"8,572.90",PARK ELECTRICAL DISTRIBUTORS LTD.
Neighbourhoods and Climate Change,Technical Services CM0300,Stock A926,926900,Stock in hand-Inventory system,09/04/2020,3727378-XL253707,"4,268.00",PARK ELECTRICAL DISTRIBUTORS LTD.
Neighbourhoods and Climate Change,Technical Services CM0300,Stock A926,926900,Stock in hand-Inventory system,09/04/2020,3727378-XL254524,"7,056.00",PARK ELECTRICAL DISTRIBUTORS LTD.
Neighbourhoods and Climate Change,Technical Services CM0300,Stock A926,926900,Stock in hand-Inventory system,09/04/2020,3727378-XL254525,695.60,PARK ELECTRICAL DISTRIBUTORS LTD.
Neighbourhoods and Climate Change,Technical Services CM0300,Stock A926,926900,Stock in hand-Inventory system,09/04/2020,3727378-XL254526,"1,891.20",PARK ELECTRICAL DISTRIBUTORS LTD.
Neighbourhoods and Climate Change,Technical Services CM0300,Stock A926,926900,Stock in hand-Inventory system,09/04/2020,3727378-XL254529,"2,164.50",PARK ELECTRICAL DISTRIBUTORS LTD.
Neighbourhoods and Climate Change,Technical Services CM0300,Stock A926,926900,Stock in hand-Inventory system,09/04/2020,3727439-5307656,"2,490.00",SUPPLIES TEAM LTD NOW KNOWN AS BANNER GROUP LTD.
Neighbourhoods and Climate Change,Technical Services CM0300,Stock A926,926900,Stock in hand-Inventory system,09/04/2020,3727457-NSIN00031868,"1,119.64",THOMAS OWEN & SONS (NEWCASTLE) LTD.
Neighbourhoods and Climate Change,Technical Services CM0300,Stock A926,926900,Stock in hand-Inventory system,09/04/2020,3727457-NSIN00033013,966.30,THOMAS OWEN & SONS (NEWCASTLE) LTD.
Neighbourhoods and Climate Change,Technical Services CM0300,Stock A926,926900,Stock in hand-Inventory system,09/04/2020,3727457-NSIN00034064,596.64,THOMAS OWEN & SONS (NEWCASTLE) LTD.
Neighbourhoods and Climate Change,Technical Services CM0300,Stock A926,926900,Stock in hand-Inventory system,09/04/2020,3727479-67056556,568.55,WOLSELEY UK LTD.
Neighbourhoods and Climate Change,Technical Services CM0300,Third Party Payments,430100,Rendered by Private Contractors,09/04/2020,3727172-14884,"4,035.60",(IHL GROUP) IAN HOWE LANDSCAPING LTD.
Neighbourhoods and Climate Change,Technical Services CM0300,Supplies and Services,304221,Equipment and Materials,09/04/2020,3727180-29632729,598.40,AGGREGATE INDUSTRIES UK LTD.
Neighbourhoods and Climate Change,Technical Services CM0300,Supplies and Services,304221,Equipment and Materials,09/04/2020,3727277-2003\159,"1,706.01",EPPLETON QUARRY PRODUCTS LTD.
Neighbourhoods and Climate Change,Technical Services CM0300,Supplies and Services,304221,Equipment and Materials,09/04/2020,3727277-2003\235,"3,647.61",EPPLETON QUARRY PRODUCTS LTD.
Neighbourhoods and Climate Change,Technical Services CM0300,Supplies and Services,304221,Equipment and Materials,09/04/2020,3727277-2003\238,"1,395.34",EPPLETON QUARRY PRODUCTS LTD.
Neighbourhoods and Climate Change,Technical Services CM0300,Supplies and Services,304357,Equipment and Materials,09/04/2020,3727289-DCC050420,"1,504.50",GAP GROUP LTD.
Neighbourhoods and Climate Change,Technical Services CM0300,Supplies and Services,304357,Equipment and Materials,09/04/2020,3727289-DCC290320,"15,100.45",GAP GROUP LTD.
Neighbourhoods and Climate Change,Technical Services CM0300,Supplies and Services,304221,Equipment and Materials,09/04/2020,3727323-0104/00051317,"1,131.38",JT DOVE LTD.
Neighbourhoods and Climate Change,Technical Services CM0300,Supplies and Services,304358,Equipment and Materials,09/04/2020,3727325-3212,"1,018.00",KEVIN SNOWDON GROUNDWORKS LTD.
Neighbourhoods and Climate Change,Technical Services CM0300,Third Party Payments,430100,Rendered by Private Contractors,09/04/2020,3727390-131779,550.00,PROTECTOR SECURITY GROUP LTD.
Neighbourhoods and Climate Change,Technical Services CM0300,Third Party Payments,430100,Rendered by Private Contractors,09/04/2020,3727398-2858/200356,"49,759.34",RAINTON CONSTRUCTION LTD.
Neighbourhoods and Climate Change,Technical Services CM0300,Supplies and Services,342215,Computers and Communications,09/04/2020,3727424-INV95187,"1,048.00",SKYGUARD LTD.
"Regeneration, Economy and Growth",Corporate Property and Land,Third Party Payments,430100,Rendered by Private Contractors,09/04/2020,3727324-13,880.00,JTL SCAFFOLDING LTD.
"Regeneration, Economy and Growth",Corporate Property and Land,Third Party Payments,430100,Rendered by Private Contractors,09/04/2020,3727430-7120,"1,520.00",ST ASTIER LTD.
"Regeneration, Economy and Growth",Corporate Property and Land,Third Party Payments,430100,Rendered by Private Contractors,09/04/2020,3727396-36156,"4,300.00",R PARKER WALL & FLOOR TILING CONTRACTOR.
"Regeneration, Economy and Growth",Corporate Property and Land,Third Party Payments,430100,Rendered by Private Contractors,09/04/2020,3727200-6661,"4,064.00",BELL CONTROL SOLUTIONS LTD.
"Regeneration, Economy and Growth",Corporate Property and Land,Supplies and Services,372009,Subscriptions E372,09/04/2020,3727310-9012,"1,365.00",INFOMILL LTD.
"Regeneration, Economy and Growth",Corporate Property and Land,Supplies and Services,304221,Equipment and Materials,09/04/2020,3727228-5858,"11,655.00",CENTURY FABRICATIONS LTD.
"Regeneration, Economy and Growth",Corporate Property and Land,Third Party Payments,430100,Rendered by Private Contractors,09/04/2020,3727357-DCC124,"1,450.00",MR WILLIAM MAGUIRE T/A VALLUM LIFTS.
"Regeneration, Economy and Growth",Corporate Property and Land,Third Party Payments,430100,Rendered by Private Contractors,09/04/2020,3727357-DCC125,"1,600.00",MR WILLIAM MAGUIRE T/A VALLUM LIFTS.
"Regeneration, Economy and Growth",Corporate Property and Land,Third Party Payments,430100,Rendered by Private Contractors,09/04/2020,3727357-DCC126,"1,450.00",MR WILLIAM MAGUIRE T/A VALLUM LIFTS.
"Regeneration, Economy and Growth",Corporate Property and Land,Supplies and Services,304221,Equipment and Materials,09/04/2020,3727450-PR06090,"8,400.00",TERRY GROUP LTD.
Neighbourhoods and Climate Change,Technical Services CM0300,Supplies and Services,338045,Services,09/04/2020,3727326-422993-26/02/2020,"4,000.00",KINGS CHAMBERS.
"Regeneration, Economy and Growth",Culture Sport and Tourism,Supplies and Services,384199,Miscellaneous Expenses,09/04/2020,3727175-ATL128,"3,000.00",ACORN T-STATS LTD.
"Regeneration, Economy and Growth",Business Durham CL0850,Supplies and Services,338066,Services,09/04/2020,3727220-65695/0228,"3,000.00",CANDLE LEARNING LTD.
"Regeneration, Economy and Growth",Development and Housing,Construction work A908,908105,Construction work,09/04/2020,3727283-135344/06A,"6,655.00",FAIRHURST (CONSULTING ENGINEERS).
"Regeneration, Economy and Growth",Transport and Contracted Services,Supplies and Services,304259,Equipment and Materials,09/04/2020,3727462-3IN/10353886,"43,008.00",TUNSTALL HEALTHCARE (UK) LTD.
"Regeneration, Economy and Growth",Transport and Contracted Services,Supplies and Services,304245,Equipment and Materials,09/04/2020,3727462-3IN/10354068,"3,273.50",TUNSTALL HEALTHCARE (UK) LTD.
"Regeneration, Economy and Growth",Transport and Contracted Services,Supplies and Services,384199,Miscellaneous Expenses,09/04/2020,3727480-64453445,"6,999.86",WSP UK LTD.
"Regeneration, Economy and Growth",Transport and Contracted Services,Supplies and Services,372009,Subscriptions E372,09/04/2020,3727350-MEM20-21/024,898.00,MODESHIFT.
"Regeneration, Economy and Growth",Corporate Property and Land,Supplies and Services,372009,Subscriptions E372,09/04/2020,3727404-0102156,"4,135.00",RICS BOOKS.*
"Regeneration, Economy and Growth",Corporate Property and Land,Supplies and Services,338066,Services,09/04/2020,3727415-NEW12796,"2,755.50",SANDERSON WEATHERALL LLP.
Adult and Health Services,Head of Adults,Supplies and Services,338365,Services,09/04/2020,3727203-DHP0074,"22,647.29",BERNICIA GROUP LTD.
Adult and Health Services,Head of Adults,Supplies and Services,338366,Services,09/04/2020,3727221-66495,"2,231.40",CARE ABILITY HEALTHCARE LTD.
Adult and Health Services,Head of Adults,Third Party Payments,478151,Purchase of Care,09/04/2020,3727193-D720001456,968.10,AUTISM CARE UK (4) LTD.
Adult and Health Services,Head of Adults,Third Party Payments,478151,Purchase of Care,09/04/2020,3727193-D720001457,"3,872.40",AUTISM CARE UK (4) LTD.
Adult and Health Services,Head of Adults,Third Party Payments,478151,Purchase of Care,09/04/2020,3727193-D720001458,"3,872.40",AUTISM CARE UK (4) LTD.
Adult and Health Services,Head of Adults,Third Party Payments,478151,Purchase of Care,09/04/2020,3727193-D720001459,"3,872.40",AUTISM CARE UK (4) LTD.
Adult and Health Services,Head of Adults,Third Party Payments,478151,Purchase of Care,09/04/2020,3727254-INV-0505,"1,612.80",DEACONSTAR LTD.
Adult and Health Services,Head of Adults,Third Party Payments,478151,Purchase of Care,09/04/2020,3727254-INV-0506,"1,761.76",DEACONSTAR LTD.
Adult and Health Services,Head of Adults,Third Party Payments,478151,Purchase of Care,09/04/2020,3727278-20545,"2,719.32",ESSENTIAL CARE & SUPPORT LTD.
Adult and Health Services,Head of Adults,Third Party Payments,478151,Purchase of Care,09/04/2020,3727278-20547,"7,924.00",ESSENTIAL CARE & SUPPORT LTD.
Adult and Health Services,Head of Adults,Third Party Payments,478151,Purchase of Care,09/04/2020,3727387-1397813980,"4,216.00",POTENSIAL LTD.
Adult and Health Services,Head of Adults,Third Party Payments,478151,Purchase of Care,09/04/2020,3727387-13979,"2,108.00",POTENSIAL LTD.
Adult and Health Services,Commissioning inc Supporting People,Supplies and Services,384956,Miscellaneous Expenses,09/04/2020,3727312-243133,"2,900.00",INTERACTIVE HEALTH & SAFETY COMPANY LTD (IHASCO).
Adult and Health Services,Commissioning inc Supporting People,Supplies and Services,338094,Services,09/04/2020,3727481-1039,"2,493.75",XCEL CONFERENCE & EVENTS (INNOVATE COUNTY DURHAM) LTD.
"Regeneration, Economy and Growth",Culture Sport and Tourism,Supplies and Services,384199,Miscellaneous Expenses,09/04/2020,3727432-15669,729.30,STEADFAST SECURITY SOLUTIONS LTD.
"Regeneration, Economy and Growth",Culture Sport and Tourism,Premises,106080,Centrally Controlled Rep and Maint,09/04/2020,3727208-37902,919.00,BIOCHEMICA GROUP LTD.
Adult and Health Services,Public Health CC0450,Third Party Payments,460803,Contract Payments,09/04/2020,3727174-INV-0704,"124,855.00",ABL HEALTH LTD.
Resources BK0010,Strategy,Supplies and Services,342053,Computers and Communications,09/04/2020,3727477-UOTR4633424,"4,786.92",WESTERN UNION BUSINESS SOLUTIONS.
Neighbourhoods and Climate Change,Partnerships & Community Engagement Div.,Supplies and Services,308011,Furniture,09/04/2020,3727244-SG0013,"1,365.00",COUNTY DURHAM FURNITURE HELP SCHEME (CDFHS).
Resources BK0010,Digital and Customer Services,Supplies and Services,332029,Printing Stationery and Gen Off Exps,09/04/2020,3727275-654245,"5,875.00",ENCORE ENVELOPES LTD.
Resources BK0010,Digital and Customer Services,Vehicles Equipment Furniture and Fittings,912701,Computer equipment,09/04/2020,3727472-670064914/4,620.00,VODAFONE LTD.
Resources BK0010,Digital and Customer Services,Supplies and Services,344015,Telephones,09/04/2020,3727472-NX77970,"3,650.00",VODAFONE LTD.
Resources BK0010,Legal & Democratic Services,Supplies and Services,338025,Services,09/04/2020,3727236-S45008-01085,800.00,CO-OPERATIVE FUNERAL CARE.
Resources BK0010,Legal & Democratic Services,Supplies and Services,338025,Services,09/04/2020,3727258-00000516,990.00,DERWENTSIDE FUNERAL SERVICE.
Resources BK0010,Legal & Democratic Services,Supplies and Services,338025,Services,09/04/2020,3727292-45320,630.00,GIBSONS FUNERAL SERVICES LTD.
Resources BK0010,Legal & Democratic Services,Supplies and Services,338101,Services,09/04/2020,3727365-3010005992,"19,680.00",NEWCASTLE UPON TYNE HOSPITALS NHS FOUNDATION TRUST.
Resources BK0010,Legal & Democratic Services,Supplies and Services,338101,Services,09/04/2020,3727379-PPSLPMSJAN-FEB2020,"8,838.30",PATEL PATH SERVICES LTD.
Resources BK0010,Legal & Democratic Services,Supplies and Services,384199,Miscellaneous Expenses,09/04/2020,3727453-2170/DUR,"4,497.00",THE CORONER`S COURTS SUPPORT SERVICE.
Resources BK0010,Legal & Democratic Services,Supplies and Services,338043,Services,09/04/2020,3727267-157-0065565,"4,649.80",DWF LLP.
Children and Young Peoples Services,Head of Education and Skills,Supplies and Services,338027,Services,09/04/2020,3727179-ALSI14,"5,931.91",ADVANCE LEARNING PARTNERSHIP.
Children and Young Peoples Services,Central Charges (CYPS),Supplies and Services,384197,Miscellaneous Expenses,09/04/2020,3727217-A0020674,703.90,BOX IT NORTH.
Children and Young Peoples Services,Central Charges (CYPS),Supplies and Services,384197,Miscellaneous Expenses,09/04/2020,3727217-A0020675,"1,687.82",BOX IT NORTH.
Children and Young Peoples Services,Head of Early Help Inclusion & Vulnerable Children.,Supplies and Services,338094,Services,09/04/2020,3727481-1029,807.50,XCEL CONFERENCE & EVENTS (INNOVATE COUNTY DURHAM) LTD.
Children and Young Peoples Services,Head of Early Help Inclusion & Vulnerable Children.,Supplies and Services,384899,Miscellaneous Expenses,09/04/2020,3727257-3994200,"2,143.60",DEPARTMENT FOR WORK & PENSIONS.
Children and Young Peoples Services,Head of Education and Skills,Third Party Payments,440999,Other third party payments E440,09/04/2020,3727232-YEI11-JAN2020,"14,234.56",CITIZENS ADVICE COUNTY DURHAM.
Children and Young Peoples Services,Head of Education and Skills,Third Party Payments,440999,Other third party payments E440,09/04/2020,3727242-YEI49-JAN2020,"5,059.99",CORNFORTH PARTNERSHIP.
Children and Young Peoples Services,Head of Education and Skills,Third Party Payments,440999,Other third party payments E440,09/04/2020,3727255-YEI06-JAN2020,"4,251.91",DELTA - NORTH CONSETT LTD.
Children and Young Peoples Services,Head of Education and Skills,Supplies and Services,384199,Miscellaneous Expenses,09/04/2020,3727345-LWE0043/2,"1,603.33",MISS ELEPHANT LTD.
Children and Young Peoples Services,Head of Education and Skills,Supplies and Services,384199,Miscellaneous Expenses,09/04/2020,3727380-DW0061/1,540.21,PERCO FOODS LTD.
Children and Young Peoples Services,Head of Education and Skills,Supplies and Services,338027,Services,09/04/2020,3727359-0023,"1,250.00",MRS NATALIE ANNE DALTON (EDUCATIONAL CONSULTANT).
